{"text_format":"1","workbook":"xlsx","n_sheets":17,"sheets":["Stavba","001 3392001 KL","001 3392001 Rek","001 3392001 Pol","002 3392002 KL","002 3392002 Rek","002 3392002 Pol","003 3392003 KL","003 3392003 Rek","003 3392003 Pol","004 3392004 KL","004 3392004 Rek","004 3392004 Pol","005 3392005 KL","005 3392005 Rek","005 3392005 Pol","OaVNS"],"not_rendered":{"charts":0,"images":0,"macros":0,"external_links":0,"defined_names":73,"comments":0,"pivot_tables":0},"unopened":[],"bounds":{"document_bytes":16777216,"sheet_cells":100000,"rows_first":2000,"rows_last":500,"rows_between":2000,"halvings":0,"cell_chars":16384,"cell_head_chars":4096},"cells_cut":0,"cells_raw":0,"read":"whole","date_system":"1900"}

{"sheet":"Stavba","index":0,"n_rows":46,"n_cols":10,"rows_kept":46,"cut":false,"hidden":false,"merged":[[18,8,18,9],[19,8,19,9],[20,8,20,9],[21,8,21,9],[22,8,22,9]]}
[]
[null,null,"Položkový rozpočet stavby",null,null,null,null,"Datum: ",{"$f":"TODAY()","v":"2024-04-22"}]
[null,null,null," "]
[]
[null,null,"Stavba :","3392","Chuchelna - optimalizace vodovodní soustavy"]
[]
[null,null,"Objednatel : ","Vodohospodářské sdružení Turnov",null,null,null,"IČO :","49295934"]
[null,null,null,"Antonína Dvořáka 287",null,null,null,"DIČ :","CZ49295934"]
[null,null,"51101","Turnov"]
[]
[null,null,"Zhotovitel : ",".",null,null,null,"IČO :"]
[null,null,null,null,null,null,null,"DIČ :"]
[]
[null,null,"Za zhotovitele :",null,null,null,null,"Za objednatele :"]
[]
[null,null,"_______________",null,null,null,null,"_______________"]
[]
[null,null,null,null,null,null,null,null,null,"Rozpočtové náklady"]
[null,"Základ pro DPH",null,15,"%",null,null,null,{"$f":"ROUND(G36,0)","v":0}]
[null,"DPH ",null,{"$f":"SazbaDPH1","v":15},"%",null,null,null,{"$f":"ROUND(I19*D20/100,0)","v":0}]
[null,"Základ pro DPH",null,21,"%",null,null,null,{"$f":"ROUND(H36,0)","v":100000}]
[null,"DPH ",null,{"$f":"SazbaDPH2","v":21},"%",null,null,null,{"$f":"ROUND(I21*D21/100,0)","v":21000}]
[null,"Cena celkem za stavbu",null,null,null,null,null,null,{"$f":"SUM(I19:I22)","v":121000}]
[]
[]
[null,"Rekapitulace stavebních objektů a provozních souborů"]
[]
[null,"Číslo a název objektu / provozního souboru",null,null,null,"Cena celkem",{"$f":"CONCATENATE(\"Základ DPH \",SazbaDPH1,\" %\")","v":"Základ DPH 15 %"},{"$f":"CONCATENATE(\"Základ DPH \",SazbaDPH2,\" %\")","v":"Základ DPH 21 %"},"DPH celkem","%"]
[null,"001","Rozdělení tlakových pásem",null,null,{"$f":"G29+H29+I29","v":0},0,{"$f":"SUM(H41)","v":0},{"$f":"(G29*SazbaDPH1)/100+(H29*SazbaDPH2)/100","v":0},{"$f":"IF(CelkemObjekty=0,\"\",F29/CelkemObjekty*100)","v":0}]
[null,"002","Chuchelna - zaslepení vodovodu",null,null,{"$f":"G30+H30+I30","v":0},0,{"$f":"SUM(H42)","v":0},0,0]
[null,"003","Redukční šachta RŠ Klinkovice u čp.22",null,null,0,0,{"$f":"SUM(H43)","v":0},0,0]
[null,"004","Redukční šachta RŠ Klinkovice u čp.144",null,null,0,0,{"$f":"SUM(H44)","v":0},0,0]
[null,"005","Chuchelna - propojení vodovodu",null,null,0,0,{"$f":"SUM(H45)","v":0},0,0]
[null,"OaVNS","Ostatní a vedlejší náklady stavby",null,null,0,0,{"$f":"SUM(OaVNS!G30)","v":0},0,0]
[null,"PR ","Povinná rezerva",null,null,121000,0,100000,21000,100]
[null,"Celkem za stavbu",null,null,null,{"$f":"SUM(F29:F35)","v":121000},{"$f":"SUM(G29:G35)","v":0},{"$f":"SUM(H29:H35)","v":100000},{"$f":"SUM(I29:I35)","v":21000},{"$f":"IF(CelkemObjekty=0,\"\",F36/CelkemObjekty*100)","v":100}]
[]
[null,"Rekapitulace stavebních rozpočtů"]
[]
[null,"Číslo objektu","Číslo a název rozpočtu",null,null,"Cena celkem",{"$f":"CONCATENATE(\"Základ DPH \",SazbaDPH1,\" %\")","v":"Základ DPH 15 %"},{"$f":"CONCATENATE(\"Základ DPH \",SazbaDPH2,\" %\")","v":"Základ DPH 21 %"},"DPH celkem","%"]
[null,"001","3392/001 Rozdělení tlakových pásem",null,null,{"$f":"G41+H41+I41","v":0},0,{"$f":"SUM('001 3392001 KL'!C23)","v":0},{"$f":"(G41*SazbaDPH1)/100+(H41*SazbaDPH2)/100","v":0},{"$f":"IF(CelkemObjekty=0,\"\",F41/CelkemObjekty*100)","v":0}]
[null,"002","3392/002 Chuchelna - zaslepení vodovodu",null,null,{"$f":"G42+H42+I42","v":0},0,{"$f":"SUM('002 3392002 KL'!C23)","v":0},0,0]
[null,"003","3392/003 Redukční šachta RŠ Klinkovice u čp.22",null,null,0,0,{"$f":"SUM('003 3392003 KL'!C23)","v":0},0,0]
[null,"004","3392/004 Redukční šachta RŠ Klinkovice u čp.144",null,null,0,0,{"$f":"SUM('004 3392004 KL'!C23)","v":0},0,0]
[null,"005","3392/005 Chuchelna - propojení vodovodu",null,null,0,0,{"$f":"SUM('005 3392005 KL'!C23)","v":0},0,0]
[null,"Celkem za stavbu",null,null,null,{"$f":"SUM(F41:F45)","v":0},{"$f":"SUM(G41:G45)","v":0},{"$f":"SUM(H41:H45)","v":0},{"$f":"SUM(I41:I45)","v":0},{"$f":"IF(CelkemObjekty=0,\"\",F46/CelkemObjekty*100)","v":0}]

{"sheet":"001 3392001 KL","index":1,"n_rows":45,"n_cols":8,"rows_kept":45,"cut":false,"hidden":false,"merged":[[22,0,22,1],[7,2,7,4],[8,2,8,4],[9,2,9,4],[10,2,10,4],[11,2,11,4],[50,1,50,6],[29,5,29,6],[30,5,30,6],[31,5,31,6],[32,5,32,6],[33,5,33,6],[36,1,44,6],[45,1,45,6],[46,1,46,6],[47,1,47,6],[48,1,48,6],[49,1,49,6]]}
["POLOŽKOVÝ ROZPOČET"]
["Rozpočet",null,"3392/001","Rozdělení tlakových pásem",null,"JKSO ","827.11"]
[]
["Objekt",null,null,null,null,"SKP "]
["001",null,"Rozdělení tlakových pásem",null,null,"Měrná jednotka","m"]
["Stavba",null,null,null,null,"Počet jednotek",0]
["3392",null,"Chuchelna - optimalizace vodovodní soustavy",null,null,"Náklady na m.j.",{"$f":"IF(G6=0,,ROUND((F30+F32)/G6,1))","v":0}]
["Projektant",null,"Radek Hnát - VAK PROJEKT",null,null,"Typ rozpočtu"]
["Zpracovatel projektu"]
["Objednatel",null,"Vodohospodářské sdružení Turnov"]
["Dodavatel",null,".",null,null,"Zakázkové číslo "]
["Rozpočtoval",null,null,null,null,"Počet listů"]
["ROZPOČTOVÉ NÁKLADY"]
["Základní rozpočtové náklady"]
[null,"HSV celkem",{"$f":"'001 3392001 Rek'!E8","v":0}]
["Z","PSV celkem",{"$f":"'001 3392001 Rek'!F8","v":0}]
["R","M práce celkem",{"$f":"'001 3392001 Rek'!H8","v":0}]
["N","M dodávky celkem",{"$f":"'001 3392001 Rek'!G8","v":0}]
["ZRN celkem",null,{"$f":"SUM(C15:C18)","v":0}]
[]
["HZS",null,{"$f":"'001 3392001 Rek'!I8","v":0}]
["ZRN+HZS",null,{"$f":"C19+C21","v":0}]
["ZRN+ost.náklady+HZS",null,{"$f":"C22+G23","v":0}]
["Vypracoval",null,null,"Za zhotovitele",null,"Za objednatele"]
["Jméno :",null,null,"Jméno :",null,"Jméno :"]
["Datum :",null,null,"Datum :",null,"Datum :"]
[]
["Podpis :",null,null,"Podpis:",null,"Podpis:"]
[]
["Základ pro DPH",null,21,"%  ",null,{"$f":"C23-F32","v":0}]
["DPH",null,{"$f":"C30","v":21},"% ",null,{"$f":"ROUND(PRODUCT(F30,C31/100),0)","v":0}]
["Základ pro DPH",null,0,"% ",null,0]
["DPH",null,{"$f":"C32","v":0},"% ",null,{"$f":"ROUND(PRODUCT(F32,C33/100),0)","v":0}]
["CENA ZA OBJEKT CELKEM",null,null,null,null,{"$f":"ROUND(SUM(F30:F33),0)","v":0}]
[]
["Poznámka :",null,null,null,null,null,null," "]
[null,null,null,null,null,null,null," "]
[null,null,null,null,null,null,null," "]
[null,null,null,null,null,null,null," "]
[null,null,null,null,null,null,null," "]
[null,null,null,null,null,null,null," "]
[null,null,null,null,null,null,null," "]
[null,null,null,null,null,null,null," "]
[null,null,null,null,null,null,null," "]
[null,null,null,null,null,null,null," "]

{"sheet":"001 3392001 Rek","index":2,"n_rows":8,"n_cols":9,"rows_kept":8,"cut":false,"hidden":false,"merged":[[0,0,0,1],[1,0,1,1],[1,6,1,8]]}
["Stavba :",null,"3392 Chuchelna - optimalizace vodovodní soustavy",null,null,null,"Rozpočet :","3392/001"]
["Objekt :",null,"001 Rozdělení tlakových pásem",null,null,null,"Rozdělení tlakových pásem"]
[]
["REKAPITULACE  STAVEBNÍCH  DÍLŮ"]
[]
[null,"Stavební díl",null,null,"HSV","PSV","Dodávka","Montáž","HZS"]
[{"$f":"'001 3392001 Pol'!B7","v":"8"},{"$f":"'001 3392001 Pol'!C7","v":"Trubní vedení"},null,null,{"$f":"'001 3392001 Pol'!BA13","v":0},{"$f":"'001 3392001 Pol'!BB13","v":0},{"$f":"'001 3392001 Pol'!BC13","v":0},{"$f":"'001 3392001 Pol'!BD13","v":0},{"$f":"'001 3392001 Pol'!BE13","v":0}]
[null,"CELKEM  OBJEKT",null,null,{"$f":"SUM(E7:E7)","v":0},{"$f":"SUM(F7:F7)","v":0},{"$f":"SUM(G7:G7)","v":0},{"$f":"SUM(H7:H7)","v":0},{"$f":"SUM(I7:I7)","v":0}]

{"sheet":"001 3392001 Pol","index":3,"n_rows":13,"n_cols":80,"rows_kept":13,"cut":false,"hidden":false,"merged":[[9,2,9,6],[10,2,10,3],[11,2,11,3],[0,0,0,6],[2,0,2,1],[3,0,3,1],[3,4,3,6],[8,2,8,6]]}
["Položkový rozpočet "]
[]
["Stavba :",null,"3392 Chuchelna - optimalizace vodovodní soustavy",null,"Rozpočet:",{"$f":"'001 3392001 Rek'!H1","v":"3392/001"}]
["Objekt :",null,"001 Rozdělení tlakových pásem",null,{"$f":"'001 3392001 Rek'!G2","v":"Rozdělení tlakových pásem"}]
[]
["P.č.","Číslo položky","Název položky","MJ","množství","cena / MJ","celkem (Kč)","Jednotková hmotnost","Celková hmotnost","Jednotková dem.hmot.","Celková dem.hmot."]
["Díl:","8","Trubní vedení",null,null,null,null,null,null,null,null,null,null,null,1]
[1,"900      R00","HZS - Uzavření pásmového šoupátka ","hodin",4,null,{"$f":"E8*F8","v":0},0,{"$f":"E8*H8","v":0},null,{"$f":"E8*J8","v":0},null,null,null,2,null,null,null,null,null,null,null,null,null,null,null,10,0,8,null,null,null,null,null,null,null,null,null,null,null,null,null,null,null,null,null,null,null,null,null,null,5,{"$f":"IF(AZ8=1,G8,0)","v":0},{"$f":"IF(AZ8=2,G8,0)","v":0},{"$f":"IF(AZ8=3,G8,0)","v":0},{"$f":"IF(AZ8=4,G8,0)","v":0},{"$f":"IF(AZ8=5,G8,0)","v":0},null,null,null,null,null,null,null,null,null,null,null,null,null,null,null,null,null,null,null,null,null,10,0]
[null,null,"Na základě písemné dohody mezi zhotovitele a objednatelem je možno ocenit stavební práce pomocí HZS jde-li o:",null,null,null,null,null,null,null,null,"Na základě písemné dohody mezi zhotovitele a objednatelem je možno ocenit stavební práce pomocí HZS jde-li o:",null,null,3]
[null,null,"a)\tstavební práce prováděné bez projektové dokumentace,",null,null,null,null,null,null,null,null,"a)\tstavební práce prováděné bez projektové dokumentace,",null,null,3]
[null,null,"Pásmové šoupátko u čp. 67:2,00",null,2,null,null,null,null,null,null,null,"Pásmové šoupátko u čp. 67:2,00"]
[null,null,"Pásmové šoupátko u čp.41:2,00",null,2,null,null,null,null,null,null,null,"Pásmové šoupátko u čp.41:2,00"]
[null,"Celkem za","8 Trubní vedení",null,null,null,{"$f":"SUM(G7:G12)","v":0},null,{"$f":"SUM(I7:I12)","v":0},null,{"$f":"SUM(K7:K12)","v":0},null,null,null,4,null,null,null,null,null,null,null,null,null,null,null,null,null,null,null,null,null,null,null,null,null,null,null,null,null,null,null,null,null,null,null,null,null,null,null,null,null,{"$f":"SUM(BA7:BA12)","v":0},{"$f":"SUM(BB7:BB12)","v":0},{"$f":"SUM(BC7:BC12)","v":0},{"$f":"SUM(BD7:BD12)","v":0},{"$f":"SUM(BE7:BE12)","v":0}]

{"sheet":"002 3392002 KL","index":4,"n_rows":45,"n_cols":8,"rows_kept":45,"cut":false,"hidden":false,"merged":[[22,0,22,1],[7,2,7,4],[8,2,8,4],[9,2,9,4],[10,2,10,4],[11,2,11,4],[50,1,50,6],[29,5,29,6],[30,5,30,6],[31,5,31,6],[32,5,32,6],[33,5,33,6],[36,1,44,6],[45,1,45,6],[46,1,46,6],[47,1,47,6],[48,1,48,6],[49,1,49,6]]}
["POLOŽKOVÝ ROZPOČET"]
["Rozpočet",null,"3392/002","Chuchelna - zaslepení vodovodu",null,"JKSO ","827.11"]
[]
["Objekt",null,null,null,null,"SKP "]
["002",null,"Chuchelna - zaslepení vodovodu",null,null,"Měrná jednotka","m"]
["Stavba",null,null,null,null,"Počet jednotek",0]
["3392",null,"Chuchelna - optimalizace vodovodní soustavy",null,null,"Náklady na m.j.",{"$f":"IF(G6=0,,ROUND((F30+F32)/G6,1))","v":0}]
["Projektant",null,"Radek Hnát - VAK PROJEKT",null,null,"Typ rozpočtu"]
["Zpracovatel projektu"]
["Objednatel",null,"Vodohospodářské sdružení Turnov"]
["Dodavatel",null,".",null,null,"Zakázkové číslo "]
["Rozpočtoval",null,null,null,null,"Počet listů"]
["ROZPOČTOVÉ NÁKLADY"]
["Základní rozpočtové náklady"]
[null,"HSV celkem",{"$f":"'002 3392002 Rek'!E11","v":0}]
["Z","PSV celkem",{"$f":"'002 3392002 Rek'!F11","v":0}]
["R","M práce celkem",{"$f":"'002 3392002 Rek'!H11","v":0}]
["N","M dodávky celkem",{"$f":"'002 3392002 Rek'!G11","v":0}]
["ZRN celkem",null,{"$f":"SUM(C15:C18)","v":0}]
[]
["HZS",null,{"$f":"'002 3392002 Rek'!I11","v":0}]
["ZRN+HZS",null,{"$f":"C19+C21","v":0}]
["ZRN+ost.náklady+HZS",null,{"$f":"C22+G23","v":0}]
["Vypracoval",null,null,"Za zhotovitele",null,"Za objednatele"]
["Jméno :",null,null,"Jméno :",null,"Jméno :"]
["Datum :",null,null,"Datum :",null,"Datum :"]
[]
["Podpis :",null,null,"Podpis:",null,"Podpis:"]
[]
["Základ pro DPH",null,21,"%  ",null,{"$f":"C23-F32","v":0}]
["DPH",null,{"$f":"C30","v":21},"% ",null,{"$f":"ROUND(PRODUCT(F30,C31/100),0)","v":0}]
["Základ pro DPH",null,0,"% ",null,0]
["DPH",null,{"$f":"C32","v":0},"% ",null,{"$f":"ROUND(PRODUCT(F32,C33/100),0)","v":0}]
["CENA ZA OBJEKT CELKEM",null,null,null,null,{"$f":"ROUND(SUM(F30:F33),0)","v":0}]
[]
["Poznámka :",null,null,null,null,null,null," "]
[null,null,null,null,null,null,null," "]
[null,null,null,null,null,null,null," "]
[null,null,null,null,null,null,null," "]
[null,null,null,null,null,null,null," "]
[null,null,null,null,null,null,null," "]
[null,null,null,null,null,null,null," "]
[null,null,null,null,null,null,null," "]
[null,null,null,null,null,null,null," "]
[null,null,null,null,null,null,null," "]

{"sheet":"002 3392002 Rek","index":5,"n_rows":11,"n_cols":9,"rows_kept":11,"cut":false,"hidden":false,"merged":[[0,0,0,1],[1,0,1,1],[1,6,1,8]]}
["Stavba :",null,"3392 Chuchelna - optimalizace vodovodní soustavy",null,null,null,"Rozpočet :","3392/002"]
["Objekt :",null,"002 Chuchelna - zaslepení vodovodu",null,null,null,"Chuchelna - zaslepení vodovodu"]
[]
["REKAPITULACE  STAVEBNÍCH  DÍLŮ"]
[]
[null,"Stavební díl",null,null,"HSV","PSV","Dodávka","Montáž","HZS"]
[{"$f":"'002 3392002 Pol'!B7","v":"1"},{"$f":"'002 3392002 Pol'!C7","v":"Zemní práce"},null,null,{"$f":"'002 3392002 Pol'!BA44","v":0},{"$f":"'002 3392002 Pol'!BB44","v":0},{"$f":"'002 3392002 Pol'!BC44","v":0},{"$f":"'002 3392002 Pol'!BD44","v":0},{"$f":"'002 3392002 Pol'!BE44","v":0}]
[{"$f":"'002 3392002 Pol'!B45","v":"45"},{"$f":"'002 3392002 Pol'!C45","v":"Podkladní a vedlejší konstrukce"},null,null,{"$f":"'002 3392002 Pol'!BA50","v":0},{"$f":"'002 3392002 Pol'!BB50","v":0},{"$f":"'002 3392002 Pol'!BC50","v":0},{"$f":"'002 3392002 Pol'!BD50","v":0},{"$f":"'002 3392002 Pol'!BE50","v":0}]
[{"$f":"'002 3392002 Pol'!B51","v":"8"},{"$f":"'002 3392002 Pol'!C51","v":"Trubní vedení"},null,null,{"$f":"'002 3392002 Pol'!BA161","v":0},{"$f":"'002 3392002 Pol'!BB161","v":0},{"$f":"'002 3392002 Pol'!BC161","v":0},{"$f":"'002 3392002 Pol'!BD161","v":0},{"$f":"'002 3392002 Pol'!BE161","v":0}]
[{"$f":"'002 3392002 Pol'!B162","v":"99"},{"$f":"'002 3392002 Pol'!C162","v":"Staveništní přesun hmot"},null,null,{"$f":"'002 3392002 Pol'!BA164","v":0},{"$f":"'002 3392002 Pol'!BB164","v":0},{"$f":"'002 3392002 Pol'!BC164","v":0},{"$f":"'002 3392002 Pol'!BD164","v":0},{"$f":"'002 3392002 Pol'!BE164","v":0}]
[null,"CELKEM  OBJEKT",null,null,{"$f":"SUM(E7:E10)","v":0},{"$f":"SUM(F7:F10)","v":0},{"$f":"SUM(G7:G10)","v":0},{"$f":"SUM(H7:H10)","v":0},{"$f":"SUM(I7:I10)","v":0}]

{"sheet":"002 3392002 Pol","index":6,"n_rows":164,"n_cols":80,"rows_kept":164,"cut":false,"hidden":false,"merged":[[0,0,0,6],[2,0,2,1],[3,0,3,1],[3,4,3,6],[8,2,8,3],[10,2,10,6],[11,2,11,3],[13,2,13,6],[26,2,26,3],[27,2,27,3],[28,2,28,3],[30,2,30,6],[31,2,31,6],[32,2,32,3],[14,2,14,3],[16,2,16,3],[18,2,18,3],[20,2,20,3],[22,2,22,3],[24,2,24,3],[42,2,42,3],[46,2,46,3],[48,2,48,3],[62,2,62,6],[63,2,63,6],[64,2,64,3],[65,2,65,3],[33,2,33,3],[34,2,34,3],[36,2,36,3],[38,2,38,3],[39,2,39,3],[40,2,40,3],[52,2,52,6],[53,2,53,6],[54,2,54,6],[55,2,55,6],[56,2,56,6],[57,2,57,6],[58,2,58,6],[59,2,59,6],[60,2,60,3],[74,2,74,3],[75,2,75,3],[77,2,77,6],[78,2,78,6],[79,2,79,3],[80,2,80,3],[67,2,67,6],[68,2,68,6],[69,2,69,3],[70,2,70,3],[72,2,72,6],[73,2,73,6],[89,2,89,3],[91,2,91,6],[92,2,92,3],[93,2,93,3],[95,2,95,6],[96,2,96,3],[82,2,82,6],[83,2,83,6],[84,2,84,3],[85,2,85,3],[87,2,87,6],[88,2,88,3],[106,2,106,3],[107,2,107,3],[109,2,109,3],[110,2,110,3],[112,2,112,6],[113,2,113,3],[97,2,97,3],[99,2,99,3],[100,2,100,3],[102,2,102,6],[103,2,103,3],[104,2,104,3],[123,2,123,6],[124,2,124,6],[125,2,125,6],[126,2,126,6],[127,2,127,6],[128,2,128,6],[114,2,114,3],[116,2,116,6],[117,2,117,3],[118,2,118,3],[120,2,120,3],[121,2,121,3],[138,2,138,6],[139,2,139,6],[140,2,140,6],[141,2,141,6],[142,2,142,6],[143,2,143,6],[129,2,129,3],[130,2,130,3],[132,2,132,3],[133,2,133,3],[135,2,135,3],[136,2,136,3],[158,2,158,3],[159,2,159,3],[150,2,150,6],[151,2,151,6],[152,2,152,3],[153,2,153,3],[155,2,155,3],[156,2,156,3],[144,2,144,6],[145,2,145,6],[146,2,146,6],[147,2,147,6],[148,2,148,6],[149,2,149,6]]}
["Položkový rozpočet "]
[]
["Stavba :",null,"3392 Chuchelna - optimalizace vodovodní soustavy",null,"Rozpočet:",{"$f":"'002 3392002 Rek'!H1","v":"3392/002"}]
["Objekt :",null,"002 Chuchelna - zaslepení vodovodu",null,{"$f":"'002 3392002 Rek'!G2","v":"Chuchelna - zaslepení vodovodu"}]
[]
["P.č.","Číslo položky","Název položky","MJ","množství","cena / MJ","celkem (Kč)","Jednotková hmotnost","Celková hmotnost","Jednotková dem.hmot.","Celková dem.hmot."]
["Díl:","1","Zemní práce",null,null,null,null,null,null,null,null,null,null,null,1]
[1,"121100002RAA","Sejmutí ornice a uložení na deponii zpětný přesun, rozprostření v tl. 20 cm","m3",1.8,null,{"$f":"E8*F8","v":0},0,{"$f":"E8*H8","v":0},0,{"$f":"E8*J8","v":0},null,null,null,2,null,null,null,null,null,null,null,null,null,null,null,1,1,1,null,null,null,null,null,null,null,null,null,null,null,null,null,null,null,null,null,null,null,null,null,null,1,{"$f":"IF(AZ8=1,G8,0)","v":0},{"$f":"IF(AZ8=2,G8,0)","v":0},{"$f":"IF(AZ8=3,G8,0)","v":0},{"$f":"IF(AZ8=4,G8,0)","v":0},{"$f":"IF(AZ8=5,G8,0)","v":0},null,null,null,null,null,null,null,null,null,null,null,null,null,null,null,null,null,null,null,null,null,1,1]
[null,null,"Zaslepení stávajícího vodovodu:3,00*3,00*0,20",null,1.8,null,null,null,null,null,null,null,"Zaslepení stávajícího vodovodu:3,00*3,00*0,20"]
[2,"130001101RRX","Příplatek za ztížené hloubení v blízkosti vedení ","m3",3.6,null,{"$f":"E10*F10","v":0},0,{"$f":"E10*H10","v":0},0,{"$f":"E10*J10","v":0},null,null,null,2,null,null,null,null,null,null,null,null,null,null,null,1,1,1,null,null,null,null,null,null,null,null,null,null,null,null,null,null,null,null,null,null,null,null,null,null,1,{"$f":"IF(AZ10=1,G10,0)","v":0},{"$f":"IF(AZ10=2,G10,0)","v":0},{"$f":"IF(AZ10=3,G10,0)","v":0},{"$f":"IF(AZ10=4,G10,0)","v":0},{"$f":"IF(AZ10=5,G10,0)","v":0},null,null,null,null,null,null,null,null,null,null,null,null,null,null,null,null,null,null,null,null,null,1,1]
[null,null,"Včetně případných nutných dokopávem a ručního výkopu podél sousedících inženýrských sítí včetně vyvěšení a zajištění sítí.",null,null,null,null,null,null,null,null,"Včetně případných nutných dokopávem a ručního výkopu podél sousedících inženýrských sítí včetně vyvěšení a zajištění sítí.",null,null,3]
[null,null,"Zaslepení stávajícího vodovodu :2,00*2,00*(2,00-0,20)*0,5",null,3.6,null,null,null,null,null,null,null,"Zaslepení stávajícího vodovodu :2,00*2,00*(2,00-0,20)*0,5"]
[3,"133201101R00","Hloubení šachet v hor.3 do 100 m3 ","m3",7.2,null,{"$f":"E13*F13","v":0},0,{"$f":"E13*H13","v":0},0,{"$f":"E13*J13","v":0},null,null,null,2,null,null,null,null,null,null,null,null,null,null,null,1,0,0,null,null,null,null,null,null,null,null,null,null,null,null,null,null,null,null,null,null,null,null,null,null,1,{"$f":"IF(AZ13=1,G13,0)","v":0},{"$f":"IF(AZ13=2,G13,0)","v":0},{"$f":"IF(AZ13=3,G13,0)","v":0},{"$f":"IF(AZ13=4,G13,0)","v":0},{"$f":"IF(AZ13=5,G13,0)","v":0},null,null,null,null,null,null,null,null,null,null,null,null,null,null,null,null,null,null,null,null,null,1,0]
[null,null,"V položce je kalkulováno i svislé přemístění výkopku",null,null,null,null,null,null,null,null,"V položce je kalkulováno i svislé přemístění výkopku",null,null,3]
[null,null,"Zaslepení stávajícího vodovodu:2,00*2,00*(2,00-0,20)",null,7.2,null,null,null,null,null,null,null,"Zaslepení stávajícího vodovodu:2,00*2,00*(2,00-0,20)"]
[4,"133201109R00","Příplatek za lepivost - hloubení šachet v hor.3 ","m3",3.6,null,{"$f":"E16*F16","v":0},0,{"$f":"E16*H16","v":0},0,{"$f":"E16*J16","v":0},null,null,null,2,null,null,null,null,null,null,null,null,null,null,null,1,1,1,null,null,null,null,null,null,null,null,null,null,null,null,null,null,null,null,null,null,null,null,null,null,1,{"$f":"IF(AZ16=1,G16,0)","v":0},{"$f":"IF(AZ16=2,G16,0)","v":0},{"$f":"IF(AZ16=3,G16,0)","v":0},{"$f":"IF(AZ16=4,G16,0)","v":0},{"$f":"IF(AZ16=5,G16,0)","v":0},null,null,null,null,null,null,null,null,null,null,null,null,null,null,null,null,null,null,null,null,null,1,1]
[null,null,"Zaslepení stávajícího vodovodu:2,00*2,00*(2,00-0,20)*0,5",null,3.6,null,null,null,null,null,null,null,"Zaslepení stávajícího vodovodu:2,00*2,00*(2,00-0,20)*0,5"]
[5,"151101201R00","Pažení stěn výkopu - příložné - hloubky do 4 m ","m2",8,null,{"$f":"E18*F18","v":0},6.9999999999999999E-4,{"$f":"E18*H18","v":5.5999999999999999E-3},0,{"$f":"E18*J18","v":0},null,null,null,2,null,null,null,null,null,null,null,null,null,null,null,1,1,1,null,null,null,null,null,null,null,null,null,null,null,null,null,null,null,null,null,null,null,null,null,null,1,{"$f":"IF(AZ18=1,G18,0)","v":0},{"$f":"IF(AZ18=2,G18,0)","v":0},{"$f":"IF(AZ18=3,G18,0)","v":0},{"$f":"IF(AZ18=4,G18,0)","v":0},{"$f":"IF(AZ18=5,G18,0)","v":0},null,null,null,null,null,null,null,null,null,null,null,null,null,null,null,null,null,null,null,null,null,1,1]
[null,null,"Zaslepení stávajícího vodovodu:2,00*2,00*2",null,8,null,null,null,null,null,null,null,"Zaslepení stávajícího vodovodu:2,00*2,00*2"]
[6,"151101211R00","Odstranění pažení stěn - příložné - hl. do 4 m ","m2",8,null,{"$f":"E20*F20","v":0},0,{"$f":"E20*H20","v":0},0,{"$f":"E20*J20","v":0},null,null,null,2,null,null,null,null,null,null,null,null,null,null,null,1,1,1,null,null,null,null,null,null,null,null,null,null,null,null,null,null,null,null,null,null,null,null,null,null,1,{"$f":"IF(AZ20=1,G20,0)","v":0},{"$f":"IF(AZ20=2,G20,0)","v":0},{"$f":"IF(AZ20=3,G20,0)","v":0},{"$f":"IF(AZ20=4,G20,0)","v":0},{"$f":"IF(AZ20=5,G20,0)","v":0},null,null,null,null,null,null,null,null,null,null,null,null,null,null,null,null,null,null,null,null,null,1,1]
[null,null,"Zaslepení stávajícího vodovodu:2,00*2,00*2",null,8,null,null,null,null,null,null,null,"Zaslepení stávajícího vodovodu:2,00*2,00*2"]
[7,"151101301R00","Rozepření stěn pažení - příložné -  hl. do 4 m ","m3",8,null,{"$f":"E22*F22","v":0},4.6000000000000001E-4,{"$f":"E22*H22","v":3.6800000000000001E-3},0,{"$f":"E22*J22","v":0},null,null,null,2,null,null,null,null,null,null,null,null,null,null,null,1,1,1,null,null,null,null,null,null,null,null,null,null,null,null,null,null,null,null,null,null,null,null,null,null,1,{"$f":"IF(AZ22=1,G22,0)","v":0},{"$f":"IF(AZ22=2,G22,0)","v":0},{"$f":"IF(AZ22=3,G22,0)","v":0},{"$f":"IF(AZ22=4,G22,0)","v":0},{"$f":"IF(AZ22=5,G22,0)","v":0},null,null,null,null,null,null,null,null,null,null,null,null,null,null,null,null,null,null,null,null,null,1,1]
[null,null,"Zaslepení stávajícího vodovodu:2,00*2,00*2,00",null,8,null,null,null,null,null,null,null,"Zaslepení stávajícího vodovodu:2,00*2,00*2,00"]
[8,"151101311R00","Odstranění rozepření stěn - příložné - hl. do 4 m ","m3",8,null,{"$f":"E24*F24","v":0},0,{"$f":"E24*H24","v":0},0,{"$f":"E24*J24","v":0},null,null,null,2,null,null,null,null,null,null,null,null,null,null,null,1,1,1,null,null,null,null,null,null,null,null,null,null,null,null,null,null,null,null,null,null,null,null,null,null,1,{"$f":"IF(AZ24=1,G24,0)","v":0},{"$f":"IF(AZ24=2,G24,0)","v":0},{"$f":"IF(AZ24=3,G24,0)","v":0},{"$f":"IF(AZ24=4,G24,0)","v":0},{"$f":"IF(AZ24=5,G24,0)","v":0},null,null,null,null,null,null,null,null,null,null,null,null,null,null,null,null,null,null,null,null,null,1,1]
[null,null,"Zaslepení stávajícího vodovodu:2,00*2,00*2,00",null,8,null,null,null,null,null,null,null,"Zaslepení stávajícího vodovodu:2,00*2,00*2,00"]
[9,"162701105RSZ","Vodorovné přemístění výkopku z hor.1-7 na skládku zhotovitele","m3",0.96,null,{"$f":"E26*F26","v":0},0,{"$f":"E26*H26","v":0},0,{"$f":"E26*J26","v":0},null,null,null,2,null,null,null,null,null,null,null,null,null,null,null,1,1,1,null,null,null,null,null,null,null,null,null,null,null,null,null,null,null,null,null,null,null,null,null,null,1,{"$f":"IF(AZ26=1,G26,0)","v":0},{"$f":"IF(AZ26=2,G26,0)","v":0},{"$f":"IF(AZ26=3,G26,0)","v":0},{"$f":"IF(AZ26=4,G26,0)","v":0},{"$f":"IF(AZ26=5,G26,0)","v":0},null,null,null,null,null,null,null,null,null,null,null,null,null,null,null,null,null,null,null,null,null,1,1]
[null,null,"Výkopy:",null,0,null,null,null,null,null,null,null,"Výkopy:"]
[null,null,"Zaslepení stávajícího vodovodu:2,00*2,00*(2,00-0,20)",null,7.2,null,null,null,null,null,null,null,"Zaslepení stávajícího vodovodu:2,00*2,00*(2,00-0,20)"]
[null,null,"Odpočet zásypů zeminou:-6,2400",null,-6.24,null,null,null,null,null,null,null,"Odpočet zásypů zeminou:-6,2400"]
[10,"174101101R00","Zásyp jam, rýh, šachet se zhutněním ","m3",6.24,null,{"$f":"E30*F30","v":0},0,{"$f":"E30*H30","v":0},0,{"$f":"E30*J30","v":0},null,null,null,2,null,null,null,null,null,null,null,null,null,null,null,1,1,1,null,null,null,null,null,null,null,null,null,null,null,null,null,null,null,null,null,null,null,null,null,null,1,{"$f":"IF(AZ30=1,G30,0)","v":0},{"$f":"IF(AZ30=2,G30,0)","v":0},{"$f":"IF(AZ30=3,G30,0)","v":0},{"$f":"IF(AZ30=4,G30,0)","v":0},{"$f":"IF(AZ30=5,G30,0)","v":0},null,null,null,null,null,null,null,null,null,null,null,null,null,null,null,null,null,null,null,null,null,1,1]
[null,null,"Položka obsahuje strojní přemístění materiálu pro zásyp ze vzdálenosti do 10 m od okraje zásypu.",null,null,null,null,null,null,null,null,"Položka obsahuje strojní přemístění materiálu pro zásyp ze vzdálenosti do 10 m od okraje zásypu.",null,null,3]
[null,null,null,null,null,null,null,null,null,null,null,null,null,null,3]
[null,null,"Výkopy:",null,0,null,null,null,null,null,null,null,"Výkopy:"]
[null,null,"Zaslepení stávajícího vodovodu:2,00*2,00*(2,00-0,20)",null,7.2,null,null,null,null,null,null,null,"Zaslepení stávajícího vodovodu:2,00*2,00*(2,00-0,20)"]
[null,null,"Odpočet objemu lože, potrubí a obsypů:-2,00*0,80*(0,20+0,10+0,30)",null,-0.96,null,null,null,null,null,null,null,"Odpočet objemu lože, potrubí a obsypů:-2,00*0,80*(0,20+0,10+0,30)"]
[11,"175101101R00","Obsyp potrubí bez prohození sypaniny ","m3",0.64,null,{"$f":"E36*F36","v":0},0,{"$f":"E36*H36","v":0},0,{"$f":"E36*J36","v":0},null,null,null,2,null,null,null,null,null,null,null,null,null,null,null,1,1,1,null,null,null,null,null,null,null,null,null,null,null,null,null,null,null,null,null,null,null,null,null,null,1,{"$f":"IF(AZ36=1,G36,0)","v":0},{"$f":"IF(AZ36=2,G36,0)","v":0},{"$f":"IF(AZ36=3,G36,0)","v":0},{"$f":"IF(AZ36=4,G36,0)","v":0},{"$f":"IF(AZ36=5,G36,0)","v":0},null,null,null,null,null,null,null,null,null,null,null,null,null,null,null,null,null,null,null,null,null,1,1]
[null,null,"Zaslepení stávajícího vodovodu:2,00*0,80*(0,10+0,30)",null,0.64,null,null,null,null,null,null,null,"Zaslepení stávajícího vodovodu:2,00*0,80*(0,10+0,30)"]
[12,"199000002R00","Poplatek za skládku horniny 1- 7 č. dle katal. odpadů 17 05 04","m3",0.96,null,{"$f":"E38*F38","v":0},0,{"$f":"E38*H38","v":0},0,{"$f":"E38*J38","v":0},null,null,null,2,null,null,null,null,null,null,null,null,null,null,null,1,1,1,null,null,null,null,null,null,null,null,null,null,null,null,null,null,null,null,null,null,null,null,null,null,1,{"$f":"IF(AZ38=1,G38,0)","v":0},{"$f":"IF(AZ38=2,G38,0)","v":0},{"$f":"IF(AZ38=3,G38,0)","v":0},{"$f":"IF(AZ38=4,G38,0)","v":0},{"$f":"IF(AZ38=5,G38,0)","v":0},null,null,null,null,null,null,null,null,null,null,null,null,null,null,null,null,null,null,null,null,null,1,1]
[null,null,"Výkopy:",null,0,null,null,null,null,null,null,null,"Výkopy:"]
[null,null,"Zaslepení stávajícího vodovodu:2,00*2,00*(2,00-0,20)",null,7.2,null,null,null,null,null,null,null,"Zaslepení stávajícího vodovodu:2,00*2,00*(2,00-0,20)"]
[null,null,"Odpočet zásypů zeminou:-6,2400",null,-6.24,null,null,null,null,null,null,null,"Odpočet zásypů zeminou:-6,2400"]
[13,"58337309.R","Štěrkopísek frakce 0-4 tř.B","t",1.2753000000000001,null,{"$f":"E42*F42","v":0},1,{"$f":"E42*H42","v":1.2753000000000001},null,{"$f":"E42*J42","v":0},null,null,null,2,null,null,null,null,null,null,null,null,null,null,null,3,1,"58337309.R",null,null,null,null,null,null,null,null,null,null,null,null,null,null,null,null,null,null,null,null,null,null,1,{"$f":"IF(AZ42=1,G42,0)","v":0},{"$f":"IF(AZ42=2,G42,0)","v":0},{"$f":"IF(AZ42=3,G42,0)","v":0},{"$f":"IF(AZ42=4,G42,0)","v":0},{"$f":"IF(AZ42=5,G42,0)","v":0},null,null,null,null,null,null,null,null,null,null,null,null,null,null,null,null,null,null,null,null,null,3,1]
[null,null,"Zaslepení stávajícího vodovodu:2,00*0,80*(0,10+0,30)*1,973*1,01",null,1.2753000000000001,null,null,null,null,null,null,null,"Zaslepení stávajícího vodovodu:2,00*0,80*(0,10+0,30)*1,973*1,01"]
[null,"Celkem za","1 Zemní práce",null,null,null,{"$f":"SUM(G7:G43)","v":0},null,{"$f":"SUM(I7:I43)","v":1.2845800000000001},null,{"$f":"SUM(K7:K43)","v":0},null,null,null,4,null,null,null,null,null,null,null,null,null,null,null,null,null,null,null,null,null,null,null,null,null,null,null,null,null,null,null,null,null,null,null,null,null,null,null,null,null,{"$f":"SUM(BA7:BA43)","v":0},{"$f":"SUM(BB7:BB43)","v":0},{"$f":"SUM(BC7:BC43)","v":0},{"$f":"SUM(BD7:BD43)","v":0},{"$f":"SUM(BE7:BE43)","v":0}]
["Díl:","45","Podkladní a vedlejší konstrukce",null,null,null,null,null,null,null,null,null,null,null,1]
[14,"451572111R00","Lože pod potrubí z kameniva těženého 0 - 4 mm ","m3",0.32,null,{"$f":"E46*F46","v":0},0.43051,{"$f":"E46*H46","v":0.1377632},0,{"$f":"E46*J46","v":0},null,null,null,2,null,null,null,null,null,null,null,null,null,null,null,1,1,1,null,null,null,null,null,null,null,null,null,null,null,null,null,null,null,null,null,null,null,null,null,null,1,{"$f":"IF(AZ46=1,G46,0)","v":0},{"$f":"IF(AZ46=2,G46,0)","v":0},{"$f":"IF(AZ46=3,G46,0)","v":0},{"$f":"IF(AZ46=4,G46,0)","v":0},{"$f":"IF(AZ46=5,G46,0)","v":0},null,null,null,null,null,null,null,null,null,null,null,null,null,null,null,null,null,null,null,null,null,1,1]
[null,null,"Zaslepení stávajícího vodovodu:2,00*0,80*0,20",null,0.32,null,null,null,null,null,null,null,"Zaslepení stávajícího vodovodu:2,00*0,80*0,20"]
[15,"452313141R00","Bloky pro potrubí z betonu C 16/20 vč. bednění ","m3",2.5000000000000001E-2,null,{"$f":"E48*F48","v":0},2.5,{"$f":"E48*H48","v":6.25E-2},0,{"$f":"E48*J48","v":0},null,null,null,2,null,null,null,null,null,null,null,null,null,null,null,1,1,1,null,null,null,null,null,null,null,null,null,null,null,null,null,null,null,null,null,null,null,null,null,null,1,{"$f":"IF(AZ48=1,G48,0)","v":0},{"$f":"IF(AZ48=2,G48,0)","v":0},{"$f":"IF(AZ48=3,G48,0)","v":0},{"$f":"IF(AZ48=4,G48,0)","v":0},{"$f":"IF(AZ48=5,G48,0)","v":0},null,null,null,null,null,null,null,null,null,null,null,null,null,null,null,null,null,null,null,null,null,1,1]
[null,null,"Zaslepení stávajícího vodovodu - Blok pro PPL DN80:0,025",null,2.5000000000000001E-2,null,null,null,null,null,null,null,"Zaslepení stávajícího vodovodu - Blok pro PPL DN80:0,025"]
[null,"Celkem za","45 Podkladní a vedlejší konstrukce",null,null,null,{"$f":"SUM(G45:G49)","v":0},null,{"$f":"SUM(I45:I49)","v":0.2002632},null,{"$f":"SUM(K45:K49)","v":0},null,null,null,4,null,null,null,null,null,null,null,null,null,null,null,null,null,null,null,null,null,null,null,null,null,null,null,null,null,null,null,null,null,null,null,null,null,null,null,null,null,{"$f":"SUM(BA45:BA49)","v":0},{"$f":"SUM(BB45:BB49)","v":0},{"$f":"SUM(BC45:BC49)","v":0},{"$f":"SUM(BD45:BD49)","v":0},{"$f":"SUM(BE45:BE49)","v":0}]
["Díl:","8","Trubní vedení",null,null,null,null,null,null,null,null,null,null,null,1]
[16,"850265121R00","Výřez nebo výsek na potrubí litinovém DN 100 ","kus",1,null,{"$f":"E52*F52","v":0},0,{"$f":"E52*H52","v":0},0,{"$f":"E52*J52","v":0},null,null,null,2,null,null,null,null,null,null,null,null,null,null,null,1,1,1,null,null,null,null,null,null,null,null,null,null,null,null,null,null,null,null,null,null,null,null,null,null,1,{"$f":"IF(AZ52=1,G52,0)","v":0},{"$f":"IF(AZ52=2,G52,0)","v":0},{"$f":"IF(AZ52=3,G52,0)","v":0},{"$f":"IF(AZ52=4,G52,0)","v":0},{"$f":"IF(AZ52=5,G52,0)","v":0},null,null,null,null,null,null,null,null,null,null,null,null,null,null,null,null,null,null,null,null,null,1,1]
[null,null,"Položky výřezu nebo výseku na potrubí z trub litinových tlakových jsou určeny pro dva řezy nebo seky prováděné na potrubí dodatečně. V položkách jsou zakalkulovány náklady na",null,null,null,null,null,null,null,null,"Položky výřezu nebo výseku na potrubí z trub litinových tlakových jsou určeny pro dva řezy nebo seky prováděné na potrubí dodatečně. V položkách jsou zakalkulovány náklady na",null,null,3]
[null,null,"- ohlášení uzavírání vody",null,null,null,null,null,null,null,null,"- ohlášení uzavírání vody",null,null,3]
[null,null,"- uzavření a otevření šoupat",null,null,null,null,null,null,null,null,"- uzavření a otevření šoupat",null,null,3]
[null,null,"- vypuštění a napuštění vody",null,null,null,null,null,null,null,null,"- vypuštění a napuštění vody",null,null,3]
[null,null,"- odvzdušnění potrubí",null,null,null,null,null,null,null,null,"- odvzdušnění potrubí",null,null,3]
[null,null,"- strojní nebo ruční výřez potrubí",null,null,null,null,null,null,null,null,"- strojní nebo ruční výřez potrubí",null,null,3]
[null,null,"- nutné úpravy výkopu v prostoru provádění",null,null,null,null,null,null,null,null,"- nutné úpravy výkopu v prostoru provádění",null,null,3]
[null,null,"- montáž tvarovky",null,null,null,null,null,null,null,null,"- montáž tvarovky",null,null,3]
[null,null,"Zaslepení stávajícího vodovodu TLT DN100:1",null,1,null,null,null,null,null,null,null,"Zaslepení stávajícího vodovodu TLT DN100:1"]
[17,"857242121R00","Montáž tvarovek litin. jednoos.přír. výkop DN 80 včetně nerezových spoj. prvků a obandážování spoje","kus",1,null,{"$f":"E62*F62","v":0},2.2000000000000001E-4,{"$f":"E62*H62","v":2.2000000000000001E-4},0,{"$f":"E62*J62","v":0},null,null,null,2,null,null,null,null,null,null,null,null,null,null,null,1,1,1,null,null,null,null,null,null,null,null,null,null,null,null,null,null,null,null,null,null,null,null,null,null,1,{"$f":"IF(AZ62=1,G62,0)","v":0},{"$f":"IF(AZ62=2,G62,0)","v":0},{"$f":"IF(AZ62=3,G62,0)","v":0},{"$f":"IF(AZ62=4,G62,0)","v":0},{"$f":"IF(AZ62=5,G62,0)","v":0},null,null,null,null,null,null,null,null,null,null,null,null,null,null,null,null,null,null,null,null,null,1,1]
[null,null,"Položka je určena pro montáž litinových tvarovek na potrubí litinovém tlakovém přírubovém jednoosých v otevřeném výkopu, v otevřeném kanálu nebo v šachtě.",null,null,null,null,null,null,null,null,"Položka je určena pro montáž litinových tvarovek na potrubí litinovém tlakovém přírubovém jednoosých v otevřeném výkopu, v otevřeném kanálu nebo v šachtě.",null,null,3]
[null,null,"Součástí položky je i dodávka nerezových spojovacích prvků (šrouby, podložky, matky) a kompletního obandážování spojů. ",null,null,null,null,null,null,null,null,"Součástí položky je i dodávka nerezových spojovacích prvků (šrouby, podložky, matky) a kompletního obandážování spojů. ",null,null,3]
[null,null,"Zaslepení stávajícího vodovodu TLT DN100:",null,0,null,null,null,null,null,null,null,"Zaslepení stávajícího vodovodu TLT DN100:"]
[null,null,"PPL DN80:1",null,1,null,null,null,null,null,null,null,"PPL DN80:1"]
[18,"857262121R00","Montáž tvarovek litin. jednoos. přír. výkop DN 100 včetně nerezových spoj. prvků a obandážování spoje","kus",1,null,{"$f":"E67*F67","v":0},4.0999999999999999E-4,{"$f":"E67*H67","v":4.0999999999999999E-4},0,{"$f":"E67*J67","v":0},null,null,null,2,null,null,null,null,null,null,null,null,null,null,null,1,1,1,null,null,null,null,null,null,null,null,null,null,null,null,null,null,null,null,null,null,null,null,null,null,1,{"$f":"IF(AZ67=1,G67,0)","v":0},{"$f":"IF(AZ67=2,G67,0)","v":0},{"$f":"IF(AZ67=3,G67,0)","v":0},{"$f":"IF(AZ67=4,G67,0)","v":0},{"$f":"IF(AZ67=5,G67,0)","v":0},null,null,null,null,null,null,null,null,null,null,null,null,null,null,null,null,null,null,null,null,null,1,1]
[null,null,"Položka je určena pro montáž litinových tvarovek na potrubí litinovém tlakovém přírubovém jednoosých v otevřeném výkopu, v otevřeném kanálu nebo v šachtě.",null,null,null,null,null,null,null,null,"Položka je určena pro montáž litinových tvarovek na potrubí litinovém tlakovém přírubovém jednoosých v otevřeném výkopu, v otevřeném kanálu nebo v šachtě.",null,null,3]
[null,null,"Součástí položky je i dodávka nerezových spojovacích prvků (šrouby, podložky, matky) a kompletního obandážování spojů. ",null,null,null,null,null,null,null,null,"Součástí položky je i dodávka nerezových spojovacích prvků (šrouby, podložky, matky) a kompletního obandážování spojů. ",null,null,3]
[null,null,"Zaslepení stávajícího vodovodu TLT DN100:",null,0,null,null,null,null,null,null,null,"Zaslepení stávajícího vodovodu TLT DN100:"]
[null,null,"Synoflex s přírubou redukovaný DN100/80 (100/85-105):1",null,1,null,null,null,null,null,null,null,"Synoflex s přírubou redukovaný DN100/80 (100/85-105):1"]
[19,"891241111R00","Montáž vodovodních šoupátek ve výkopu DN 80 včetně nerezových spoj. prvků a obandážování spoje","kus",1,null,{"$f":"E72*F72","v":0},2.2000000000000001E-4,{"$f":"E72*H72","v":2.2000000000000001E-4},0,{"$f":"E72*J72","v":0},null,null,null,2,null,null,null,null,null,null,null,null,null,null,null,1,1,1,null,null,null,null,null,null,null,null,null,null,null,null,null,null,null,null,null,null,null,null,null,null,1,{"$f":"IF(AZ72=1,G72,0)","v":0},{"$f":"IF(AZ72=2,G72,0)","v":0},{"$f":"IF(AZ72=3,G72,0)","v":0},{"$f":"IF(AZ72=4,G72,0)","v":0},{"$f":"IF(AZ72=5,G72,0)","v":0},null,null,null,null,null,null,null,null,null,null,null,null,null,null,null,null,null,null,null,null,null,1,1]
[null,null,"Položka je určena pro montáž vodovodních šoupátek v otevřeném výkopu nebo v šachtách s osazením zemní soupravy (bez poklopů). V položce jsou zakalkulovány i náklady na vytvoření otvorů ve stropech šachet pro prostup zemních souprav šoupátek.",null,null,null,null,null,null,null,null,"Položka je určena pro montáž vodovodních šoupátek v otevřeném výkopu nebo v šachtách s osazením zemní soupravy (bez poklopů). V položce jsou zakalkulovány i náklady na vytvoření otvorů ve stropech šachet pro prostup zemních souprav šoupátek.",null,null,3]
[null,null,"Součástí položky je i dodávka nerezových spojovacích prvků (šrouby, podložky, matky) a kompletního obandážování spojů. ",null,null,null,null,null,null,null,null,"Součástí položky je i dodávka nerezových spojovacích prvků (šrouby, podložky, matky) a kompletního obandážování spojů. ",null,null,3]
[null,null,"Zaslepení stávajícího vodovodu TLT DN100:",null,0,null,null,null,null,null,null,null,"Zaslepení stávajícího vodovodu TLT DN100:"]
[null,null,"Šoupě DN80:1",null,1,null,null,null,null,null,null,null,"Šoupě DN80:1"]
[20,"891247111R00","Montáž hydrantů podzemních DN 80 včetně nerezových spoj. prvků a obandážování spoje","kus",1,null,{"$f":"E77*F77","v":0},1.1E-4,{"$f":"E77*H77","v":1.1E-4},0,{"$f":"E77*J77","v":0},null,null,null,2,null,null,null,null,null,null,null,null,null,null,null,1,1,1,null,null,null,null,null,null,null,null,null,null,null,null,null,null,null,null,null,null,null,null,null,null,1,{"$f":"IF(AZ77=1,G77,0)","v":0},{"$f":"IF(AZ77=2,G77,0)","v":0},{"$f":"IF(AZ77=3,G77,0)","v":0},{"$f":"IF(AZ77=4,G77,0)","v":0},{"$f":"IF(AZ77=5,G77,0)","v":0},null,null,null,null,null,null,null,null,null,null,null,null,null,null,null,null,null,null,null,null,null,1,1]
[null,null,"Položka je určena pro montáž hydrantů podzemních (bez osazení poklopů) na potrubí včetně drenážního obalu.",null,null,null,null,null,null,null,null,"Položka je určena pro montáž hydrantů podzemních (bez osazení poklopů) na potrubí včetně drenážního obalu.",null,null,3]
[null,null,"Součástí položky je i dodávka nerezových spojovacích prvků (šrouby, podložky, matky) a kompletního obandážování spojů. ",null,null,null,null,null,null,null,null,"Součástí položky je i dodávka nerezových spojovacích prvků (šrouby, podložky, matky) a kompletního obandážování spojů. ",null,null,3]
[null,null,"Zaslepení stávajícího vodovodu TLT DN100:",null,0,null,null,null,null,null,null,null,"Zaslepení stávajícího vodovodu TLT DN100:"]
[null,null,"Hp DN80/1,5:1",null,1,null,null,null,null,null,null,null,"Hp DN80/1,5:1"]
[21,"894421111RT1","Osazení betonových dílců šachet skruže rovné, na kroužek, do 0,5 t","kus",1,null,{"$f":"E82*F82","v":0},0,{"$f":"E82*H82","v":0},0,{"$f":"E82*J82","v":0},null,null,null,2,null,null,null,null,null,null,null,null,null,null,null,1,1,1,null,null,null,null,null,null,null,null,null,null,null,null,null,null,null,null,null,null,null,null,null,null,1,{"$f":"IF(AZ82=1,G82,0)","v":0},{"$f":"IF(AZ82=2,G82,0)","v":0},{"$f":"IF(AZ82=3,G82,0)","v":0},{"$f":"IF(AZ82=4,G82,0)","v":0},{"$f":"IF(AZ82=5,G82,0)","v":0},null,null,null,null,null,null,null,null,null,null,null,null,null,null,null,null,null,null,null,null,null,1,1]
[null,null,"Položka je určena pro osazení betonových dílců šachet dle DIN 4034, skruže rovné na kroužek, hmotnost do 0,5 t.",null,null,null,null,null,null,null,null,"Položka je určena pro osazení betonových dílců šachet dle DIN 4034, skruže rovné na kroužek, hmotnost do 0,5 t.",null,null,3]
[null,null,"V položce nejsou zakalkulovány náklady na dodání betonových dílců; dílce se oceňují ve specifikaci.",null,null,null,null,null,null,null,null,"V položce nejsou zakalkulovány náklady na dodání betonových dílců; dílce se oceňují ve specifikaci.",null,null,3]
[null,null,"Zaslepení stávajícího vodovodu TLT DN100:",null,0,null,null,null,null,null,null,null,"Zaslepení stávajícího vodovodu TLT DN100:"]
[null,null,"Skruž H250 (ochrana Hp):1",null,1,null,null,null,null,null,null,null,"Skruž H250 (ochrana Hp):1"]
[22,"899401112R00","Osazení poklopů litinových šoupátkových ","kus",1,null,{"$f":"E87*F87","v":0},0.11178,{"$f":"E87*H87","v":0.11178},0,{"$f":"E87*J87","v":0},null,null,null,2,null,null,null,null,null,null,null,null,null,null,null,1,0,0,null,null,null,null,null,null,null,null,null,null,null,null,null,null,null,null,null,null,null,null,null,null,1,{"$f":"IF(AZ87=1,G87,0)","v":0},{"$f":"IF(AZ87=2,G87,0)","v":0},{"$f":"IF(AZ87=3,G87,0)","v":0},{"$f":"IF(AZ87=4,G87,0)","v":0},{"$f":"IF(AZ87=5,G87,0)","v":0},null,null,null,null,null,null,null,null,null,null,null,null,null,null,null,null,null,null,null,null,null,1,0]
[null,null,"V položkách osazení poklopů jsou zakalkulovány i náklady na jejich podezdění. ",null,null,null,null,null,null,null,null,"V položkách osazení poklopů jsou zakalkulovány i náklady na jejich podezdění. ",null,null,3]
[null,null,"Zaslepení stávajícího vodovodu TLT DN100:",null,0,null,null,null,null,null,null,null,"Zaslepení stávajícího vodovodu TLT DN100:"]
[null,null,"Pro Šoupě DN80:1",null,1,null,null,null,null,null,null,null,"Pro Šoupě DN80:1"]
[23,"899401113R00","Osazení poklopů litinových hydrantových ","kus",1,null,{"$f":"E91*F91","v":0},0.29823,{"$f":"E91*H91","v":0.29823},0,{"$f":"E91*J91","v":0},null,null,null,2,null,null,null,null,null,null,null,null,null,null,null,1,1,1,null,null,null,null,null,null,null,null,null,null,null,null,null,null,null,null,null,null,null,null,null,null,1,{"$f":"IF(AZ91=1,G91,0)","v":0},{"$f":"IF(AZ91=2,G91,0)","v":0},{"$f":"IF(AZ91=3,G91,0)","v":0},{"$f":"IF(AZ91=4,G91,0)","v":0},{"$f":"IF(AZ91=5,G91,0)","v":0},null,null,null,null,null,null,null,null,null,null,null,null,null,null,null,null,null,null,null,null,null,1,1]
[null,null,"V položkách osazení poklopů jsou zakalkulovány i náklady na jejich podezdění. ",null,null,null,null,null,null,null,null,"V položkách osazení poklopů jsou zakalkulovány i náklady na jejich podezdění. ",null,null,3]
[null,null,"Zaslepení stávajícího vodovodu TLT DN100:",null,0,null,null,null,null,null,null,null,"Zaslepení stávajícího vodovodu TLT DN100:"]
[null,null,"Pro Hp DN80/1,5:1",null,1,null,null,null,null,null,null,null,"Pro Hp DN80/1,5:1"]
[24,"899713111RRX","Orientační tabulky na sloupku ocelovém, betonovém ","kus",1,null,{"$f":"E95*F95","v":0},2.4000000000000001E-4,{"$f":"E95*H95","v":2.4000000000000001E-4},0,{"$f":"E95*J95","v":0},null,null,null,2,null,null,null,null,null,null,null,null,null,null,null,1,1,1,null,null,null,null,null,null,null,null,null,null,null,null,null,null,null,null,null,null,null,null,null,null,1,{"$f":"IF(AZ95=1,G95,0)","v":0},{"$f":"IF(AZ95=2,G95,0)","v":0},{"$f":"IF(AZ95=3,G95,0)","v":0},{"$f":"IF(AZ95=4,G95,0)","v":0},{"$f":"IF(AZ95=5,G95,0)","v":0},null,null,null,null,null,null,null,null,null,null,null,null,null,null,null,null,null,null,null,null,null,1,1]
[null,null,"Položka platí pro orientační tabulky na vodovodních a kanalizačních řadech. V položce jsou zakalkulovány náklady na dodání a připevnění tabulky a na osazení sloupku. V položce jsou zakalkulovány náklady na zemní práce a na dodání sloupků (betonových nebo ocelových s betonovými patkami)",null,null,null,null,null,null,null,null,"Položka platí pro orientační tabulky na vodovodních a kanalizačních řadech. V položce jsou zakalkulovány náklady na dodání a připevnění tabulky a na osazení sloupku. V položce jsou zakalkulovány náklady na zemní práce a na dodání sloupků (betonových nebo ocelových s betonovými patkami)",null,null,3]
[null,null,"Zaslepení stávajícího vodovodu TLT DN100:",null,0,null,null,null,null,null,null,null,"Zaslepení stávajícího vodovodu TLT DN100:"]
[null,null,"Pro Šoupě DN80 a HP DN80/1,5:1",null,1,null,null,null,null,null,null,null,"Pro Šoupě DN80 a HP DN80/1,5:1"]
[25,"899721112R00","Fólie výstražná z PVC bílá, šířka 30 cm ","m",2,null,{"$f":"E99*F99","v":0},0,{"$f":"E99*H99","v":0},0,{"$f":"E99*J99","v":0},null,null,null,2,null,null,null,null,null,null,null,null,null,null,null,1,1,1,null,null,null,null,null,null,null,null,null,null,null,null,null,null,null,null,null,null,null,null,null,null,1,{"$f":"IF(AZ99=1,G99,0)","v":0},{"$f":"IF(AZ99=2,G99,0)","v":0},{"$f":"IF(AZ99=3,G99,0)","v":0},{"$f":"IF(AZ99=4,G99,0)","v":0},{"$f":"IF(AZ99=5,G99,0)","v":0},null,null,null,null,null,null,null,null,null,null,null,null,null,null,null,null,null,null,null,null,null,1,1]
[null,null,"Zaslepení stávajícího vodovodu TLT DN100:",null,0,null,null,null,null,null,null,null,"Zaslepení stávajícího vodovodu TLT DN100:"]
[null,null,"Pro Šoupě DN80 a HP DN80/1,5:2,00",null,2,null,null,null,null,null,null,null,"Pro Šoupě DN80 a HP DN80/1,5:2,00"]
[26,"899731114R00","Vodič signalizační CYY 6 mm2 ","m",3,null,{"$f":"E102*F102","v":0},8.0000000000000007E-5,{"$f":"E102*H102","v":2.4000000000000003E-4},0,{"$f":"E102*J102","v":0},null,null,null,2,null,null,null,null,null,null,null,null,null,null,null,1,1,1,null,null,null,null,null,null,null,null,null,null,null,null,null,null,null,null,null,null,null,null,null,null,1,{"$f":"IF(AZ102=1,G102,0)","v":0},{"$f":"IF(AZ102=2,G102,0)","v":0},{"$f":"IF(AZ102=3,G102,0)","v":0},{"$f":"IF(AZ102=4,G102,0)","v":0},{"$f":"IF(AZ102=5,G102,0)","v":0},null,null,null,null,null,null,null,null,null,null,null,null,null,null,null,null,null,null,null,null,null,1,1]
[null,null,"Součástí položky je zajištění proměření vodiče a výchozí zevize.",null,null,null,null,null,null,null,null,"Součástí položky je zajištění proměření vodiče a výchozí zevize.",null,null,3]
[null,null,"Zaslepení stávajícího vodovodu TLT DN100:",null,0,null,null,null,null,null,null,null,"Zaslepení stávajícího vodovodu TLT DN100:"]
[null,null,"Pro Šoupě DN80 a HP DN80/1,5:3,00",null,3,null,null,null,null,null,null,null,"Pro Šoupě DN80 a HP DN80/1,5:3,00"]
[27,"42201750.R","Poklop uliční šoupátkový 1750  - voda","kus",1,null,{"$f":"E106*F106","v":0},1.1299999999999999E-2,{"$f":"E106*H106","v":1.1299999999999999E-2},null,{"$f":"E106*J106","v":0},null,null,null,2,null,null,null,null,null,null,null,null,null,null,null,3,1,"42201750.R",null,null,null,null,null,null,null,null,null,null,null,null,null,null,null,null,null,null,null,null,null,null,1,{"$f":"IF(AZ106=1,G106,0)","v":0},{"$f":"IF(AZ106=2,G106,0)","v":0},{"$f":"IF(AZ106=3,G106,0)","v":0},{"$f":"IF(AZ106=4,G106,0)","v":0},{"$f":"IF(AZ106=5,G106,0)","v":0},null,null,null,null,null,null,null,null,null,null,null,null,null,null,null,null,null,null,null,null,null,3,1]
[null,null,"Zaslepení stávajícího vodovodu TLT DN100:",null,0,null,null,null,null,null,null,null,"Zaslepení stávajícího vodovodu TLT DN100:"]
[null,null,"Pro Šoupě DN80:1",null,1,null,null,null,null,null,null,null,"Pro Šoupě DN80:1"]
[28,"42201950.R","Poklop podz. hydrantů č.1950","kus",1,null,{"$f":"E109*F109","v":0},1.1299999999999999E-2,{"$f":"E109*H109","v":1.1299999999999999E-2},null,{"$f":"E109*J109","v":0},null,null,null,2,null,null,null,null,null,null,null,null,null,null,null,3,1,"42201950.R",null,null,null,null,null,null,null,null,null,null,null,null,null,null,null,null,null,null,null,null,null,null,1,{"$f":"IF(AZ109=1,G109,0)","v":0},{"$f":"IF(AZ109=2,G109,0)","v":0},{"$f":"IF(AZ109=3,G109,0)","v":0},{"$f":"IF(AZ109=4,G109,0)","v":0},{"$f":"IF(AZ109=5,G109,0)","v":0},null,null,null,null,null,null,null,null,null,null,null,null,null,null,null,null,null,null,null,null,null,3,1]
[null,null,"Zaslepení stávajícího vodovodu TLT DN100:",null,0,null,null,null,null,null,null,null,"Zaslepení stávajícího vodovodu TLT DN100:"]
[null,null,"Pro Hp DN80/1,5:1",null,1,null,null,null,null,null,null,null,"Pro Hp DN80/1,5:1"]
[29,"42203481.R","Podkladová deska č. 3481","kus",1,null,{"$f":"E112*F112","v":0},5.9999999999999995E-4,{"$f":"E112*H112","v":5.9999999999999995E-4},null,{"$f":"E112*J112","v":0},null,null,null,2,null,null,null,null,null,null,null,null,null,null,null,3,1,"42203481.R",null,null,null,null,null,null,null,null,null,null,null,null,null,null,null,null,null,null,null,null,null,null,1,{"$f":"IF(AZ112=1,G112,0)","v":0},{"$f":"IF(AZ112=2,G112,0)","v":0},{"$f":"IF(AZ112=3,G112,0)","v":0},{"$f":"IF(AZ112=4,G112,0)","v":0},{"$f":"IF(AZ112=5,G112,0)","v":0},null,null,null,null,null,null,null,null,null,null,null,null,null,null,null,null,null,null,null,null,null,3,1]
[null,null,null,null,null,null,null,null,null,null,null,null,null,null,3]
[null,null,"Zaslepení stávajícího vodovodu TLT DN100:",null,0,null,null,null,null,null,null,null,"Zaslepení stávajícího vodovodu TLT DN100:"]
[null,null,"Pro Šoupě DN80:1",null,1,null,null,null,null,null,null,null,"Pro Šoupě DN80:1"]
[30,"42203482.R","Podkladová deska č. 3482","kus",1,null,{"$f":"E116*F116","v":0},5.9999999999999995E-4,{"$f":"E116*H116","v":5.9999999999999995E-4},null,{"$f":"E116*J116","v":0},null,null,null,2,null,null,null,null,null,null,null,null,null,null,null,3,1,"42203482.R",null,null,null,null,null,null,null,null,null,null,null,null,null,null,null,null,null,null,null,null,null,null,1,{"$f":"IF(AZ116=1,G116,0)","v":0},{"$f":"IF(AZ116=2,G116,0)","v":0},{"$f":"IF(AZ116=3,G116,0)","v":0},{"$f":"IF(AZ116=4,G116,0)","v":0},{"$f":"IF(AZ116=5,G116,0)","v":0},null,null,null,null,null,null,null,null,null,null,null,null,null,null,null,null,null,null,null,null,null,3,1]
[null,null,null,null,null,null,null,null,null,null,null,null,null,null,3]
[null,null,"Zaslepení stávajícího vodovodu TLT DN100:",null,0,null,null,null,null,null,null,null,"Zaslepení stávajícího vodovodu TLT DN100:"]
[null,null,"Pro Hp DN80/1,5:1",null,1,null,null,null,null,null,null,null,"Pro Hp DN80/1,5:1"]
[31,"42209999.R","Drenážní obal k hydrantům","kus",1,null,{"$f":"E120*F120","v":0},4.7999999999999996E-3,{"$f":"E120*H120","v":4.7999999999999996E-3},null,{"$f":"E120*J120","v":0},null,null,null,2,null,null,null,null,null,null,null,null,null,null,null,3,1,"42209999.R",null,null,null,null,null,null,null,null,null,null,null,null,null,null,null,null,null,null,null,null,null,null,1,{"$f":"IF(AZ120=1,G120,0)","v":0},{"$f":"IF(AZ120=2,G120,0)","v":0},{"$f":"IF(AZ120=3,G120,0)","v":0},{"$f":"IF(AZ120=4,G120,0)","v":0},{"$f":"IF(AZ120=5,G120,0)","v":0},null,null,null,null,null,null,null,null,null,null,null,null,null,null,null,null,null,null,null,null,null,3,1]
[null,null,"Zaslepení stávajícího vodovodu TLT DN100:",null,0,null,null,null,null,null,null,null,"Zaslepení stávajícího vodovodu TLT DN100:"]
[null,null,"Pro Hp DN80/1,5:1",null,1,null,null,null,null,null,null,null,"Pro Hp DN80/1,5:1"]
[32,"42228310.R3","Šoupátko 4000E3 DN 80 přírubové, voda PN16 krátké L=180 mm","kus",1,null,{"$f":"E123*F123","v":0},1.6500000000000001E-2,{"$f":"E123*H123","v":1.6500000000000001E-2},null,{"$f":"E123*J123","v":0},null,null,null,2,null,null,null,null,null,null,null,null,null,null,null,3,1,"42228310.R3",null,null,null,null,null,null,null,null,null,null,null,null,null,null,null,null,null,null,null,null,null,null,1,{"$f":"IF(AZ123=1,G123,0)","v":0},{"$f":"IF(AZ123=2,G123,0)","v":0},{"$f":"IF(AZ123=3,G123,0)","v":0},{"$f":"IF(AZ123=4,G123,0)","v":0},{"$f":"IF(AZ123=5,G123,0)","v":0},null,null,null,null,null,null,null,null,null,null,null,null,null,null,null,null,null,null,null,null,null,3,1]
[null,null,"Šoupátko přírubové krkové - měkcetěsnící klínové šoupátko s hladkým a volným průtokovým kanálem",null,null,null,null,null,null,null,null,"Šoupátko přírubové krkové - měkcetěsnící klínové šoupátko s hladkým a volným průtokovým kanálem",null,null,3]
[null,null,"č. 4000E3 krátké L=180 mm",null,null,null,null,null,null,null,null,"č. 4000E3 krátké L=180 mm",null,null,3]
[null,null,"PN 16",null,null,null,null,null,null,null,null,"PN 16",null,null,3]
[null,null,"DN 80",null,null,null,null,null,null,null,null,"DN 80",null,null,3]
[null,null,"těleso a víko: tvárná litina GGG 400 - DIN 1693",null,null,null,null,null,null,null,null,"těleso a víko: tvárná litina GGG 400 - DIN 1693",null,null,3]
[null,null,"medium: pitná voda, neagresivní odpadní voda",null,null,null,null,null,null,null,null,"medium: pitná voda, neagresivní odpadní voda",null,null,3]
[null,null,"Zaslepení stávajícího vodovodu TLT DN100:",null,0,null,null,null,null,null,null,null,"Zaslepení stávajícího vodovodu TLT DN100:"]
[null,null,"Šoupě DN80:1",null,1,null,null,null,null,null,null,null,"Šoupě DN80:1"]
[33,"422737412.R","Hydrant podzemní DUO K240, DN80/1,5 m","kus",1,null,{"$f":"E132*F132","v":0},3.95E-2,{"$f":"E132*H132","v":3.95E-2},null,{"$f":"E132*J132","v":0},null,null,null,2,null,null,null,null,null,null,null,null,null,null,null,3,1,"422737412.R",null,null,null,null,null,null,null,null,null,null,null,null,null,null,null,null,null,null,null,null,null,null,1,{"$f":"IF(AZ132=1,G132,0)","v":0},{"$f":"IF(AZ132=2,G132,0)","v":0},{"$f":"IF(AZ132=3,G132,0)","v":0},{"$f":"IF(AZ132=4,G132,0)","v":0},{"$f":"IF(AZ132=5,G132,0)","v":0},null,null,null,null,null,null,null,null,null,null,null,null,null,null,null,null,null,null,null,null,null,3,1]
[null,null,"Zaslepení stávajícího vodovodu TLT DN100:",null,0,null,null,null,null,null,null,null,"Zaslepení stávajícího vodovodu TLT DN100:"]
[null,null,"Hp DN80/1,5:1",null,1,null,null,null,null,null,null,null,"Hp DN80/1,5:1"]
[34,"42293250.R","Souprava zemní tel.9502E2/E3 DN50 -100, 1,3-1,8m","kus",1,null,{"$f":"E135*F135","v":0},7.3000000000000001E-3,{"$f":"E135*H135","v":7.3000000000000001E-3},null,{"$f":"E135*J135","v":0},null,null,null,2,null,null,null,null,null,null,null,null,null,null,null,3,1,"42293250.R",null,null,null,null,null,null,null,null,null,null,null,null,null,null,null,null,null,null,null,null,null,null,1,{"$f":"IF(AZ135=1,G135,0)","v":0},{"$f":"IF(AZ135=2,G135,0)","v":0},{"$f":"IF(AZ135=3,G135,0)","v":0},{"$f":"IF(AZ135=4,G135,0)","v":0},{"$f":"IF(AZ135=5,G135,0)","v":0},null,null,null,null,null,null,null,null,null,null,null,null,null,null,null,null,null,null,null,null,null,3,1]
[null,null,"Zaslepení stávajícího vodovodu TLT DN100:",null,0,null,null,null,null,null,null,null,"Zaslepení stávajícího vodovodu TLT DN100:"]
[null,null,"Pro Šoupě DN80:1",null,1,null,null,null,null,null,null,null,"Pro Šoupě DN80:1"]
[35,"422935322.R","Spojka Synoflex s přírubou redukovaný 7994,","kus",1,null,{"$f":"E138*F138","v":0},7.1000000000000004E-3,{"$f":"E138*H138","v":7.1000000000000004E-3},null,{"$f":"E138*J138","v":0},null,null,null,2,null,null,null,null,null,null,null,null,null,null,null,3,1,"422935322.R",null,null,null,null,null,null,null,null,null,null,null,null,null,null,null,null,null,null,null,null,null,null,1,{"$f":"IF(AZ138=1,G138,0)","v":0},{"$f":"IF(AZ138=2,G138,0)","v":0},{"$f":"IF(AZ138=3,G138,0)","v":0},{"$f":"IF(AZ138=4,G138,0)","v":0},{"$f":"IF(AZ138=5,G138,0)","v":0},null,null,null,null,null,null,null,null,null,null,null,null,null,null,null,null,null,null,null,null,null,3,1]
[null,null,"Spojka s přírubou redukovaná jištěná proti posunu pro všechny standardní materiály potrubí s velkým rozsahem vnějších průměrů potrubí a úhlovým vychýlením",null,null,null,null,null,null,null,null,"Spojka s přírubou redukovaná jištěná proti posunu pro všechny standardní materiály potrubí s velkým rozsahem vnějších průměrů potrubí a úhlovým vychýlením",null,null,3]
[null,null,"PROVEDENÍ: hrdlo - příruba",null,null,null,null,null,null,null,null,"PROVEDENÍ: hrdlo - příruba",null,null,3]
[null,null,"dle EN 14 525",null,null,null,null,null,null,null,null,"dle EN 14 525",null,null,3]
[null,null,"příruba a opěrný kroužek: dle EN 1092-2 PN10 (případně PN16)",null,null,null,null,null,null,null,null,"příruba a opěrný kroužek: dle EN 1092-2 PN10 (případně PN16)",null,null,3]
[null,null,"tělo a přítlačný kroužek: z tvárné litny EN-GJS-400 s povrchovou úpravou vířivým slinováním",null,null,null,null,null,null,null,null,"tělo a přítlačný kroužek: z tvárné litny EN-GJS-400 s povrchovou úpravou vířivým slinováním",null,null,3]
[null,null,"flexibilní těsnění: z elastomeru dle EN 681-1 (vhodné pro pitnou vodu)",null,null,null,null,null,null,null,null,"flexibilní těsnění: z elastomeru dle EN 681-1 (vhodné pro pitnou vodu)",null,null,3]
[null,null,"flexibilní Synoflex kroužek: z POM sestaven z jednotlivých segmentů",null,null,null,null,null,null,null,null,"flexibilní Synoflex kroužek: z POM sestaven z jednotlivých segmentů",null,null,3]
[null,null,"jistící prvky: z nekorodující oceli na každém segmentu kroužku",null,null,null,null,null,null,null,null,"jistící prvky: z nekorodující oceli na každém segmentu kroužku",null,null,3]
[null,null,"šrouby a matice: z nerezové oceli s povrchovou úpravou proti zadírání",null,null,null,null,null,null,null,null,"šrouby a matice: z nerezové oceli s povrchovou úpravou proti zadírání",null,null,3]
[null,null,"podložky: z nerezové oceli s ochrannou krytkou z elastomeru",null,null,null,null,null,null,null,null,"podložky: z nerezové oceli s ochrannou krytkou z elastomeru",null,null,3]
[null,null,"šrbouby: lze použít i otočené o 180°",null,null,null,null,null,null,null,null,"šrbouby: lze použít i otočené o 180°",null,null,3]
[null,null,"distanční objímky: z plastu",null,null,null,null,null,null,null,null,"distanční objímky: z plastu",null,null,3]
[null,null,"úhlové vychýlení (ČSN EN 14 525)",null,null,null,null,null,null,null,null,"úhlové vychýlení (ČSN EN 14 525)",null,null,3]
[null,null,"pro jištění tahových sil na PE potrubí doporučujeme instalaci rozpěrných pouzder (č. 6035, 6036)",null,null,null,null,null,null,null,null,"pro jištění tahových sil na PE potrubí doporučujeme instalaci rozpěrných pouzder (č. 6035, 6036)",null,null,3]
[null,null,"Zaslepení stávajícího vodovodu TLT DN100:",null,0,null,null,null,null,null,null,null,"Zaslepení stávajícího vodovodu TLT DN100:"]
[null,null,"Synoflex s přírubou redukovaný DN100/80 (100/85-105):1",null,1,null,null,null,null,null,null,null,"Synoflex s přírubou redukovaný DN100/80 (100/85-105):1"]
[36,"5526009705.R","Koleno prodloužené přír.s patkou PPL DN 80","kus",1,null,{"$f":"E155*F155","v":0},1.2200000000000001E-2,{"$f":"E155*H155","v":1.2200000000000001E-2},null,{"$f":"E155*J155","v":0},null,null,null,2,null,null,null,null,null,null,null,null,null,null,null,3,1,"5526009705.R",null,null,null,null,null,null,null,null,null,null,null,null,null,null,null,null,null,null,null,null,null,null,1,{"$f":"IF(AZ155=1,G155,0)","v":0},{"$f":"IF(AZ155=2,G155,0)","v":0},{"$f":"IF(AZ155=3,G155,0)","v":0},{"$f":"IF(AZ155=4,G155,0)","v":0},{"$f":"IF(AZ155=5,G155,0)","v":0},null,null,null,null,null,null,null,null,null,null,null,null,null,null,null,null,null,null,null,null,null,3,1]
[null,null,"Zaslepení stávajícího vodovodu TLT DN100:",null,0,null,null,null,null,null,null,null,"Zaslepení stávajícího vodovodu TLT DN100:"]
[null,null,"PPL DN80:1",null,1,null,null,null,null,null,null,null,"PPL DN80:1"]
[37,"592243594.R","Skruž šachetní TBS-Q.1 1000/250/120 SP DEHA ATL","kus",1.01,null,{"$f":"E158*F158","v":0},0.254,{"$f":"E158*H158","v":0.25653999999999999},null,{"$f":"E158*J158","v":0},null,null,null,2,null,null,null,null,null,null,null,null,null,null,null,3,1,"592243594.R",null,null,null,null,null,null,null,null,null,null,null,null,null,null,null,null,null,null,null,null,null,null,1,{"$f":"IF(AZ158=1,G158,0)","v":0},{"$f":"IF(AZ158=2,G158,0)","v":0},{"$f":"IF(AZ158=3,G158,0)","v":0},{"$f":"IF(AZ158=4,G158,0)","v":0},{"$f":"IF(AZ158=5,G158,0)","v":0},null,null,null,null,null,null,null,null,null,null,null,null,null,null,null,null,null,null,null,null,null,3,1]
[null,null,"Zaslepení stávajícího vodovodu TLT DN100:",null,0,null,null,null,null,null,null,null,"Zaslepení stávajícího vodovodu TLT DN100:"]
[null,null,"Skruž H250 (ochrana Hp):1*1,01",null,1.01,null,null,null,null,null,null,null,"Skruž H250 (ochrana Hp):1*1,01"]
[null,"Celkem za","8 Trubní vedení",null,null,null,{"$f":"SUM(G51:G160)","v":0},null,{"$f":"SUM(I51:I160)","v":0.77918999999999994},null,{"$f":"SUM(K51:K160)","v":0},null,null,null,4,null,null,null,null,null,null,null,null,null,null,null,null,null,null,null,null,null,null,null,null,null,null,null,null,null,null,null,null,null,null,null,null,null,null,null,null,null,{"$f":"SUM(BA51:BA160)","v":0},{"$f":"SUM(BB51:BB160)","v":0},{"$f":"SUM(BC51:BC160)","v":0},{"$f":"SUM(BD51:BD160)","v":0},{"$f":"SUM(BE51:BE160)","v":0}]
["Díl:","99","Staveništní přesun hmot",null,null,null,null,null,null,null,null,null,null,null,1]
[38,"998273101R00","Přesun hmot, trubní vedení litinové, otevř. výkop ","t",2.2640332000000001,null,{"$f":"E163*F163","v":0},0,{"$f":"E163*H163","v":0},null,{"$f":"E163*J163","v":0},null,null,null,2,null,null,null,null,null,null,null,null,null,null,null,7,1,2,null,null,null,null,null,null,null,null,null,null,null,null,null,null,null,null,null,null,null,null,null,null,1,{"$f":"IF(AZ163=1,G163,0)","v":0},{"$f":"IF(AZ163=2,G163,0)","v":0},{"$f":"IF(AZ163=3,G163,0)","v":0},{"$f":"IF(AZ163=4,G163,0)","v":0},{"$f":"IF(AZ163=5,G163,0)","v":0},null,null,null,null,null,null,null,null,null,null,null,null,null,null,null,null,null,null,null,null,null,7,1]
[null,"Celkem za","99 Staveništní přesun hmot",null,null,null,{"$f":"SUM(G162:G163)","v":0},null,{"$f":"SUM(I162:I163)","v":0},null,{"$f":"SUM(K162:K163)","v":0},null,null,null,4,null,null,null,null,null,null,null,null,null,null,null,null,null,null,null,null,null,null,null,null,null,null,null,null,null,null,null,null,null,null,null,null,null,null,null,null,null,{"$f":"SUM(BA162:BA163)","v":0},{"$f":"SUM(BB162:BB163)","v":0},{"$f":"SUM(BC162:BC163)","v":0},{"$f":"SUM(BD162:BD163)","v":0},{"$f":"SUM(BE162:BE163)","v":0}]

{"sheet":"003 3392003 KL","index":7,"n_rows":45,"n_cols":8,"rows_kept":45,"cut":false,"hidden":false,"merged":[[22,0,22,1],[7,2,7,4],[8,2,8,4],[9,2,9,4],[10,2,10,4],[11,2,11,4],[50,1,50,6],[29,5,29,6],[30,5,30,6],[31,5,31,6],[32,5,32,6],[33,5,33,6],[36,1,44,6],[45,1,45,6],[46,1,46,6],[47,1,47,6],[48,1,48,6],[49,1,49,6]]}
["POLOŽKOVÝ ROZPOČET"]
["Rozpočet",null,"3392/003","Redukční šachta RŠ Klinkovice u čp.22",null,"JKSO ","827.11"]
[]
["Objekt",null,null,null,null,"SKP "]
["003",null,"Redukční šachta RŠ Klinkovice u čp.22",null,null,"Měrná jednotka","m"]
["Stavba",null,null,null,null,"Počet jednotek",0]
["3392",null,"Chuchelna - optimalizace vodovodní soustavy",null,null,"Náklady na m.j.",{"$f":"IF(G6=0,,ROUND((F30+F32)/G6,1))","v":0}]
["Projektant",null,"Radek Hnát - VAK PROJEKT",null,null,"Typ rozpočtu"]
["Zpracovatel projektu"]
["Objednatel",null,"Vodohospodářské sdružení Turnov"]
["Dodavatel",null,".",null,null,"Zakázkové číslo "]
["Rozpočtoval",null,null,null,null,"Počet listů"]
["ROZPOČTOVÉ NÁKLADY"]
["Základní rozpočtové náklady"]
[null,"HSV celkem",{"$f":"'003 3392003 Rek'!E10","v":0}]
["Z","PSV celkem",{"$f":"'003 3392003 Rek'!F10","v":0}]
["R","M práce celkem",{"$f":"'003 3392003 Rek'!H10","v":0}]
["N","M dodávky celkem",{"$f":"'003 3392003 Rek'!G10","v":0}]
["ZRN celkem",null,{"$f":"SUM(C15:C18)","v":0}]
[]
["HZS",null,{"$f":"'003 3392003 Rek'!I10","v":0}]
["ZRN+HZS",null,{"$f":"C19+C21","v":0}]
["ZRN+ost.náklady+HZS",null,{"$f":"C22+G23","v":0}]
["Vypracoval",null,null,"Za zhotovitele",null,"Za objednatele"]
["Jméno :",null,null,"Jméno :",null,"Jméno :"]
["Datum :",null,null,"Datum :",null,"Datum :"]
[]
["Podpis :",null,null,"Podpis:",null,"Podpis:"]
[]
["Základ pro DPH",null,21,"%  ",null,{"$f":"C23-F32","v":0}]
["DPH",null,{"$f":"C30","v":21},"% ",null,{"$f":"ROUND(PRODUCT(F30,C31/100),0)","v":0}]
["Základ pro DPH",null,0,"% ",null,0]
["DPH",null,{"$f":"C32","v":0},"% ",null,{"$f":"ROUND(PRODUCT(F32,C33/100),0)","v":0}]
["CENA ZA OBJEKT CELKEM",null,null,null,null,{"$f":"ROUND(SUM(F30:F33),0)","v":0}]
[]
["Poznámka :",null,null,null,null,null,null," "]
[null,null,null,null,null,null,null," "]
[null,null,null,null,null,null,null," "]
[null,null,null,null,null,null,null," "]
[null,null,null,null,null,null,null," "]
[null,null,null,null,null,null,null," "]
[null,null,null,null,null,null,null," "]
[null,null,null,null,null,null,null," "]
[null,null,null,null,null,null,null," "]
[null,null,null,null,null,null,null," "]

{"sheet":"003 3392003 Rek","index":8,"n_rows":10,"n_cols":9,"rows_kept":10,"cut":false,"hidden":false,"merged":[[0,0,0,1],[1,0,1,1],[1,6,1,8]]}
["Stavba :",null,"3392 Chuchelna - optimalizace vodovodní soustavy",null,null,null,"Rozpočet :","3392/003"]
["Objekt :",null,"003 Redukční šachta RŠ Klinkovice u čp.22",null,null,null,"Redukční šachta RŠ Klinkovice u čp.22"]
[]
["REKAPITULACE  STAVEBNÍCH  DÍLŮ"]
[]
[null,"Stavební díl",null,null,"HSV","PSV","Dodávka","Montáž","HZS"]
[{"$f":"'003 3392003 Pol'!B7","v":"1"},{"$f":"'003 3392003 Pol'!C7","v":"Zemní práce"},null,null,{"$f":"'003 3392003 Pol'!BA10","v":0},{"$f":"'003 3392003 Pol'!BB10","v":0},{"$f":"'003 3392003 Pol'!BC10","v":0},{"$f":"'003 3392003 Pol'!BD10","v":0},{"$f":"'003 3392003 Pol'!BE10","v":0}]
[{"$f":"'003 3392003 Pol'!B11","v":"8"},{"$f":"'003 3392003 Pol'!C11","v":"Trubní vedení"},null,null,{"$f":"'003 3392003 Pol'!BA101","v":0},{"$f":"'003 3392003 Pol'!BB101","v":0},{"$f":"'003 3392003 Pol'!BC101","v":0},{"$f":"'003 3392003 Pol'!BD101","v":0},{"$f":"'003 3392003 Pol'!BE101","v":0}]
[{"$f":"'003 3392003 Pol'!B102","v":"99"},{"$f":"'003 3392003 Pol'!C102","v":"Staveništní přesun hmot"},null,null,{"$f":"'003 3392003 Pol'!BA104","v":0},{"$f":"'003 3392003 Pol'!BB104","v":0},{"$f":"'003 3392003 Pol'!BC104","v":0},{"$f":"'003 3392003 Pol'!BD104","v":0},{"$f":"'003 3392003 Pol'!BE104","v":0}]
[null,"CELKEM  OBJEKT",null,null,{"$f":"SUM(E7:E9)","v":0},{"$f":"SUM(F7:F9)","v":0},{"$f":"SUM(G7:G9)","v":0},{"$f":"SUM(H7:H9)","v":0},{"$f":"SUM(I7:I9)","v":0}]

{"sheet":"003 3392003 Pol","index":9,"n_rows":104,"n_cols":80,"rows_kept":104,"cut":false,"hidden":false,"merged":[[0,0,0,6],[2,0,2,1],[3,0,3,1],[3,4,3,6],[8,2,8,6],[29,2,29,6],[13,2,13,3],[14,2,14,3],[16,2,16,6],[17,2,17,6],[18,2,18,3],[19,2,19,3],[20,2,20,3],[21,2,21,3],[23,2,23,6],[24,2,24,3],[25,2,25,3],[26,2,26,3],[27,2,27,3],[44,2,44,3],[30,2,30,6],[31,2,31,3],[32,2,32,3],[34,2,34,3],[35,2,35,3],[37,2,37,6],[38,2,38,6],[39,2,39,3],[40,2,40,3],[42,2,42,6],[43,2,43,6],[61,2,61,3],[45,2,45,3],[47,2,47,6],[48,2,48,6],[49,2,49,3],[50,2,50,3],[52,2,52,6],[53,2,53,6],[54,2,54,3],[55,2,55,3],[57,2,57,6],[59,2,59,6],[77,2,77,3],[62,2,62,3],[64,2,64,6],[65,2,65,3],[66,2,66,3],[68,2,68,6],[69,2,69,6],[70,2,70,3],[71,2,71,3],[73,2,73,6],[74,2,74,3],[75,2,75,3],[92,2,92,3],[78,2,78,3],[80,2,80,6],[81,2,81,6],[82,2,82,6],[83,2,83,6],[84,2,84,6],[85,2,85,6],[86,2,86,3],[87,2,87,3],[89,2,89,3],[90,2,90,3],[93,2,93,3],[95,2,95,3],[96,2,96,3],[98,2,98,3],[99,2,99,3]]}
["Položkový rozpočet "]
[]
["Stavba :",null,"3392 Chuchelna - optimalizace vodovodní soustavy",null,"Rozpočet:",{"$f":"'003 3392003 Rek'!H1","v":"3392/003"}]
["Objekt :",null,"003 Redukční šachta RŠ Klinkovice u čp.22",null,{"$f":"'003 3392003 Rek'!G2","v":"Redukční šachta RŠ Klinkovice u čp.22"}]
[]
["P.č.","Číslo položky","Název položky","MJ","množství","cena / MJ","celkem (Kč)","Jednotková hmotnost","Celková hmotnost","Jednotková dem.hmot.","Celková dem.hmot."]
["Díl:","1","Zemní práce",null,null,null,null,null,null,null,null,null,null,null,1]
[1,"115101201R00","Čerpání vody na výšku do 10 m, přítok do 500 l/min ","h",20,null,{"$f":"E8*F8","v":0},0,{"$f":"E8*H8","v":0},0,{"$f":"E8*J8","v":0},null,null,null,2,null,null,null,null,null,null,null,null,null,null,null,1,1,1,null,null,null,null,null,null,null,null,null,null,null,null,null,null,null,null,null,null,null,null,null,null,1,{"$f":"IF(AZ8=1,G8,0)","v":0},{"$f":"IF(AZ8=2,G8,0)","v":0},{"$f":"IF(AZ8=3,G8,0)","v":0},{"$f":"IF(AZ8=4,G8,0)","v":0},{"$f":"IF(AZ8=5,G8,0)","v":0},null,null,null,null,null,null,null,null,null,null,null,null,null,null,null,null,null,null,null,null,null,1,1]
[null,null,"Vyčerpání objektu redukční šachty před zahájením prací včetně čerpání vody během realizace výměny technologie.",null,null,null,null,null,null,null,null,"Vyčerpání objektu redukční šachty před zahájením prací včetně čerpání vody během realizace výměny technologie.",null,null,3]
[null,"Celkem za","1 Zemní práce",null,null,null,{"$f":"SUM(G7:G9)","v":0},null,{"$f":"SUM(I7:I9)","v":0},null,{"$f":"SUM(K7:K9)","v":0},null,null,null,4,null,null,null,null,null,null,null,null,null,null,null,null,null,null,null,null,null,null,null,null,null,null,null,null,null,null,null,null,null,null,null,null,null,null,null,null,null,{"$f":"SUM(BA7:BA9)","v":0},{"$f":"SUM(BB7:BB9)","v":0},{"$f":"SUM(BC7:BC9)","v":0},{"$f":"SUM(BD7:BD9)","v":0},{"$f":"SUM(BE7:BE9)","v":0}]
["Díl:","8","Trubní vedení",null,null,null,null,null,null,null,null,null,null,null,1]
[2,"899 90-8001.RRX","Demontáž stávající armaturní sestavy RŠ ","soubor",1,null,{"$f":"E12*F12","v":0},0,{"$f":"E12*H12","v":0},null,{"$f":"E12*J12","v":0},null,null,null,2,null,null,null,null,null,null,null,null,null,null,null,11,2,22,null,null,null,null,null,null,null,null,null,null,null,null,null,null,null,null,null,null,null,null,null,null,1,{"$f":"IF(AZ12=1,G12,0)","v":0},{"$f":"IF(AZ12=2,G12,0)","v":0},{"$f":"IF(AZ12=3,G12,0)","v":0},{"$f":"IF(AZ12=4,G12,0)","v":0},{"$f":"IF(AZ12=5,G12,0)","v":0},null,null,null,null,null,null,null,null,null,null,null,null,null,null,null,null,null,null,null,null,null,11,2]
[3,"722229106R00","Montáž vodovodních armatur,1závit, G 2 ","kus",2,null,{"$f":"E13*F13","v":0},0,{"$f":"E13*H13","v":0},0,{"$f":"E13*J13","v":0},null,null,null,2,null,null,null,null,null,null,null,null,null,null,null,1,7,7,null,null,null,null,null,null,null,null,null,null,null,null,null,null,null,null,null,null,null,null,null,null,1,{"$f":"IF(AZ13=1,G13,0)","v":0},{"$f":"IF(AZ13=2,G13,0)","v":0},{"$f":"IF(AZ13=3,G13,0)","v":0},{"$f":"IF(AZ13=4,G13,0)","v":0},{"$f":"IF(AZ13=5,G13,0)","v":0},null,null,null,null,null,null,null,null,null,null,null,null,null,null,null,null,null,null,null,null,null,1,7]
[null,null,"Redukční šachta u čp.22:",null,0,null,null,null,null,null,null,null,"Redukční šachta u čp.22:"]
[null,null,"Záslepka 2\":2",null,2,null,null,null,null,null,null,null,"Záslepka 2\":2"]
[4,"857242121R00","Montáž tvarovek litin. jednoos.přír. výkop DN 80 včetně nerezových spoj. prvků a obandážování spoje","kus",6,null,{"$f":"E16*F16","v":0},2.2000000000000001E-4,{"$f":"E16*H16","v":1.32E-3},0,{"$f":"E16*J16","v":0},null,null,null,2,null,null,null,null,null,null,null,null,null,null,null,1,1,1,null,null,null,null,null,null,null,null,null,null,null,null,null,null,null,null,null,null,null,null,null,null,1,{"$f":"IF(AZ16=1,G16,0)","v":0},{"$f":"IF(AZ16=2,G16,0)","v":0},{"$f":"IF(AZ16=3,G16,0)","v":0},{"$f":"IF(AZ16=4,G16,0)","v":0},{"$f":"IF(AZ16=5,G16,0)","v":0},null,null,null,null,null,null,null,null,null,null,null,null,null,null,null,null,null,null,null,null,null,1,1]
[null,null,"Položka je určena pro montáž litinových tvarovek na potrubí litinovém tlakovém přírubovém jednoosých v otevřeném výkopu, v otevřeném kanálu nebo v šachtě.",null,null,null,null,null,null,null,null,"Položka je určena pro montáž litinových tvarovek na potrubí litinovém tlakovém přírubovém jednoosých v otevřeném výkopu, v otevřeném kanálu nebo v šachtě.",null,null,3]
[null,null,"Součástí položky je i dodávka nerezových spojovacích prvků (šrouby, podložky, matky) a kompletního obandážování spojů. ",null,null,null,null,null,null,null,null,"Součástí položky je i dodávka nerezových spojovacích prvků (šrouby, podložky, matky) a kompletního obandážování spojů. ",null,null,3]
[null,null,"Redukční šachta u čp.22:",null,0,null,null,null,null,null,null,null,"Redukční šachta u čp.22:"]
[null,null,"FFR DN80/50:2",null,2,null,null,null,null,null,null,null,"FFR DN80/50:2"]
[null,null,"Q 90° DN80:2",null,2,null,null,null,null,null,null,null,"Q 90° DN80:2"]
[null,null,"XG DN80/2\":2",null,2,null,null,null,null,null,null,null,"XG DN80/2\":2"]
[5,"857242192R00","Příplatek za práce ve štole DN 80-250,lit.jednoos. ","kus",6,null,{"$f":"E23*F23","v":0},8.3000000000000001E-4,{"$f":"E23*H23","v":4.9800000000000001E-3},0,{"$f":"E23*J23","v":0},null,null,null,2,null,null,null,null,null,null,null,null,null,null,null,1,1,1,null,null,null,null,null,null,null,null,null,null,null,null,null,null,null,null,null,null,null,null,null,null,1,{"$f":"IF(AZ23=1,G23,0)","v":0},{"$f":"IF(AZ23=2,G23,0)","v":0},{"$f":"IF(AZ23=3,G23,0)","v":0},{"$f":"IF(AZ23=4,G23,0)","v":0},{"$f":"IF(AZ23=5,G23,0)","v":0},null,null,null,null,null,null,null,null,null,null,null,null,null,null,null,null,null,null,null,null,null,1,1]
[null,null,"Položka je určena pro montáž litinových tvarovek na potrubí litinovém tlakovém přírubovém, jedoosých, ve štole, v uzavřeném kanálu, nebo v objektech.",null,null,null,null,null,null,null,null,"Položka je určena pro montáž litinových tvarovek na potrubí litinovém tlakovém přírubovém, jedoosých, ve štole, v uzavřeném kanálu, nebo v objektech.",null,null,3]
[null,null,"Redukční šachta u čp.22:",null,0,null,null,null,null,null,null,null,"Redukční šachta u čp.22:"]
[null,null,"FFR DN80/50:2",null,2,null,null,null,null,null,null,null,"FFR DN80/50:2"]
[null,null,"Q 90° DN80:2",null,2,null,null,null,null,null,null,null,"Q 90° DN80:2"]
[null,null,"XG DN80/2\":2",null,2,null,null,null,null,null,null,null,"XG DN80/2\":2"]
[6,"857244121R00","Montáž tvarovek litin. odboč. přír. výkop DN 80 včetně nerezových spoj. prvků a obandážování spoje","kus",2,null,{"$f":"E29*F29","v":0},3.2000000000000003E-4,{"$f":"E29*H29","v":6.4000000000000005E-4},0,{"$f":"E29*J29","v":0},null,null,null,2,null,null,null,null,null,null,null,null,null,null,null,1,1,1,null,null,null,null,null,null,null,null,null,null,null,null,null,null,null,null,null,null,null,null,null,null,1,{"$f":"IF(AZ29=1,G29,0)","v":0},{"$f":"IF(AZ29=2,G29,0)","v":0},{"$f":"IF(AZ29=3,G29,0)","v":0},{"$f":"IF(AZ29=4,G29,0)","v":0},{"$f":"IF(AZ29=5,G29,0)","v":0},null,null,null,null,null,null,null,null,null,null,null,null,null,null,null,null,null,null,null,null,null,1,1]
[null,null,"Položka je určena pro montáž litinových tvarovek na potrubí litinovém tlakovém přírubovém odbočných v otevřeném výkopu, v otevřeném kanálu nebo v šachtě.",null,null,null,null,null,null,null,null,"Položka je určena pro montáž litinových tvarovek na potrubí litinovém tlakovém přírubovém odbočných v otevřeném výkopu, v otevřeném kanálu nebo v šachtě.",null,null,3]
[null,null,"Součástí položky je i dodávka nerezových spojovacích prvků (šrouby, podložky, matky) a kompletního obandážování spojů. ",null,null,null,null,null,null,null,null,"Součástí položky je i dodávka nerezových spojovacích prvků (šrouby, podložky, matky) a kompletního obandážování spojů. ",null,null,3]
[null,null,"Redukční šachta u čp.22:",null,0,null,null,null,null,null,null,null,"Redukční šachta u čp.22:"]
[null,null,"T DN80/80:2",null,2,null,null,null,null,null,null,null,"T DN80/80:2"]
[7,"857244192R00","Příplatek za práce ve štole DN 80-250,lit.odboč. ","kus",2,null,{"$f":"E34*F34","v":0},1.17E-3,{"$f":"E34*H34","v":2.3400000000000001E-3},0,{"$f":"E34*J34","v":0},null,null,null,2,null,null,null,null,null,null,null,null,null,null,null,1,1,1,null,null,null,null,null,null,null,null,null,null,null,null,null,null,null,null,null,null,null,null,null,null,1,{"$f":"IF(AZ34=1,G34,0)","v":0},{"$f":"IF(AZ34=2,G34,0)","v":0},{"$f":"IF(AZ34=3,G34,0)","v":0},{"$f":"IF(AZ34=4,G34,0)","v":0},{"$f":"IF(AZ34=5,G34,0)","v":0},null,null,null,null,null,null,null,null,null,null,null,null,null,null,null,null,null,null,null,null,null,1,1]
[null,null,"Redukční šachta u čp.22:",null,0,null,null,null,null,null,null,null,"Redukční šachta u čp.22:"]
[null,null,"T DN80/80:2",null,2,null,null,null,null,null,null,null,"T DN80/80:2"]
[8,"891213431R00","Montáž ventilů regulačních v objektech DN 50 včetně nerezových spoj. prvků a obandážování spoje","kus",1,null,{"$f":"E37*F37","v":0},4.6999999999999999E-4,{"$f":"E37*H37","v":4.6999999999999999E-4},0,{"$f":"E37*J37","v":0},null,null,null,2,null,null,null,null,null,null,null,null,null,null,null,1,1,1,null,null,null,null,null,null,null,null,null,null,null,null,null,null,null,null,null,null,null,null,null,null,1,{"$f":"IF(AZ37=1,G37,0)","v":0},{"$f":"IF(AZ37=2,G37,0)","v":0},{"$f":"IF(AZ37=3,G37,0)","v":0},{"$f":"IF(AZ37=4,G37,0)","v":0},{"$f":"IF(AZ37=5,G37,0)","v":0},null,null,null,null,null,null,null,null,null,null,null,null,null,null,null,null,null,null,null,null,null,1,1]
[null,null,"Položka je určena pro montáž ventilů regulačních  v objektech.",null,null,null,null,null,null,null,null,"Položka je určena pro montáž ventilů regulačních  v objektech.",null,null,3]
[null,null,"Součástí položky je i dodávka nerezových spojovacích prvků (šrouby, podložky, matky) a kompletního obandážování spojů. ",null,null,null,null,null,null,null,null,"Součástí položky je i dodávka nerezových spojovacích prvků (šrouby, podložky, matky) a kompletního obandážování spojů. ",null,null,3]
[null,null,"Redukční šachta u čp.22:",null,0,null,null,null,null,null,null,null,"Redukční šachta u čp.22:"]
[null,null,"Regulátor tlaku DN50:1",null,1,null,null,null,null,null,null,null,"Regulátor tlaku DN50:1"]
[9,"891214121R00","Montáž kompenzátorů, montážních vložek DN 50 včetně nerezových spoj. prvků a obandážování spoje","kus",1,null,{"$f":"E42*F42","v":0},2.1000000000000001E-4,{"$f":"E42*H42","v":2.1000000000000001E-4},0,{"$f":"E42*J42","v":0},null,null,null,2,null,null,null,null,null,null,null,null,null,null,null,1,1,1,null,null,null,null,null,null,null,null,null,null,null,null,null,null,null,null,null,null,null,null,null,null,1,{"$f":"IF(AZ42=1,G42,0)","v":0},{"$f":"IF(AZ42=2,G42,0)","v":0},{"$f":"IF(AZ42=3,G42,0)","v":0},{"$f":"IF(AZ42=4,G42,0)","v":0},{"$f":"IF(AZ42=5,G42,0)","v":0},null,null,null,null,null,null,null,null,null,null,null,null,null,null,null,null,null,null,null,null,null,1,1]
[null,null,"Položka je určena pro montáž kompenzátorů ucpávkových a gumových nebo montážních vložek na potrubí.",null,null,null,null,null,null,null,null,"Položka je určena pro montáž kompenzátorů ucpávkových a gumových nebo montážních vložek na potrubí.",null,null,3]
[null,null,"Součástí položky je i dodávka nerezových spojovacích prvků (šrouby, podložky, matky) a kompletního obandážování spojů. ",null,null,null,null,null,null,null,null,"Součástí položky je i dodávka nerezových spojovacích prvků (šrouby, podložky, matky) a kompletního obandážování spojů. ",null,null,3]
[null,null,"Redukční šachta u čp.22:",null,0,null,null,null,null,null,null,null,"Redukční šachta u čp.22:"]
[null,null,"Montážní vložka DN50:1",null,1,null,null,null,null,null,null,null,"Montážní vložka DN50:1"]
[10,"891215321R00","Montáž zpětných klapek a filtrů DN 50 včetně nerezových spoj. prvků a obandážování spoje","kus",1,null,{"$f":"E47*F47","v":0},2.1000000000000001E-4,{"$f":"E47*H47","v":2.1000000000000001E-4},0,{"$f":"E47*J47","v":0},null,null,null,2,null,null,null,null,null,null,null,null,null,null,null,1,1,1,null,null,null,null,null,null,null,null,null,null,null,null,null,null,null,null,null,null,null,null,null,null,1,{"$f":"IF(AZ47=1,G47,0)","v":0},{"$f":"IF(AZ47=2,G47,0)","v":0},{"$f":"IF(AZ47=3,G47,0)","v":0},{"$f":"IF(AZ47=4,G47,0)","v":0},{"$f":"IF(AZ47=5,G47,0)","v":0},null,null,null,null,null,null,null,null,null,null,null,null,null,null,null,null,null,null,null,null,null,1,1]
[null,null,"Položka je určena pro montáž zpětných klapek nebo filtrů na potrubí.",null,null,null,null,null,null,null,null,"Položka je určena pro montáž zpětných klapek nebo filtrů na potrubí.",null,null,3]
[null,null,"Součástí položky je i dodávka nerezových spojovacích prvků (šrouby, podložky, matky) a kompletního obandážování spojů. ",null,null,null,null,null,null,null,null,"Součástí položky je i dodávka nerezových spojovacích prvků (šrouby, podložky, matky) a kompletního obandážování spojů. ",null,null,3]
[null,null,"Redukční šachta u čp.22:",null,0,null,null,null,null,null,null,null,"Redukční šachta u čp.22:"]
[null,null,"Lapač nečistot (filtr) DN50:1",null,1,null,null,null,null,null,null,null,"Lapač nečistot (filtr) DN50:1"]
[11,"891241221R00","Montáž vodovod. šoupátek šacht. kolečko DN 80 včetně nerezových spoj. prvků a obandážování spoje","kus",4,null,{"$f":"E52*F52","v":0},2.2000000000000001E-4,{"$f":"E52*H52","v":8.8000000000000003E-4},0,{"$f":"E52*J52","v":0},null,null,null,2,null,null,null,null,null,null,null,null,null,null,null,1,1,1,null,null,null,null,null,null,null,null,null,null,null,null,null,null,null,null,null,null,null,null,null,null,1,{"$f":"IF(AZ52=1,G52,0)","v":0},{"$f":"IF(AZ52=2,G52,0)","v":0},{"$f":"IF(AZ52=3,G52,0)","v":0},{"$f":"IF(AZ52=4,G52,0)","v":0},{"$f":"IF(AZ52=5,G52,0)","v":0},null,null,null,null,null,null,null,null,null,null,null,null,null,null,null,null,null,null,null,null,null,1,1]
[null,null,"Položka je určena pro montáž vodovodních šoupátek v šachtách s ručním kolečkem. ",null,null,null,null,null,null,null,null,"Položka je určena pro montáž vodovodních šoupátek v šachtách s ručním kolečkem. ",null,null,3]
[null,null,"Součástí položky je i dodávka nerezových spojovacích prvků (šrouby, podložky, matky) a kompletního obandážování spojů. ",null,null,null,null,null,null,null,null,"Součástí položky je i dodávka nerezových spojovacích prvků (šrouby, podložky, matky) a kompletního obandážování spojů. ",null,null,3]
[null,null,"Redukční šachta u čp.22:",null,0,null,null,null,null,null,null,null,"Redukční šachta u čp.22:"]
[null,null,"Šoupě DN80:4",null,4,null,null,null,null,null,null,null,"Šoupě DN80:4"]
[12,"892271111RRX","Tlaková zkouška vodovodního potrubí DN 125 včetně zajištění konců potrubí","soubor",1,null,{"$f":"E57*F57","v":0},0,{"$f":"E57*H57","v":0},0,{"$f":"E57*J57","v":0},null,null,null,2,null,null,null,null,null,null,null,null,null,null,null,1,1,1,null,null,null,null,null,null,null,null,null,null,null,null,null,null,null,null,null,null,null,null,null,null,1,{"$f":"IF(AZ57=1,G57,0)","v":0},{"$f":"IF(AZ57=2,G57,0)","v":0},{"$f":"IF(AZ57=3,G57,0)","v":0},{"$f":"IF(AZ57=4,G57,0)","v":0},{"$f":"IF(AZ57=5,G57,0)","v":0},null,null,null,null,null,null,null,null,null,null,null,null,null,null,null,null,null,null,null,null,null,1,1]
[null,null,"V položce jsou započteny náklady na přísun, montáž, demontáž a odsun zkoušecího čerpadla, napuštění tlakovou vodou a dodání vody pro tlakovou zkoušku.",null,null,null,null,null,null,null,null,"V položce jsou započteny náklady na přísun, montáž, demontáž a odsun zkoušecího čerpadla, napuštění tlakovou vodou a dodání vody pro tlakovou zkoušku.",null,null,3]
[13,"892273111RRX","Desinfekce vodovodního potrubí DN 125 ","soubor",1,null,{"$f":"E59*F59","v":0},0,{"$f":"E59*H59","v":0},0,{"$f":"E59*J59","v":0},null,null,null,2,null,null,null,null,null,null,null,null,null,null,null,1,1,1,null,null,null,null,null,null,null,null,null,null,null,null,null,null,null,null,null,null,null,null,null,null,1,{"$f":"IF(AZ59=1,G59,0)","v":0},{"$f":"IF(AZ59=2,G59,0)","v":0},{"$f":"IF(AZ59=3,G59,0)","v":0},{"$f":"IF(AZ59=4,G59,0)","v":0},{"$f":"IF(AZ59=5,G59,0)","v":0},null,null,null,null,null,null,null,null,null,null,null,null,null,null,null,null,null,null,null,null,null,1,1]
[null,null,"V položce jsou zakalkulovány náklady na napuštění a vypuštění vody, dodání vody a desinfekčního prostředku a na bakteriologický rozbor vody.",null,null,null,null,null,null,null,null,"V položce jsou zakalkulovány náklady na napuštění a vypuštění vody, dodání vody a desinfekčního prostředku a na bakteriologický rozbor vody.",null,null,3]
[14,"28655148.R","Mosazná zátka 2\"","kus",2,null,{"$f":"E61*F61","v":0},3.6000000000000002E-4,{"$f":"E61*H61","v":7.2000000000000005E-4},null,{"$f":"E61*J61","v":0},null,null,null,2,null,null,null,null,null,null,null,null,null,null,null,3,1,"28655148.R",null,null,null,null,null,null,null,null,null,null,null,null,null,null,null,null,null,null,null,null,null,null,1,{"$f":"IF(AZ61=1,G61,0)","v":0},{"$f":"IF(AZ61=2,G61,0)","v":0},{"$f":"IF(AZ61=3,G61,0)","v":0},{"$f":"IF(AZ61=4,G61,0)","v":0},{"$f":"IF(AZ61=5,G61,0)","v":0},null,null,null,null,null,null,null,null,null,null,null,null,null,null,null,null,null,null,null,null,null,3,1]
[null,null,"Redukční šachta u čp.22:",null,0,null,null,null,null,null,null,null,"Redukční šachta u čp.22:"]
[null,null,"Záslepka 2\":2",null,2,null,null,null,null,null,null,null,"Záslepka 2\":2"]
[15,"42201500.03.R","Regulátor tlaku HAWIDO DN 50 č. 1500","kus",1,null,{"$f":"E64*F64","v":0},1.1299999999999999E-2,{"$f":"E64*H64","v":1.1299999999999999E-2},null,{"$f":"E64*J64","v":0},null,null,null,2,null,null,null,null,null,null,null,null,null,null,null,3,1,"42201500.03.R",null,null,null,null,null,null,null,null,null,null,null,null,null,null,null,null,null,null,null,null,null,null,1,{"$f":"IF(AZ64=1,G64,0)","v":0},{"$f":"IF(AZ64=2,G64,0)","v":0},{"$f":"IF(AZ64=3,G64,0)","v":0},{"$f":"IF(AZ64=4,G64,0)","v":0},{"$f":"IF(AZ64=5,G64,0)","v":0},null,null,null,null,null,null,null,null,null,null,null,null,null,null,null,null,null,null,null,null,null,3,1]
[null,null,"Nastavení tlaku dle projektové dokumentace.",null,null,null,null,null,null,null,null,"Nastavení tlaku dle projektové dokumentace.",null,null,3]
[null,null,"Redukční šachta u čp.22:",null,0,null,null,null,null,null,null,null,"Redukční šachta u čp.22:"]
[null,null,"Regulátor tlaku DN50:1",null,1,null,null,null,null,null,null,null,"Regulátor tlaku DN50:1"]
[16,"42207800.01.R","Ruční kolo pro šoupátko DN 80","kus",4,null,{"$f":"E68*F68","v":0},6.1999999999999998E-3,{"$f":"E68*H68","v":2.4799999999999999E-2},null,{"$f":"E68*J68","v":0},null,null,null,2,null,null,null,null,null,null,null,null,null,null,null,3,1,"42207800.01.R",null,null,null,null,null,null,null,null,null,null,null,null,null,null,null,null,null,null,null,null,null,null,1,{"$f":"IF(AZ68=1,G68,0)","v":0},{"$f":"IF(AZ68=2,G68,0)","v":0},{"$f":"IF(AZ68=3,G68,0)","v":0},{"$f":"IF(AZ68=4,G68,0)","v":0},{"$f":"IF(AZ68=5,G68,0)","v":0},null,null,null,null,null,null,null,null,null,null,null,null,null,null,null,null,null,null,null,null,null,3,1]
[null,null,"Ruční kolo uzavírací pro šoupátka z šsdé litiny GG 250 s epoxidovou ochrannou vrstvou.",null,null,null,null,null,null,null,null,"Ruční kolo uzavírací pro šoupátka z šsdé litiny GG 250 s epoxidovou ochrannou vrstvou.",null,null,3]
[null,null,"Pro Š DN65-80.",null,null,null,null,null,null,null,null,"Pro Š DN65-80.",null,null,3]
[null,null,"Redukční šachta u čp.22:",null,0,null,null,null,null,null,null,null,"Redukční šachta u čp.22:"]
[null,null,"Pro Šoupě DN80:4",null,4,null,null,null,null,null,null,null,"Pro Šoupě DN80:4"]
[17,"42208011.02.R","Tvarovka VARIO + svorníky DN50 (L=150-207) č. 8010","kus",1,null,{"$f":"E73*F73","v":0},1.008E-2,{"$f":"E73*H73","v":1.008E-2},null,{"$f":"E73*J73","v":0},null,null,null,2,null,null,null,null,null,null,null,null,null,null,null,3,1,"42208011.02.R",null,null,null,null,null,null,null,null,null,null,null,null,null,null,null,null,null,null,null,null,null,null,1,{"$f":"IF(AZ73=1,G73,0)","v":0},{"$f":"IF(AZ73=2,G73,0)","v":0},{"$f":"IF(AZ73=3,G73,0)","v":0},{"$f":"IF(AZ73=4,G73,0)","v":0},{"$f":"IF(AZ73=5,G73,0)","v":0},null,null,null,null,null,null,null,null,null,null,null,null,null,null,null,null,null,null,null,null,null,3,1]
[null,null,null,null,null,null,null,null,null,null,null,null,null,null,3]
[null,null,"Redukční šachta u čp.22:",null,0,null,null,null,null,null,null,null,"Redukční šachta u čp.22:"]
[null,null,"Montážní vložka DN50:1",null,1,null,null,null,null,null,null,null,"Montážní vložka DN50:1"]
[18,"42209910.01.R","Lapač nečistot DN 50 č. 9910","kus",1,null,{"$f":"E77*F77","v":0},2.8E-3,{"$f":"E77*H77","v":2.8E-3},null,{"$f":"E77*J77","v":0},null,null,null,2,null,null,null,null,null,null,null,null,null,null,null,3,1,"42209910.01.R",null,null,null,null,null,null,null,null,null,null,null,null,null,null,null,null,null,null,null,null,null,null,1,{"$f":"IF(AZ77=1,G77,0)","v":0},{"$f":"IF(AZ77=2,G77,0)","v":0},{"$f":"IF(AZ77=3,G77,0)","v":0},{"$f":"IF(AZ77=4,G77,0)","v":0},{"$f":"IF(AZ77=5,G77,0)","v":0},null,null,null,null,null,null,null,null,null,null,null,null,null,null,null,null,null,null,null,null,null,3,1]
[null,null,"Redukční šachta u čp.22:",null,0,null,null,null,null,null,null,null,"Redukční šachta u čp.22:"]
[null,null,"Lapač nečistot (filtr) DN50:1",null,1,null,null,null,null,null,null,null,"Lapač nečistot (filtr) DN50:1"]
[19,"42228310.R3","Šoupátko 4000E3 DN 80 přírubové, voda PN16 krátké L=180 mm","kus",4,null,{"$f":"E80*F80","v":0},1.6500000000000001E-2,{"$f":"E80*H80","v":6.6000000000000003E-2},null,{"$f":"E80*J80","v":0},null,null,null,2,null,null,null,null,null,null,null,null,null,null,null,3,1,"42228310.R3",null,null,null,null,null,null,null,null,null,null,null,null,null,null,null,null,null,null,null,null,null,null,1,{"$f":"IF(AZ80=1,G80,0)","v":0},{"$f":"IF(AZ80=2,G80,0)","v":0},{"$f":"IF(AZ80=3,G80,0)","v":0},{"$f":"IF(AZ80=4,G80,0)","v":0},{"$f":"IF(AZ80=5,G80,0)","v":0},null,null,null,null,null,null,null,null,null,null,null,null,null,null,null,null,null,null,null,null,null,3,1]
[null,null,"Šoupátko přírubové krkové - měkcetěsnící klínové šoupátko s hladkým a volným průtokovým kanálem",null,null,null,null,null,null,null,null,"Šoupátko přírubové krkové - měkcetěsnící klínové šoupátko s hladkým a volným průtokovým kanálem",null,null,3]
[null,null,"č. 4000E3 krátké L=180 mm",null,null,null,null,null,null,null,null,"č. 4000E3 krátké L=180 mm",null,null,3]
[null,null,"PN 16",null,null,null,null,null,null,null,null,"PN 16",null,null,3]
[null,null,"DN 80",null,null,null,null,null,null,null,null,"DN 80",null,null,3]
[null,null,"těleso a víko: tvárná litina GGG 400 - DIN 1693",null,null,null,null,null,null,null,null,"těleso a víko: tvárná litina GGG 400 - DIN 1693",null,null,3]
[null,null,"medium: pitná voda, neagresivní odpadní voda",null,null,null,null,null,null,null,null,"medium: pitná voda, neagresivní odpadní voda",null,null,3]
[null,null,"Redukční šachta u čp.22:",null,0,null,null,null,null,null,null,null,"Redukční šachta u čp.22:"]
[null,null,"Šoupě DN80:4",null,4,null,null,null,null,null,null,null,"Šoupě DN80:4"]
[20,"55259811.R","Přechod přír. FFR DN 80/ 50","kus",2,null,{"$f":"E89*F89","v":0},7.3000000000000001E-3,{"$f":"E89*H89","v":1.46E-2},null,{"$f":"E89*J89","v":0},null,null,null,2,null,null,null,null,null,null,null,null,null,null,null,3,1,"55259811.R",null,null,null,null,null,null,null,null,null,null,null,null,null,null,null,null,null,null,null,null,null,null,1,{"$f":"IF(AZ89=1,G89,0)","v":0},{"$f":"IF(AZ89=2,G89,0)","v":0},{"$f":"IF(AZ89=3,G89,0)","v":0},{"$f":"IF(AZ89=4,G89,0)","v":0},{"$f":"IF(AZ89=5,G89,0)","v":0},null,null,null,null,null,null,null,null,null,null,null,null,null,null,null,null,null,null,null,null,null,3,1]
[null,null,"Redukční šachta u čp.22:",null,0,null,null,null,null,null,null,null,"Redukční šachta u čp.22:"]
[null,null,"FFR DN80/50:2",null,2,null,null,null,null,null,null,null,"FFR DN80/50:2"]
[21,"55259982.R","Koleno přírubové Q DN 80-90°","kus",2,null,{"$f":"E92*F92","v":0},8.9999999999999993E-3,{"$f":"E92*H92","v":1.7999999999999999E-2},null,{"$f":"E92*J92","v":0},null,null,null,2,null,null,null,null,null,null,null,null,null,null,null,3,1,"55259982.R",null,null,null,null,null,null,null,null,null,null,null,null,null,null,null,null,null,null,null,null,null,null,1,{"$f":"IF(AZ92=1,G92,0)","v":0},{"$f":"IF(AZ92=2,G92,0)","v":0},{"$f":"IF(AZ92=3,G92,0)","v":0},{"$f":"IF(AZ92=4,G92,0)","v":0},{"$f":"IF(AZ92=5,G92,0)","v":0},null,null,null,null,null,null,null,null,null,null,null,null,null,null,null,null,null,null,null,null,null,3,1]
[null,null,"Redukční šachta u čp.22:",null,0,null,null,null,null,null,null,null,"Redukční šachta u čp.22:"]
[null,null,"Q 90° DN80:2",null,2,null,null,null,null,null,null,null,"Q 90° DN80:2"]
[22,"552599939.R","Tvarovka přír. s přír. odb. T DN 80/80","kus",2,null,{"$f":"E95*F95","v":0},1.49E-2,{"$f":"E95*H95","v":2.98E-2},null,{"$f":"E95*J95","v":0},null,null,null,2,null,null,null,null,null,null,null,null,null,null,null,3,1,"552599939.R",null,null,null,null,null,null,null,null,null,null,null,null,null,null,null,null,null,null,null,null,null,null,1,{"$f":"IF(AZ95=1,G95,0)","v":0},{"$f":"IF(AZ95=2,G95,0)","v":0},{"$f":"IF(AZ95=3,G95,0)","v":0},{"$f":"IF(AZ95=4,G95,0)","v":0},{"$f":"IF(AZ95=5,G95,0)","v":0},null,null,null,null,null,null,null,null,null,null,null,null,null,null,null,null,null,null,null,null,null,3,1]
[null,null,"Redukční šachta u čp.22:",null,0,null,null,null,null,null,null,null,"Redukční šachta u čp.22:"]
[null,null,"T DN80/80:2",null,2,null,null,null,null,null,null,null,"T DN80/80:2"]
[23,"55260055.R","Příruba zaslepovací XG DN 80 závit 2\"","kus",2,null,{"$f":"E98*F98","v":0},3.7000000000000002E-3,{"$f":"E98*H98","v":7.4000000000000003E-3},null,{"$f":"E98*J98","v":0},null,null,null,2,null,null,null,null,null,null,null,null,null,null,null,3,1,"55260055.R",null,null,null,null,null,null,null,null,null,null,null,null,null,null,null,null,null,null,null,null,null,null,1,{"$f":"IF(AZ98=1,G98,0)","v":0},{"$f":"IF(AZ98=2,G98,0)","v":0},{"$f":"IF(AZ98=3,G98,0)","v":0},{"$f":"IF(AZ98=4,G98,0)","v":0},{"$f":"IF(AZ98=5,G98,0)","v":0},null,null,null,null,null,null,null,null,null,null,null,null,null,null,null,null,null,null,null,null,null,3,1]
[null,null,"Redukční šachta u čp.22:",null,0,null,null,null,null,null,null,null,"Redukční šachta u čp.22:"]
[null,null,"XG DN80/2\":2",null,2,null,null,null,null,null,null,null,"XG DN80/2\":2"]
[null,"Celkem za","8 Trubní vedení",null,null,null,{"$f":"SUM(G11:G100)","v":0},null,{"$f":"SUM(I11:I100)","v":0.19654999999999997},null,{"$f":"SUM(K11:K100)","v":0},null,null,null,4,null,null,null,null,null,null,null,null,null,null,null,null,null,null,null,null,null,null,null,null,null,null,null,null,null,null,null,null,null,null,null,null,null,null,null,null,null,{"$f":"SUM(BA11:BA100)","v":0},{"$f":"SUM(BB11:BB100)","v":0},{"$f":"SUM(BC11:BC100)","v":0},{"$f":"SUM(BD11:BD100)","v":0},{"$f":"SUM(BE11:BE100)","v":0}]
["Díl:","99","Staveništní přesun hmot",null,null,null,null,null,null,null,null,null,null,null,1]
[24,"998273101R00","Přesun hmot, trubní vedení litinové, otevř. výkop ","t",0.19655,null,{"$f":"E103*F103","v":0},0,{"$f":"E103*H103","v":0},null,{"$f":"E103*J103","v":0},null,null,null,2,null,null,null,null,null,null,null,null,null,null,null,7,1,2,null,null,null,null,null,null,null,null,null,null,null,null,null,null,null,null,null,null,null,null,null,null,1,{"$f":"IF(AZ103=1,G103,0)","v":0},{"$f":"IF(AZ103=2,G103,0)","v":0},{"$f":"IF(AZ103=3,G103,0)","v":0},{"$f":"IF(AZ103=4,G103,0)","v":0},{"$f":"IF(AZ103=5,G103,0)","v":0},null,null,null,null,null,null,null,null,null,null,null,null,null,null,null,null,null,null,null,null,null,7,1]
[null,"Celkem za","99 Staveništní přesun hmot",null,null,null,{"$f":"SUM(G102:G103)","v":0},null,{"$f":"SUM(I102:I103)","v":0},null,{"$f":"SUM(K102:K103)","v":0},null,null,null,4,null,null,null,null,null,null,null,null,null,null,null,null,null,null,null,null,null,null,null,null,null,null,null,null,null,null,null,null,null,null,null,null,null,null,null,null,null,{"$f":"SUM(BA102:BA103)","v":0},{"$f":"SUM(BB102:BB103)","v":0},{"$f":"SUM(BC102:BC103)","v":0},{"$f":"SUM(BD102:BD103)","v":0},{"$f":"SUM(BE102:BE103)","v":0}]

{"sheet":"004 3392004 KL","index":10,"n_rows":45,"n_cols":8,"rows_kept":45,"cut":false,"hidden":false,"merged":[[22,0,22,1],[7,2,7,4],[8,2,8,4],[9,2,9,4],[10,2,10,4],[11,2,11,4],[50,1,50,6],[29,5,29,6],[30,5,30,6],[31,5,31,6],[32,5,32,6],[33,5,33,6],[36,1,44,6],[45,1,45,6],[46,1,46,6],[47,1,47,6],[48,1,48,6],[49,1,49,6]]}
["POLOŽKOVÝ ROZPOČET"]
["Rozpočet",null,"3392/004","Redukční šachta RŠ Klinkovice u čp.144",null,"JKSO ","827.11"]
[]
["Objekt",null,null,null,null,"SKP "]
["004",null,"Redukční šachta RŠ Klinkovice u čp.144",null,null,"Měrná jednotka","m"]
["Stavba",null,null,null,null,"Počet jednotek",0]
["3392",null,"Chuchelna - optimalizace vodovodní soustavy",null,null,"Náklady na m.j.",{"$f":"IF(G6=0,,ROUND((F30+F32)/G6,1))","v":0}]
["Projektant",null,"Radek Hnát - VAK PROJEKT",null,null,"Typ rozpočtu"]
["Zpracovatel projektu"]
["Objednatel",null,"Vodohospodářské sdružení Turnov"]
["Dodavatel",null,".",null,null,"Zakázkové číslo "]
["Rozpočtoval",null,null,null,null,"Počet listů"]
["ROZPOČTOVÉ NÁKLADY"]
["Základní rozpočtové náklady"]
[null,"HSV celkem",{"$f":"'004 3392004 Rek'!E10","v":0}]
["Z","PSV celkem",{"$f":"'004 3392004 Rek'!F10","v":0}]
["R","M práce celkem",{"$f":"'004 3392004 Rek'!H10","v":0}]
["N","M dodávky celkem",{"$f":"'004 3392004 Rek'!G10","v":0}]
["ZRN celkem",null,{"$f":"SUM(C15:C18)","v":0}]
[]
["HZS",null,{"$f":"'004 3392004 Rek'!I10","v":0}]
["ZRN+HZS",null,{"$f":"C19+C21","v":0}]
["ZRN+ost.náklady+HZS",null,{"$f":"C22+G23","v":0}]
["Vypracoval",null,null,"Za zhotovitele",null,"Za objednatele"]
["Jméno :",null,null,"Jméno :",null,"Jméno :"]
["Datum :",null,null,"Datum :",null,"Datum :"]
[]
["Podpis :",null,null,"Podpis:",null,"Podpis:"]
[]
["Základ pro DPH",null,21,"%  ",null,{"$f":"C23-F32","v":0}]
["DPH",null,{"$f":"C30","v":21},"% ",null,{"$f":"ROUND(PRODUCT(F30,C31/100),0)","v":0}]
["Základ pro DPH",null,0,"% ",null,0]
["DPH",null,{"$f":"C32","v":0},"% ",null,{"$f":"ROUND(PRODUCT(F32,C33/100),0)","v":0}]
["CENA ZA OBJEKT CELKEM",null,null,null,null,{"$f":"ROUND(SUM(F30:F33),0)","v":0}]
[]
["Poznámka :",null,null,null,null,null,null," "]
[null,null,null,null,null,null,null," "]
[null,null,null,null,null,null,null," "]
[null,null,null,null,null,null,null," "]
[null,null,null,null,null,null,null," "]
[null,null,null,null,null,null,null," "]
[null,null,null,null,null,null,null," "]
[null,null,null,null,null,null,null," "]
[null,null,null,null,null,null,null," "]
[null,null,null,null,null,null,null," "]

{"sheet":"004 3392004 Rek","index":11,"n_rows":10,"n_cols":9,"rows_kept":10,"cut":false,"hidden":false,"merged":[[0,0,0,1],[1,0,1,1],[1,6,1,8]]}
["Stavba :",null,"3392Chuchelna - optimalizace vodovodní soustavy",null,null,null,"Rozpočet :","3392/004"]
["Objekt :",null,"004 Redukční šachta RŠ Klinkovice u čp.144",null,null,null,"Redukční šachta RŠ Klinkovice u čp.144"]
[]
["REKAPITULACE  STAVEBNÍCH  DÍLŮ"]
[]
[null,"Stavební díl",null,null,"HSV","PSV","Dodávka","Montáž","HZS"]
[{"$f":"'004 3392004 Pol'!B7","v":"1"},{"$f":"'004 3392004 Pol'!C7","v":"Zemní práce"},null,null,{"$f":"'004 3392004 Pol'!BA10","v":0},{"$f":"'004 3392004 Pol'!BB10","v":0},{"$f":"'004 3392004 Pol'!BC10","v":0},{"$f":"'004 3392004 Pol'!BD10","v":0},{"$f":"'004 3392004 Pol'!BE10","v":0}]
[{"$f":"'004 3392004 Pol'!B11","v":"8"},{"$f":"'004 3392004 Pol'!C11","v":"Trubní vedení"},null,null,{"$f":"'004 3392004 Pol'!BA84","v":0},{"$f":"'004 3392004 Pol'!BB84","v":0},{"$f":"'004 3392004 Pol'!BC84","v":0},{"$f":"'004 3392004 Pol'!BD84","v":0},{"$f":"'004 3392004 Pol'!BE84","v":0}]
[{"$f":"'004 3392004 Pol'!B85","v":"99"},{"$f":"'004 3392004 Pol'!C85","v":"Staveništní přesun hmot"},null,null,{"$f":"'004 3392004 Pol'!BA87","v":0},{"$f":"'004 3392004 Pol'!BB87","v":0},{"$f":"'004 3392004 Pol'!BC87","v":0},{"$f":"'004 3392004 Pol'!BD87","v":0},{"$f":"'004 3392004 Pol'!BE87","v":0}]
[null,"CELKEM  OBJEKT",null,null,{"$f":"SUM(E7:E9)","v":0},{"$f":"SUM(F7:F9)","v":0},{"$f":"SUM(G7:G9)","v":0},{"$f":"SUM(H7:H9)","v":0},{"$f":"SUM(I7:I9)","v":0}]

{"sheet":"004 3392004 Pol","index":12,"n_rows":87,"n_cols":80,"rows_kept":87,"cut":false,"hidden":false,"merged":[[0,0,0,6],[2,0,2,1],[3,0,3,1],[3,4,3,6],[8,2,8,6],[28,2,28,3],[13,2,13,6],[14,2,14,6],[15,2,15,3],[16,2,16,3],[17,2,17,3],[18,2,18,3],[20,2,20,6],[21,2,21,3],[22,2,22,3],[23,2,23,3],[24,2,24,3],[26,2,26,6],[27,2,27,6],[43,2,43,3],[29,2,29,3],[31,2,31,6],[32,2,32,6],[33,2,33,3],[34,2,34,3],[36,2,36,6],[37,2,37,6],[38,2,38,3],[39,2,39,3],[41,2,41,6],[42,2,42,6],[60,2,60,3],[44,2,44,3],[46,2,46,6],[48,2,48,6],[50,2,50,6],[51,2,51,3],[52,2,52,3],[54,2,54,6],[55,2,55,6],[56,2,56,3],[57,2,57,3],[59,2,59,6],[75,2,75,3],[61,2,61,3],[63,2,63,3],[64,2,64,3],[66,2,66,6],[67,2,67,6],[68,2,68,6],[69,2,69,6],[70,2,70,6],[71,2,71,6],[72,2,72,3],[73,2,73,3],[76,2,76,3],[78,2,78,3],[79,2,79,3],[81,2,81,3],[82,2,82,3]]}
["Položkový rozpočet "]
[]
["Stavba :",null,"3392 Chuchelna - optimalizace vodovodní soustavy",null,"Rozpočet:",{"$f":"'004 3392004 Rek'!H1","v":"3392/004"}]
["Objekt :",null,"004 Redukční šachta RŠ Klinkovice u čp.144",null,{"$f":"'004 3392004 Rek'!G2","v":"Redukční šachta RŠ Klinkovice u čp.144"}]
[]
["P.č.","Číslo položky","Název položky","MJ","množství","cena / MJ","celkem (Kč)","Jednotková hmotnost","Celková hmotnost","Jednotková dem.hmot.","Celková dem.hmot."]
["Díl:","1","Zemní práce",null,null,null,null,null,null,null,null,null,null,null,1]
[1,"115101201R00","Čerpání vody na výšku do 10 m, přítok do 500 l/min ","h",15,null,{"$f":"E8*F8","v":0},0,{"$f":"E8*H8","v":0},0,{"$f":"E8*J8","v":0},null,null,null,2,null,null,null,null,null,null,null,null,null,null,null,1,1,1,null,null,null,null,null,null,null,null,null,null,null,null,null,null,null,null,null,null,null,null,null,null,1,{"$f":"IF(AZ8=1,G8,0)","v":0},{"$f":"IF(AZ8=2,G8,0)","v":0},{"$f":"IF(AZ8=3,G8,0)","v":0},{"$f":"IF(AZ8=4,G8,0)","v":0},{"$f":"IF(AZ8=5,G8,0)","v":0},null,null,null,null,null,null,null,null,null,null,null,null,null,null,null,null,null,null,null,null,null,1,1]
[null,null,"Vyčerpání objektu redukční šachty před zahájením prací včetně čerpání vody během realizace výměny technologie.",null,null,null,null,null,null,null,null,"Vyčerpání objektu redukční šachty před zahájením prací včetně čerpání vody během realizace výměny technologie.",null,null,3]
[null,"Celkem za","1 Zemní práce",null,null,null,{"$f":"SUM(G7:G9)","v":0},null,{"$f":"SUM(I7:I9)","v":0},null,{"$f":"SUM(K7:K9)","v":0},null,null,null,4,null,null,null,null,null,null,null,null,null,null,null,null,null,null,null,null,null,null,null,null,null,null,null,null,null,null,null,null,null,null,null,null,null,null,null,null,null,{"$f":"SUM(BA7:BA9)","v":0},{"$f":"SUM(BB7:BB9)","v":0},{"$f":"SUM(BC7:BC9)","v":0},{"$f":"SUM(BD7:BD9)","v":0},{"$f":"SUM(BE7:BE9)","v":0}]
["Díl:","8","Trubní vedení",null,null,null,null,null,null,null,null,null,null,null,1]
[2,"899 90-8002.RRX","Demontáž stávající armaturní sestavy RŠ ","soubor",1,null,{"$f":"E12*F12","v":0},0,{"$f":"E12*H12","v":0},null,{"$f":"E12*J12","v":0},null,null,null,2,null,null,null,null,null,null,null,null,null,null,null,11,2,1,null,null,null,null,null,null,null,null,null,null,null,null,null,null,null,null,null,null,null,null,null,null,1,{"$f":"IF(AZ12=1,G12,0)","v":0},{"$f":"IF(AZ12=2,G12,0)","v":0},{"$f":"IF(AZ12=3,G12,0)","v":0},{"$f":"IF(AZ12=4,G12,0)","v":0},{"$f":"IF(AZ12=5,G12,0)","v":0},null,null,null,null,null,null,null,null,null,null,null,null,null,null,null,null,null,null,null,null,null,11,2]
[3,"857242121R00","Montáž tvarovek litin. jednoos.přír. výkop DN 80 včetně nerezových spoj. prvků a obandážování spoje","kus",4,null,{"$f":"E13*F13","v":0},2.2000000000000001E-4,{"$f":"E13*H13","v":8.8000000000000003E-4},0,{"$f":"E13*J13","v":0},null,null,null,2,null,null,null,null,null,null,null,null,null,null,null,1,1,1,null,null,null,null,null,null,null,null,null,null,null,null,null,null,null,null,null,null,null,null,null,null,1,{"$f":"IF(AZ13=1,G13,0)","v":0},{"$f":"IF(AZ13=2,G13,0)","v":0},{"$f":"IF(AZ13=3,G13,0)","v":0},{"$f":"IF(AZ13=4,G13,0)","v":0},{"$f":"IF(AZ13=5,G13,0)","v":0},null,null,null,null,null,null,null,null,null,null,null,null,null,null,null,null,null,null,null,null,null,1,1]
[null,null,"Položka je určena pro montáž litinových tvarovek na potrubí litinovém tlakovém přírubovém jednoosých v otevřeném výkopu, v otevřeném kanálu nebo v šachtě.",null,null,null,null,null,null,null,null,"Položka je určena pro montáž litinových tvarovek na potrubí litinovém tlakovém přírubovém jednoosých v otevřeném výkopu, v otevřeném kanálu nebo v šachtě.",null,null,3]
[null,null,"Součástí položky je i dodávka nerezových spojovacích prvků (šrouby, podložky, matky) a kompletního obandážování spojů. ",null,null,null,null,null,null,null,null,"Součástí položky je i dodávka nerezových spojovacích prvků (šrouby, podložky, matky) a kompletního obandážování spojů. ",null,null,3]
[null,null,"Redukční šachta u čp.144:",null,0,null,null,null,null,null,null,null,"Redukční šachta u čp.144:"]
[null,null,"FFR DN80/50:2",null,2,null,null,null,null,null,null,null,"FFR DN80/50:2"]
[null,null,"XG DN50/2\":1",null,1,null,null,null,null,null,null,null,"XG DN50/2\":1"]
[null,null,"FF DN50/100:1",null,1,null,null,null,null,null,null,null,"FF DN50/100:1"]
[4,"857242192R00","Příplatek za práce ve štole DN 80-250,lit.jednoos. ","kus",4,null,{"$f":"E20*F20","v":0},8.3000000000000001E-4,{"$f":"E20*H20","v":3.32E-3},0,{"$f":"E20*J20","v":0},null,null,null,2,null,null,null,null,null,null,null,null,null,null,null,1,1,1,null,null,null,null,null,null,null,null,null,null,null,null,null,null,null,null,null,null,null,null,null,null,1,{"$f":"IF(AZ20=1,G20,0)","v":0},{"$f":"IF(AZ20=2,G20,0)","v":0},{"$f":"IF(AZ20=3,G20,0)","v":0},{"$f":"IF(AZ20=4,G20,0)","v":0},{"$f":"IF(AZ20=5,G20,0)","v":0},null,null,null,null,null,null,null,null,null,null,null,null,null,null,null,null,null,null,null,null,null,1,1]
[null,null,"Položka je určena pro montáž litinových tvarovek na potrubí litinovém tlakovém přírubovém, jedoosých, ve štole, v uzavřeném kanálu, nebo v objektech.",null,null,null,null,null,null,null,null,"Položka je určena pro montáž litinových tvarovek na potrubí litinovém tlakovém přírubovém, jedoosých, ve štole, v uzavřeném kanálu, nebo v objektech.",null,null,3]
[null,null,"Redukční šachta u čp.144:",null,0,null,null,null,null,null,null,null,"Redukční šachta u čp.144:"]
[null,null,"FFR DN80/50:2",null,2,null,null,null,null,null,null,null,"FFR DN80/50:2"]
[null,null,"XG DN50/2\":1",null,1,null,null,null,null,null,null,null,"XG DN50/2\":1"]
[null,null,"FF DN50/100:1",null,1,null,null,null,null,null,null,null,"FF DN50/100:1"]
[5,"891213431R00","Montáž ventilů regulačních v objektech DN 50 včetně nerezových spoj. prvků a obandážování spoje","kus",1,null,{"$f":"E26*F26","v":0},4.6999999999999999E-4,{"$f":"E26*H26","v":4.6999999999999999E-4},0,{"$f":"E26*J26","v":0},null,null,null,2,null,null,null,null,null,null,null,null,null,null,null,1,1,1,null,null,null,null,null,null,null,null,null,null,null,null,null,null,null,null,null,null,null,null,null,null,1,{"$f":"IF(AZ26=1,G26,0)","v":0},{"$f":"IF(AZ26=2,G26,0)","v":0},{"$f":"IF(AZ26=3,G26,0)","v":0},{"$f":"IF(AZ26=4,G26,0)","v":0},{"$f":"IF(AZ26=5,G26,0)","v":0},null,null,null,null,null,null,null,null,null,null,null,null,null,null,null,null,null,null,null,null,null,1,1]
[null,null,"Položka je určena pro montáž ventilů regulačních v objektech.",null,null,null,null,null,null,null,null,"Položka je určena pro montáž ventilů regulačních v objektech.",null,null,3]
[null,null,"Součástí položky je i dodávka nerezových spojovacích prvků (šrouby, podložky, matky) a kompletního obandážování spojů. ",null,null,null,null,null,null,null,null,"Součástí položky je i dodávka nerezových spojovacích prvků (šrouby, podložky, matky) a kompletního obandážování spojů. ",null,null,3]
[null,null,"Redukční šachta u čp.144:",null,0,null,null,null,null,null,null,null,"Redukční šachta u čp.144:"]
[null,null,"Regulátor tlaku DN50:1",null,1,null,null,null,null,null,null,null,"Regulátor tlaku DN50:1"]
[6,"891214121R00","Montáž kompenzátorů, montážních vložek DN 50 včetně nerezových spoj. prvků a obandážování spoje","kus",1,null,{"$f":"E31*F31","v":0},2.1000000000000001E-4,{"$f":"E31*H31","v":2.1000000000000001E-4},0,{"$f":"E31*J31","v":0},null,null,null,2,null,null,null,null,null,null,null,null,null,null,null,1,1,1,null,null,null,null,null,null,null,null,null,null,null,null,null,null,null,null,null,null,null,null,null,null,1,{"$f":"IF(AZ31=1,G31,0)","v":0},{"$f":"IF(AZ31=2,G31,0)","v":0},{"$f":"IF(AZ31=3,G31,0)","v":0},{"$f":"IF(AZ31=4,G31,0)","v":0},{"$f":"IF(AZ31=5,G31,0)","v":0},null,null,null,null,null,null,null,null,null,null,null,null,null,null,null,null,null,null,null,null,null,1,1]
[null,null,"Položka je určena pro montáž kompenzátorů ucpávkových a gumových nebo montážních vložek na potrubí.",null,null,null,null,null,null,null,null,"Položka je určena pro montáž kompenzátorů ucpávkových a gumových nebo montážních vložek na potrubí.",null,null,3]
[null,null,"Součástí položky je i dodávka nerezových spojovacích prvků (šrouby, podložky, matky) a kompletního obandážování spojů. ",null,null,null,null,null,null,null,null,"Součástí položky je i dodávka nerezových spojovacích prvků (šrouby, podložky, matky) a kompletního obandážování spojů. ",null,null,3]
[null,null,"Redukční šachta u čp.144:",null,0,null,null,null,null,null,null,null,"Redukční šachta u čp.144:"]
[null,null,"Montážní vložka DN50:1",null,1,null,null,null,null,null,null,null,"Montážní vložka DN50:1"]
[7,"891215321R00","Montáž zpětných klapek a filtrů DN 50 včetně nerezových spoj. prvků a obandážování spoje","kus",1,null,{"$f":"E36*F36","v":0},2.1000000000000001E-4,{"$f":"E36*H36","v":2.1000000000000001E-4},0,{"$f":"E36*J36","v":0},null,null,null,2,null,null,null,null,null,null,null,null,null,null,null,1,1,1,null,null,null,null,null,null,null,null,null,null,null,null,null,null,null,null,null,null,null,null,null,null,1,{"$f":"IF(AZ36=1,G36,0)","v":0},{"$f":"IF(AZ36=2,G36,0)","v":0},{"$f":"IF(AZ36=3,G36,0)","v":0},{"$f":"IF(AZ36=4,G36,0)","v":0},{"$f":"IF(AZ36=5,G36,0)","v":0},null,null,null,null,null,null,null,null,null,null,null,null,null,null,null,null,null,null,null,null,null,1,1]
[null,null,"Položka je určena pro montáž zpětných klapek nebo filtrů na potrubí.",null,null,null,null,null,null,null,null,"Položka je určena pro montáž zpětných klapek nebo filtrů na potrubí.",null,null,3]
[null,null,"Součástí položky je i dodávka nerezových spojovacích prvků (šrouby, podložky, matky) a kompletního obandážování spojů. ",null,null,null,null,null,null,null,null,"Součástí položky je i dodávka nerezových spojovacích prvků (šrouby, podložky, matky) a kompletního obandážování spojů. ",null,null,3]
[null,null,"Redukční šachta u čp.144:",null,0,null,null,null,null,null,null,null,"Redukční šachta u čp.144:"]
[null,null,"Lapač nečistot (filtr) DN50:1",null,1,null,null,null,null,null,null,null,"Lapač nečistot (filtr) DN50:1"]
[8,"891241221R00","Montáž vodovod. šoupátek šacht. kolečko DN 80 včetně nerezových spoj. prvků a obandážování spoje","kus",2,null,{"$f":"E41*F41","v":0},2.2000000000000001E-4,{"$f":"E41*H41","v":4.4000000000000002E-4},0,{"$f":"E41*J41","v":0},null,null,null,2,null,null,null,null,null,null,null,null,null,null,null,1,1,1,null,null,null,null,null,null,null,null,null,null,null,null,null,null,null,null,null,null,null,null,null,null,1,{"$f":"IF(AZ41=1,G41,0)","v":0},{"$f":"IF(AZ41=2,G41,0)","v":0},{"$f":"IF(AZ41=3,G41,0)","v":0},{"$f":"IF(AZ41=4,G41,0)","v":0},{"$f":"IF(AZ41=5,G41,0)","v":0},null,null,null,null,null,null,null,null,null,null,null,null,null,null,null,null,null,null,null,null,null,1,1]
[null,null,"Položka je určena pro montáž vodovodních šoupátek v šachtách s ručním kolečkem. ",null,null,null,null,null,null,null,null,"Položka je určena pro montáž vodovodních šoupátek v šachtách s ručním kolečkem. ",null,null,3]
[null,null,"Součástí položky je i dodávka nerezových spojovacích prvků (šrouby, podložky, matky) a kompletního obandážování spojů. ",null,null,null,null,null,null,null,null,"Součástí položky je i dodávka nerezových spojovacích prvků (šrouby, podložky, matky) a kompletního obandážování spojů. ",null,null,3]
[null,null,"Redukční šachta u čp.144:",null,0,null,null,null,null,null,null,null,"Redukční šachta u čp.144:"]
[null,null,"Šoupě DN80:2",null,2,null,null,null,null,null,null,null,"Šoupě DN80:2"]
[9,"892271111RRX","Tlaková zkouška vodovodního potrubí DN 125 včetně zajištění konců potrubí","soubor",1,null,{"$f":"E46*F46","v":0},0,{"$f":"E46*H46","v":0},0,{"$f":"E46*J46","v":0},null,null,null,2,null,null,null,null,null,null,null,null,null,null,null,1,1,1,null,null,null,null,null,null,null,null,null,null,null,null,null,null,null,null,null,null,null,null,null,null,1,{"$f":"IF(AZ46=1,G46,0)","v":0},{"$f":"IF(AZ46=2,G46,0)","v":0},{"$f":"IF(AZ46=3,G46,0)","v":0},{"$f":"IF(AZ46=4,G46,0)","v":0},{"$f":"IF(AZ46=5,G46,0)","v":0},null,null,null,null,null,null,null,null,null,null,null,null,null,null,null,null,null,null,null,null,null,1,1]
[null,null,"V položce jsou započteny náklady na přísun, montáž, demontáž a odsun zkoušecího čerpadla, napuštění tlakovou vodou a dodání vody pro tlakovou zkoušku.",null,null,null,null,null,null,null,null,"V položce jsou započteny náklady na přísun, montáž, demontáž a odsun zkoušecího čerpadla, napuštění tlakovou vodou a dodání vody pro tlakovou zkoušku.",null,null,3]
[10,"892273111RRX","Desinfekce vodovodního potrubí DN 125 ","soubor",1,null,{"$f":"E48*F48","v":0},0,{"$f":"E48*H48","v":0},0,{"$f":"E48*J48","v":0},null,null,null,2,null,null,null,null,null,null,null,null,null,null,null,1,1,1,null,null,null,null,null,null,null,null,null,null,null,null,null,null,null,null,null,null,null,null,null,null,1,{"$f":"IF(AZ48=1,G48,0)","v":0},{"$f":"IF(AZ48=2,G48,0)","v":0},{"$f":"IF(AZ48=3,G48,0)","v":0},{"$f":"IF(AZ48=4,G48,0)","v":0},{"$f":"IF(AZ48=5,G48,0)","v":0},null,null,null,null,null,null,null,null,null,null,null,null,null,null,null,null,null,null,null,null,null,1,1]
[null,null,"V položce jsou zakalkulovány náklady na napuštění a vypuštění vody, dodání vody a desinfekčního prostředku a na bakteriologický rozbor vody.",null,null,null,null,null,null,null,null,"V položce jsou zakalkulovány náklady na napuštění a vypuštění vody, dodání vody a desinfekčního prostředku a na bakteriologický rozbor vody.",null,null,3]
[11,"42201500.03.R","Regulátor tlaku HAWIDO DN 50 č. 1500","kus",1,null,{"$f":"E50*F50","v":0},1.1299999999999999E-2,{"$f":"E50*H50","v":1.1299999999999999E-2},null,{"$f":"E50*J50","v":0},null,null,null,2,null,null,null,null,null,null,null,null,null,null,null,3,1,"42201500.03.R",null,null,null,null,null,null,null,null,null,null,null,null,null,null,null,null,null,null,null,null,null,null,1,{"$f":"IF(AZ50=1,G50,0)","v":0},{"$f":"IF(AZ50=2,G50,0)","v":0},{"$f":"IF(AZ50=3,G50,0)","v":0},{"$f":"IF(AZ50=4,G50,0)","v":0},{"$f":"IF(AZ50=5,G50,0)","v":0},null,null,null,null,null,null,null,null,null,null,null,null,null,null,null,null,null,null,null,null,null,3,1]
[null,null,"Nastavení tlaku dle projektové dokumentace.",null,null,null,null,null,null,null,null,"Nastavení tlaku dle projektové dokumentace.",null,null,3]
[null,null,"Redukční šachta u čp.144:",null,0,null,null,null,null,null,null,null,"Redukční šachta u čp.144:"]
[null,null,"Regulátor tlaku DN50:1",null,1,null,null,null,null,null,null,null,"Regulátor tlaku DN50:1"]
[12,"42207800.01.R","Ruční kolo pro šoupátko DN 80","kus",2,null,{"$f":"E54*F54","v":0},6.1999999999999998E-3,{"$f":"E54*H54","v":1.24E-2},null,{"$f":"E54*J54","v":0},null,null,null,2,null,null,null,null,null,null,null,null,null,null,null,3,1,"42207800.01.R",null,null,null,null,null,null,null,null,null,null,null,null,null,null,null,null,null,null,null,null,null,null,1,{"$f":"IF(AZ54=1,G54,0)","v":0},{"$f":"IF(AZ54=2,G54,0)","v":0},{"$f":"IF(AZ54=3,G54,0)","v":0},{"$f":"IF(AZ54=4,G54,0)","v":0},{"$f":"IF(AZ54=5,G54,0)","v":0},null,null,null,null,null,null,null,null,null,null,null,null,null,null,null,null,null,null,null,null,null,3,1]
[null,null,"Ruční kolo uzavírací pro šoupátka z šsdé litiny GG 250 s epoxidovou ochrannou vrstvou.",null,null,null,null,null,null,null,null,"Ruční kolo uzavírací pro šoupátka z šsdé litiny GG 250 s epoxidovou ochrannou vrstvou.",null,null,3]
[null,null,"Pro Š DN65-80.",null,null,null,null,null,null,null,null,"Pro Š DN65-80.",null,null,3]
[null,null,"Redukční šachta u čp.144:",null,0,null,null,null,null,null,null,null,"Redukční šachta u čp.144:"]
[null,null,"Pro Šoupě DN80:2",null,2,null,null,null,null,null,null,null,"Pro Šoupě DN80:2"]
[13,"42208011.02.R","Tvarovka VARIO + svorníky DN50 (L=150-207) č. 8010","kus",1,null,{"$f":"E59*F59","v":0},1.008E-2,{"$f":"E59*H59","v":1.008E-2},null,{"$f":"E59*J59","v":0},null,null,null,2,null,null,null,null,null,null,null,null,null,null,null,3,1,"42208011.02.R",null,null,null,null,null,null,null,null,null,null,null,null,null,null,null,null,null,null,null,null,null,null,1,{"$f":"IF(AZ59=1,G59,0)","v":0},{"$f":"IF(AZ59=2,G59,0)","v":0},{"$f":"IF(AZ59=3,G59,0)","v":0},{"$f":"IF(AZ59=4,G59,0)","v":0},{"$f":"IF(AZ59=5,G59,0)","v":0},null,null,null,null,null,null,null,null,null,null,null,null,null,null,null,null,null,null,null,null,null,3,1]
[null,null,null,null,null,null,null,null,null,null,null,null,null,null,3]
[null,null,"Redukční šachta u čp.144:",null,0,null,null,null,null,null,null,null,"Redukční šachta u čp.144:"]
[null,null,"Montážní vložka DN50:1",null,1,null,null,null,null,null,null,null,"Montážní vložka DN50:1"]
[14,"42209910.01.R","Lapač nečistot DN 50 č. 9910","kus",1,null,{"$f":"E63*F63","v":0},2.8E-3,{"$f":"E63*H63","v":2.8E-3},null,{"$f":"E63*J63","v":0},null,null,null,2,null,null,null,null,null,null,null,null,null,null,null,3,1,"42209910.01.R",null,null,null,null,null,null,null,null,null,null,null,null,null,null,null,null,null,null,null,null,null,null,1,{"$f":"IF(AZ63=1,G63,0)","v":0},{"$f":"IF(AZ63=2,G63,0)","v":0},{"$f":"IF(AZ63=3,G63,0)","v":0},{"$f":"IF(AZ63=4,G63,0)","v":0},{"$f":"IF(AZ63=5,G63,0)","v":0},null,null,null,null,null,null,null,null,null,null,null,null,null,null,null,null,null,null,null,null,null,3,1]
[null,null,"Redukční šachta u čp.144:",null,0,null,null,null,null,null,null,null,"Redukční šachta u čp.144:"]
[null,null,"Lapač nečistot (filtr) DN50:1",null,1,null,null,null,null,null,null,null,"Lapač nečistot (filtr) DN50:1"]
[15,"42228310.R3","Šoupátko 4000E3 DN 80 přírubové, voda PN16","kus",2,null,{"$f":"E66*F66","v":0},1.6500000000000001E-2,{"$f":"E66*H66","v":3.3000000000000002E-2},null,{"$f":"E66*J66","v":0},null,null,null,2,null,null,null,null,null,null,null,null,null,null,null,3,1,"42228310.R3",null,null,null,null,null,null,null,null,null,null,null,null,null,null,null,null,null,null,null,null,null,null,1,{"$f":"IF(AZ66=1,G66,0)","v":0},{"$f":"IF(AZ66=2,G66,0)","v":0},{"$f":"IF(AZ66=3,G66,0)","v":0},{"$f":"IF(AZ66=4,G66,0)","v":0},{"$f":"IF(AZ66=5,G66,0)","v":0},null,null,null,null,null,null,null,null,null,null,null,null,null,null,null,null,null,null,null,null,null,3,1]
[null,null,"Šoupátko přírubové krkové - měkcetěsnící klínové šoupátko s hladkým a volným průtokovým kanálem",null,null,null,null,null,null,null,null,"Šoupátko přírubové krkové - měkcetěsnící klínové šoupátko s hladkým a volným průtokovým kanálem",null,null,3]
[null,null,"č. 4000E3",null,null,null,null,null,null,null,null,"č. 4000E3",null,null,3]
[null,null,"PN 16",null,null,null,null,null,null,null,null,"PN 16",null,null,3]
[null,null,"DN 80",null,null,null,null,null,null,null,null,"DN 80",null,null,3]
[null,null,"těleso a víko: tvárná litina GGG 400 - DIN 1693",null,null,null,null,null,null,null,null,"těleso a víko: tvárná litina GGG 400 - DIN 1693",null,null,3]
[null,null,"medium: pitná voda, neagresivní odpadní voda",null,null,null,null,null,null,null,null,"medium: pitná voda, neagresivní odpadní voda",null,null,3]
[null,null,"Redukční šachta u čp.144:",null,0,null,null,null,null,null,null,null,"Redukční šachta u čp.144:"]
[null,null,"Šoupě DN80:2",null,2,null,null,null,null,null,null,null,"Šoupě DN80:2"]
[16,"5525121010.R","Trouba přír.litin. FF DN 50 mm","kus",1,null,{"$f":"E75*F75","v":0},5.4000000000000003E-3,{"$f":"E75*H75","v":5.4000000000000003E-3},null,{"$f":"E75*J75","v":0},null,null,null,2,null,null,null,null,null,null,null,null,null,null,null,3,1,"5525121010.R",null,null,null,null,null,null,null,null,null,null,null,null,null,null,null,null,null,null,null,null,null,null,1,{"$f":"IF(AZ75=1,G75,0)","v":0},{"$f":"IF(AZ75=2,G75,0)","v":0},{"$f":"IF(AZ75=3,G75,0)","v":0},{"$f":"IF(AZ75=4,G75,0)","v":0},{"$f":"IF(AZ75=5,G75,0)","v":0},null,null,null,null,null,null,null,null,null,null,null,null,null,null,null,null,null,null,null,null,null,3,1]
[null,null,"Redukční šachta u čp.144:",null,0,null,null,null,null,null,null,null,"Redukční šachta u čp.144:"]
[null,null,"FF DN50/100:1",null,1,null,null,null,null,null,null,null,"FF DN50/100:1"]
[17,"55259811.R","Přechod přír. FFR DN 80/ 50","kus",2,null,{"$f":"E78*F78","v":0},7.3000000000000001E-3,{"$f":"E78*H78","v":1.46E-2},null,{"$f":"E78*J78","v":0},null,null,null,2,null,null,null,null,null,null,null,null,null,null,null,3,1,"55259811.R",null,null,null,null,null,null,null,null,null,null,null,null,null,null,null,null,null,null,null,null,null,null,1,{"$f":"IF(AZ78=1,G78,0)","v":0},{"$f":"IF(AZ78=2,G78,0)","v":0},{"$f":"IF(AZ78=3,G78,0)","v":0},{"$f":"IF(AZ78=4,G78,0)","v":0},{"$f":"IF(AZ78=5,G78,0)","v":0},null,null,null,null,null,null,null,null,null,null,null,null,null,null,null,null,null,null,null,null,null,3,1]
[null,null,"Redukční šachta u čp.144:",null,0,null,null,null,null,null,null,null,"Redukční šachta u čp.144:"]
[null,null,"FFR DN80/50:2",null,2,null,null,null,null,null,null,null,"FFR DN80/50:2"]
[18,"55260046.R","Příruba zaslepovací XG DN 50 závit 2\"","kus",1,null,{"$f":"E81*F81","v":0},2.3999999999999998E-3,{"$f":"E81*H81","v":2.3999999999999998E-3},null,{"$f":"E81*J81","v":0},null,null,null,2,null,null,null,null,null,null,null,null,null,null,null,3,1,"55260046.R",null,null,null,null,null,null,null,null,null,null,null,null,null,null,null,null,null,null,null,null,null,null,1,{"$f":"IF(AZ81=1,G81,0)","v":0},{"$f":"IF(AZ81=2,G81,0)","v":0},{"$f":"IF(AZ81=3,G81,0)","v":0},{"$f":"IF(AZ81=4,G81,0)","v":0},{"$f":"IF(AZ81=5,G81,0)","v":0},null,null,null,null,null,null,null,null,null,null,null,null,null,null,null,null,null,null,null,null,null,3,1]
[null,null,"Redukční šachta u čp.144:",null,0,null,null,null,null,null,null,null,"Redukční šachta u čp.144:"]
[null,null,"XG DN50/2\":1",null,1,null,null,null,null,null,null,null,"XG DN50/2\":1"]
[null,"Celkem za","8 Trubní vedení",null,null,null,{"$f":"SUM(G11:G83)","v":0},null,{"$f":"SUM(I11:I83)","v":9.7509999999999999E-2},null,{"$f":"SUM(K11:K83)","v":0},null,null,null,4,null,null,null,null,null,null,null,null,null,null,null,null,null,null,null,null,null,null,null,null,null,null,null,null,null,null,null,null,null,null,null,null,null,null,null,null,null,{"$f":"SUM(BA11:BA83)","v":0},{"$f":"SUM(BB11:BB83)","v":0},{"$f":"SUM(BC11:BC83)","v":0},{"$f":"SUM(BD11:BD83)","v":0},{"$f":"SUM(BE11:BE83)","v":0}]
["Díl:","99","Staveništní přesun hmot",null,null,null,null,null,null,null,null,null,null,null,1]
[19,"998273101R00","Přesun hmot, trubní vedení litinové, otevř. výkop ","t",9.7509999999999999E-2,null,{"$f":"E86*F86","v":0},0,{"$f":"E86*H86","v":0},null,{"$f":"E86*J86","v":0},null,null,null,2,null,null,null,null,null,null,null,null,null,null,null,7,1,2,null,null,null,null,null,null,null,null,null,null,null,null,null,null,null,null,null,null,null,null,null,null,1,{"$f":"IF(AZ86=1,G86,0)","v":0},{"$f":"IF(AZ86=2,G86,0)","v":0},{"$f":"IF(AZ86=3,G86,0)","v":0},{"$f":"IF(AZ86=4,G86,0)","v":0},{"$f":"IF(AZ86=5,G86,0)","v":0},null,null,null,null,null,null,null,null,null,null,null,null,null,null,null,null,null,null,null,null,null,7,1]
[null,"Celkem za","99 Staveništní přesun hmot",null,null,null,{"$f":"SUM(G85:G86)","v":0},null,{"$f":"SUM(I85:I86)","v":0},null,{"$f":"SUM(K85:K86)","v":0},null,null,null,4,null,null,null,null,null,null,null,null,null,null,null,null,null,null,null,null,null,null,null,null,null,null,null,null,null,null,null,null,null,null,null,null,null,null,null,null,null,{"$f":"SUM(BA85:BA86)","v":0},{"$f":"SUM(BB85:BB86)","v":0},{"$f":"SUM(BC85:BC86)","v":0},{"$f":"SUM(BD85:BD86)","v":0},{"$f":"SUM(BE85:BE86)","v":0}]

{"sheet":"005 3392005 KL","index":13,"n_rows":45,"n_cols":8,"rows_kept":45,"cut":false,"hidden":false,"merged":[[22,0,22,1],[7,2,7,4],[8,2,8,4],[9,2,9,4],[10,2,10,4],[11,2,11,4],[50,1,50,6],[29,5,29,6],[30,5,30,6],[31,5,31,6],[32,5,32,6],[33,5,33,6],[36,1,44,6],[45,1,45,6],[46,1,46,6],[47,1,47,6],[48,1,48,6],[49,1,49,6]]}
["POLOŽKOVÝ ROZPOČET"]
["Rozpočet",null,"3392/005","Chuchelna - propojení vodovodu",null,"JKSO ","827.11"]
[]
["Objekt",null,null,null,null,"SKP "]
["005",null,"Chuchelna - propojení vodovodu",null,null,"Měrná jednotka","m"]
["Stavba",null,null,null,null,"Počet jednotek",0]
["3392",null,"Chuchelna – optimalizace vodovodní soustavy",null,null,"Náklady na m.j.",{"$f":"IF(G6=0,,ROUND((F30+F32)/G6,1))","v":0}]
["Projektant",null,"Radek Hnát - VAK PROJEKT",null,null,"Typ rozpočtu"]
["Zpracovatel projektu"]
["Objednatel",null,"Vodohospodářské sdružení Turnov"]
["Dodavatel",null,".",null,null,"Zakázkové číslo "]
["Rozpočtoval",null,null,null,null,"Počet listů"]
["ROZPOČTOVÉ NÁKLADY"]
["Základní rozpočtové náklady"]
[null,"HSV celkem",{"$f":"'005 3392005 Rek'!E12","v":0}]
["Z","PSV celkem",{"$f":"'005 3392005 Rek'!F12","v":0}]
["R","M práce celkem",{"$f":"'005 3392005 Rek'!H12","v":0}]
["N","M dodávky celkem",{"$f":"'005 3392005 Rek'!G12","v":0}]
["ZRN celkem",null,{"$f":"SUM(C15:C18)","v":0}]
[]
["HZS",null,{"$f":"'005 3392005 Rek'!I12","v":0}]
["ZRN+HZS",null,{"$f":"C19+C21","v":0}]
["ZRN+ost.náklady+HZS",null,{"$f":"C22+G23","v":0}]
["Vypracoval",null,null,"Za zhotovitele",null,"Za objednatele"]
["Jméno :",null,null,"Jméno :",null,"Jméno :"]
["Datum :",null,null,"Datum :",null,"Datum :"]
[]
["Podpis :",null,null,"Podpis:",null,"Podpis:"]
[]
["Základ pro DPH",null,21,"%  ",null,{"$f":"C23-F32","v":0}]
["DPH",null,{"$f":"C30","v":21},"% ",null,{"$f":"ROUND(PRODUCT(F30,C31/100),0)","v":0}]
["Základ pro DPH",null,0,"% ",null,0]
["DPH",null,{"$f":"C32","v":0},"% ",null,{"$f":"ROUND(PRODUCT(F32,C33/100),0)","v":0}]
["CENA ZA OBJEKT CELKEM",null,null,null,null,{"$f":"ROUND(SUM(F30:F33),0)","v":0}]
[]
["Poznámka :",null,null,null,null,null,null," "]
[null,null,null,null,null,null,null," "]
[null,null,null,null,null,null,null," "]
[null,null,null,null,null,null,null," "]
[null,null,null,null,null,null,null," "]
[null,null,null,null,null,null,null," "]
[null,null,null,null,null,null,null," "]
[null,null,null,null,null,null,null," "]
[null,null,null,null,null,null,null," "]
[null,null,null,null,null,null,null," "]

{"sheet":"005 3392005 Rek","index":14,"n_rows":12,"n_cols":9,"rows_kept":12,"cut":false,"hidden":false,"merged":[[0,0,0,1],[1,0,1,1],[1,6,1,8]]}
["Stavba :",null,"3392 Chuchelna – optimalizace vodovodní soustavy",null,null,null,"Rozpočet :","3392/005"]
["Objekt :",null,"005 Chuchelna - propojení vodovodu",null,null,null,"Chuchelna - propojení vodovodu"]
[]
["REKAPITULACE  STAVEBNÍCH  DÍLŮ"]
[]
[null,"Stavební díl",null,null,"HSV","PSV","Dodávka","Montáž","HZS"]
[{"$f":"'005 3392005 Pol'!B7","v":"1"},{"$f":"'005 3392005 Pol'!C7","v":"Zemní práce"},null,null,{"$f":"'005 3392005 Pol'!BA214","v":0},{"$f":"'005 3392005 Pol'!BB214","v":0},{"$f":"'005 3392005 Pol'!BC214","v":0},{"$f":"'005 3392005 Pol'!BD214","v":0},{"$f":"'005 3392005 Pol'!BE214","v":0}]
[{"$f":"'005 3392005 Pol'!B215","v":"45"},{"$f":"'005 3392005 Pol'!C215","v":"Podkladní a vedlejší konstrukce"},null,null,{"$f":"'005 3392005 Pol'!BA228","v":0},{"$f":"'005 3392005 Pol'!BB228","v":0},{"$f":"'005 3392005 Pol'!BC228","v":0},{"$f":"'005 3392005 Pol'!BD228","v":0},{"$f":"'005 3392005 Pol'!BE228","v":0}]
[{"$f":"'005 3392005 Pol'!B229","v":"5"},{"$f":"'005 3392005 Pol'!C229","v":"Komunikace"},null,null,{"$f":"'005 3392005 Pol'!BA276","v":0},{"$f":"'005 3392005 Pol'!BB276","v":0},{"$f":"'005 3392005 Pol'!BC276","v":0},{"$f":"'005 3392005 Pol'!BD276","v":0},{"$f":"'005 3392005 Pol'!BE276","v":0}]
[{"$f":"'005 3392005 Pol'!B277","v":"8"},{"$f":"'005 3392005 Pol'!C277","v":"Trubní vedení"},null,null,{"$f":"'005 3392005 Pol'!BA612","v":0},{"$f":"'005 3392005 Pol'!BB612","v":0},{"$f":"'005 3392005 Pol'!BC612","v":0},{"$f":"'005 3392005 Pol'!BD612","v":0},{"$f":"'005 3392005 Pol'!BE612","v":0}]
[{"$f":"'005 3392005 Pol'!B613","v":"99"},{"$f":"'005 3392005 Pol'!C613","v":"Staveništní přesun hmot"},null,null,{"$f":"'005 3392005 Pol'!BA615","v":0},{"$f":"'005 3392005 Pol'!BB615","v":0},{"$f":"'005 3392005 Pol'!BC615","v":0},{"$f":"'005 3392005 Pol'!BD615","v":0},{"$f":"'005 3392005 Pol'!BE615","v":0}]
[null,"CELKEM  OBJEKT",null,null,{"$f":"SUM(E7:E11)","v":0},{"$f":"SUM(F7:F11)","v":0},{"$f":"SUM(G7:G11)","v":0},{"$f":"SUM(H7:H11)","v":0},{"$f":"SUM(I7:I11)","v":0}]

{"sheet":"005 3392005 Pol","index":15,"n_rows":615,"n_cols":80,"rows_kept":615,"cut":false,"hidden":false,"merged":[[12,2,12,3],[14,2,14,3],[15,2,15,3],[16,2,16,3],[17,2,17,3],[19,2,19,3],[0,0,0,6],[2,0,2,1],[3,0,3,1],[3,4,3,6],[8,2,8,3],[9,2,9,3],[10,2,10,3],[11,2,11,3],[28,2,28,3],[30,2,30,3],[31,2,31,3],[33,2,33,6],[34,2,34,6],[35,2,35,3],[20,2,20,3],[21,2,21,3],[22,2,22,3],[24,2,24,3],[25,2,25,3],[27,2,27,3],[43,2,43,3],[44,2,44,3],[45,2,45,3],[47,2,47,6],[48,2,48,3],[49,2,49,3],[36,2,36,3],[37,2,37,3],[38,2,38,3],[40,2,40,3],[41,2,41,3],[42,2,42,3],[57,2,57,3],[58,2,58,3],[59,2,59,3],[60,2,60,3],[61,2,61,3],[62,2,62,3],[51,2,51,6],[52,2,52,3],[53,2,53,3],[54,2,54,3],[55,2,55,3],[56,2,56,3],[69,2,69,3],[70,2,70,3],[71,2,71,3],[72,2,72,3],[73,2,73,3],[74,2,74,3],[63,2,63,3],[64,2,64,3],[65,2,65,3],[66,2,66,3],[67,2,67,3],[68,2,68,3],[81,2,81,3],[82,2,82,3],[83,2,83,3],[84,2,84,3],[85,2,85,3],[87,2,87,3],[75,2,75,3],[76,2,76,3],[77,2,77,3],[78,2,78,3],[79,2,79,3],[80,2,80,3],[97,2,97,3],[98,2,98,3],[100,2,100,6],[101,2,101,6],[102,2,102,6],[103,2,103,6],[88,2,88,3],[90,2,90,6],[91,2,91,3],[92,2,92,3],[94,2,94,3],[95,2,95,3],[110,2,110,3],[111,2,111,3],[113,2,113,3],[114,2,114,3],[115,2,115,3],[116,2,116,3],[104,2,104,6],[105,2,105,6],[106,2,106,6],[107,2,107,6],[108,2,108,6],[109,2,109,3],[123,2,123,3],[124,2,124,3],[125,2,125,3],[127,2,127,3],[128,2,128,3],[129,2,129,3],[117,2,117,3],[118,2,118,3],[119,2,119,3],[120,2,120,3],[121,2,121,3],[122,2,122,3],[136,2,136,3],[137,2,137,3],[138,2,138,3],[139,2,139,3],[141,2,141,3],[142,2,142,3],[130,2,130,3],[131,2,131,3],[132,2,132,3],[133,2,133,3],[134,2,134,3],[135,2,135,3],[150,2,150,3],[151,2,151,3],[152,2,152,3],[153,2,153,3],[154,2,154,3],[155,2,155,3],[143,2,143,3],[144,2,144,3],[146,2,146,6],[147,2,147,6],[148,2,148,3],[149,2,149,3],[162,2,162,3],[163,2,163,3],[164,2,164,3],[165,2,165,3],[166,2,166,3],[167,2,167,3],[156,2,156,3],[157,2,157,3],[158,2,158,3],[159,2,159,3],[160,2,160,3],[161,2,161,3],[176,2,176,3],[177,2,177,3],[179,2,179,3],[180,2,180,3],[182,2,182,3],[183,2,183,3],[169,2,169,3],[170,2,170,3],[171,2,171,3],[172,2,172,3],[174,2,174,3],[175,2,175,3],[196,2,196,6],[197,2,197,6],[198,2,198,6],[199,2,199,6],[200,2,200,6],[201,2,201,3],[184,2,184,3],[185,2,185,3],[187,2,187,3],[188,2,188,3],[193,2,193,6],[195,2,195,6],[209,2,209,3],[211,2,211,3],[212,2,212,3],[216,2,216,3],[217,2,217,3],[218,2,218,3],[219,2,219,3],[221,2,221,3],[202,2,202,3],[203,2,203,3],[204,2,204,3],[206,2,206,3],[207,2,207,3],[208,2,208,3],[222,2,222,3],[223,2,223,3],[224,2,224,3],[225,2,225,3],[226,2,226,3],[241,2,241,3],[242,2,242,3],[244,2,244,6],[245,2,245,3],[246,2,246,3],[247,2,247,3],[248,2,248,3],[250,2,250,3],[251,2,251,3],[253,2,253,3],[230,2,230,3],[231,2,231,3],[232,2,232,3],[233,2,233,3],[235,2,235,3],[236,2,236,3],[238,2,238,3],[239,2,239,3],[240,2,240,3],[262,2,262,3],[263,2,263,3],[265,2,265,6],[266,2,266,3],[267,2,267,3],[268,2,268,3],[254,2,254,3],[256,2,256,6],[257,2,257,3],[258,2,258,3],[260,2,260,3],[261,2,261,3],[269,2,269,3],[271,2,271,6],[272,2,272,3],[273,2,273,3],[274,2,274,3],[289,2,289,3],[290,2,290,3],[291,2,291,3],[292,2,292,3],[293,2,293,3],[294,2,294,3],[295,2,295,3],[296,2,296,3],[297,2,297,3],[299,2,299,6],[280,2,280,6],[281,2,281,6],[282,2,282,6],[283,2,283,6],[284,2,284,6],[285,2,285,6],[286,2,286,6],[287,2,287,6],[288,2,288,3],[307,2,307,3],[308,2,308,3],[309,2,309,3],[310,2,310,3],[311,2,311,3],[312,2,312,3],[300,2,300,3],[301,2,301,3],[303,2,303,6],[304,2,304,6],[305,2,305,3],[306,2,306,3],[321,2,321,6],[322,2,322,6],[323,2,323,3],[324,2,324,3],[325,2,325,3],[326,2,326,3],[313,2,313,3],[315,2,315,6],[316,2,316,6],[317,2,317,3],[318,2,318,3],[319,2,319,3],[336,2,336,3],[337,2,337,3],[339,2,339,3],[340,2,340,3],[341,2,341,3],[343,2,343,3],[328,2,328,6],[329,2,329,3],[330,2,330,3],[332,2,332,3],[334,2,334,3],[335,2,335,3],[352,2,352,6],[353,2,353,3],[354,2,354,3],[356,2,356,6],[357,2,357,6],[358,2,358,3],[344,2,344,3],[346,2,346,3],[347,2,347,3],[348,2,348,3],[349,2,349,3],[350,2,350,3],[367,2,367,6],[368,2,368,3],[369,2,369,3],[371,2,371,6],[372,2,372,6],[373,2,373,3],[359,2,359,3],[361,2,361,6],[362,2,362,6],[363,2,363,3],[364,2,364,3],[366,2,366,6],[382,2,382,3],[383,2,383,3],[385,2,385,6],[386,2,386,3],[387,2,387,3],[389,2,389,6],[374,2,374,3],[376,2,376,6],[377,2,377,6],[378,2,378,3],[379,2,379,3],[381,2,381,3],[399,2,399,3],[400,2,400,3],[401,2,401,3],[403,2,403,6],[404,2,404,3],[405,2,405,3],[390,2,390,3],[391,2,391,3],[393,2,393,6],[394,2,394,3],[396,2,396,6],[397,2,397,3],[414,2,414,3],[415,2,415,3],[416,2,416,3],[417,2,417,3],[418,2,418,3],[419,2,419,3],[406,2,406,3],[407,2,407,3],[409,2,409,6],[410,2,410,3],[411,2,411,3],[413,2,413,6],[428,2,428,3],[429,2,429,3],[430,2,430,3],[431,2,431,3],[432,2,432,3],[433,2,433,3],[420,2,420,3],[422,2,422,3],[423,2,423,3],[424,2,424,3],[426,2,426,6],[427,2,427,3],[442,2,442,3],[443,2,443,3],[444,2,444,3],[446,2,446,6],[447,2,447,6],[448,2,448,6],[434,2,434,3],[435,2,435,3],[436,2,436,3],[438,2,438,3],[439,2,439,3],[440,2,440,3],[456,2,456,6],[457,2,457,6],[458,2,458,6],[459,2,459,3],[461,2,461,3],[462,2,462,3],[449,2,449,6],[450,2,450,6],[451,2,451,3],[452,2,452,3],[454,2,454,6],[455,2,455,6],[472,2,472,3],[474,2,474,3],[475,2,475,3],[477,2,477,3],[478,2,478,3],[480,2,480,3],[463,2,463,3],[465,2,465,3],[466,2,466,3],[468,2,468,3],[469,2,469,3],[471,2,471,3],[490,2,490,3],[491,2,491,3],[492,2,492,3],[494,2,494,3],[495,2,495,3],[496,2,496,3],[481,2,481,3],[483,2,483,3],[484,2,484,3],[486,2,486,3],[487,2,487,3],[488,2,488,3],[505,2,505,3],[506,2,506,3],[507,2,507,3],[508,2,508,3],[510,2,510,6],[511,2,511,3],[497,2,497,3],[499,2,499,3],[500,2,500,3],[502,2,502,6],[503,2,503,3],[504,2,504,3],[520,2,520,6],[521,2,521,6],[522,2,522,6],[523,2,523,3],[524,2,524,3],[526,2,526,6],[512,2,512,3],[514,2,514,3],[515,2,515,3],[517,2,517,6],[518,2,518,6],[519,2,519,6],[533,2,533,3],[535,2,535,6],[536,2,536,6],[537,2,537,6],[538,2,538,6],[539,2,539,6],[527,2,527,6],[528,2,528,6],[529,2,529,6],[530,2,530,6],[531,2,531,6],[532,2,532,3],[548,2,548,3],[549,2,549,3],[550,2,550,3],[552,2,552,6],[553,2,553,6],[554,2,554,6],[540,2,540,6],[541,2,541,3],[542,2,542,3],[544,2,544,3],[545,2,545,3],[547,2,547,3],[561,2,561,6],[562,2,562,6],[563,2,563,6],[564,2,564,6],[565,2,565,6],[566,2,566,6],[555,2,555,6],[556,2,556,6],[557,2,557,6],[558,2,558,6],[559,2,559,6],[560,2,560,6],[574,2,574,6],[575,2,575,6],[576,2,576,6],[577,2,577,6],[578,2,578,6],[579,2,579,6],[567,2,567,6],[568,2,568,6],[569,2,569,6],[570,2,570,3],[571,2,571,3],[572,2,572,3],[586,2,586,6],[587,2,587,6],[588,2,588,3],[589,2,589,3],[591,2,591,3],[592,2,592,3],[580,2,580,6],[581,2,581,6],[582,2,582,6],[583,2,583,6],[584,2,584,6],[585,2,585,6],[603,2,603,3],[604,2,604,3],[606,2,606,3],[607,2,607,3],[609,2,609,3],[610,2,610,3],[594,2,594,3],[595,2,595,3],[597,2,597,3],[598,2,598,3],[600,2,600,3],[601,2,601,3]]}
["Položkový rozpočet "]
[]
["Stavba :",null,"3392 Chuchelna – optimalizace vodovodní soustavy",null,"Rozpočet:",{"$f":"'005 3392005 Rek'!H1","v":"3392/005"}]
["Objekt :",null,"005 Chuchelna - propojení vodovodu",null,{"$f":"'005 3392005 Rek'!G2","v":"Chuchelna - propojení vodovodu"}]
[]
["P.č.","Číslo položky","Název položky","MJ","množství","cena / MJ","celkem (Kč)","Jednotková hmotnost","Celková hmotnost","Jednotková dem.hmot.","Celková dem.hmot."]
["Díl:","1","Zemní práce",null,null,null,null,null,null,null,null,null,null,null,1]
[1,"113107530R00","Odstranění podkladu pl. 50 m2,kam.drcené tl.30 cm ","m2",30.16,null,{"$f":"E8*F8","v":0},0,{"$f":"E8*H8","v":0},-0.66,{"$f":"E8*J8","v":-19.9056},null,null,null,2,null,null,null,null,null,null,null,null,null,null,null,1,1,1,null,null,null,null,null,null,null,null,null,null,null,null,null,null,null,null,null,null,null,null,null,null,1,{"$f":"IF(AZ8=1,G8,0)","v":0},{"$f":"IF(AZ8=2,G8,0)","v":0},{"$f":"IF(AZ8=3,G8,0)","v":0},{"$f":"IF(AZ8=4,G8,0)","v":0},{"$f":"IF(AZ8=5,G8,0)","v":0},null,null,null,null,null,null,null,null,null,null,null,null,null,null,null,null,null,null,null,null,null,1,1]
[null,null,"Vodovod - Řad 1 PE D 110x10,0 mm :",null,0,null,null,null,null,null,null,null,"Vodovod - Řad 1 PE D 110x10,0 mm :"]
[null,null,"km 0,000.0 - 0,009.7:9,70*0,80",null,7.76,null,null,null,null,null,null,null,"km 0,000.0 - 0,009.7:9,70*0,80"]
[null,null,"km 0,027.0 - 0,038 (krajnice):11,00*0,80",null,8.8000000000000007,null,null,null,null,null,null,null,"km 0,027.0 - 0,038 (krajnice):11,00*0,80"]
[null,null,"km 0,038.0 - 0,042.0:4,00*2,00",null,8,null,null,null,null,null,null,null,"km 0,038.0 - 0,042.0:4,00*2,00"]
[null,null,"VP pro čp. 60 PE D 32x3,0 mm:7,00*0,80",null,5.6,null,null,null,null,null,null,null,"VP pro čp. 60 PE D 32x3,0 mm:7,00*0,80"]
[2,"113107605R00","Odstranění podkladu nad 50 m2,kam.drcené tl.5 cm ","m2",56.4,null,{"$f":"E14*F14","v":0},0,{"$f":"E14*H14","v":0},-0.11,{"$f":"E14*J14","v":-6.2039999999999997},null,null,null,2,null,null,null,null,null,null,null,null,null,null,null,1,1,1,null,null,null,null,null,null,null,null,null,null,null,null,null,null,null,null,null,null,null,null,null,null,1,{"$f":"IF(AZ14=1,G14,0)","v":0},{"$f":"IF(AZ14=2,G14,0)","v":0},{"$f":"IF(AZ14=3,G14,0)","v":0},{"$f":"IF(AZ14=4,G14,0)","v":0},{"$f":"IF(AZ14=5,G14,0)","v":0},null,null,null,null,null,null,null,null,null,null,null,null,null,null,null,null,null,null,null,null,null,1,1]
[null,null,"Vodovod - Řad 1 PE D 110x10,0 mm :",null,0,null,null,null,null,null,null,null,"Vodovod - Řad 1 PE D 110x10,0 mm :"]
[null,null,"Místní soukromá komunikace (od mostku k silnici III. tř.):70,00",null,70,null,null,null,null,null,null,null,"Místní soukromá komunikace (od mostku k silnici III. tř.):70,00"]
[null,null,"km 0,038.0 - 0,042.0:-4,00*2,00",null,-8,null,null,null,null,null,null,null,"km 0,038.0 - 0,042.0:-4,00*2,00"]
[null,null,"VP pro čp. 60 PE D 32x3,0 mm:-7,00*0,80",null,-5.6,null,null,null,null,null,null,null,"VP pro čp. 60 PE D 32x3,0 mm:-7,00*0,80"]
[3,"113108306R00","Odstranění asfaltové vrstvy pl.do 50 m2, tl. 6 cm ","m2",26.04,null,{"$f":"E19*F19","v":0},0,{"$f":"E19*H19","v":0},-0.13200000000000001,{"$f":"E19*J19","v":-3.4372799999999999},null,null,null,2,null,null,null,null,null,null,null,null,null,null,null,1,1,1,null,null,null,null,null,null,null,null,null,null,null,null,null,null,null,null,null,null,null,null,null,null,1,{"$f":"IF(AZ19=1,G19,0)","v":0},{"$f":"IF(AZ19=2,G19,0)","v":0},{"$f":"IF(AZ19=3,G19,0)","v":0},{"$f":"IF(AZ19=4,G19,0)","v":0},{"$f":"IF(AZ19=5,G19,0)","v":0},null,null,null,null,null,null,null,null,null,null,null,null,null,null,null,null,null,null,null,null,null,1,1]
[null,null,"Vodovod - Řad 1 PE D 110x10,0 mm :",null,0,null,null,null,null,null,null,null,"Vodovod - Řad 1 PE D 110x10,0 mm :"]
[null,null,"km 0,000.0 - 0,009.7:9,70*1,20",null,11.64,null,null,null,null,null,null,null,"km 0,000.0 - 0,009.7:9,70*1,20"]
[null,null,"km 0,038.0 - 0,042.0:4,00*2,40",null,9.6,null,null,null,null,null,null,null,"km 0,038.0 - 0,042.0:4,00*2,40"]
[null,null,"VP pro čp. 60 PE D 32x3,0 mm:4,00*1,20",null,4.8,null,null,null,null,null,null,null,"VP pro čp. 60 PE D 32x3,0 mm:4,00*1,20"]
[4,"113108405R00","Odstranění asfaltové vrstvy pl.nad 50 m2, tl. 5 cm ","m2",70,null,{"$f":"E24*F24","v":0},0,{"$f":"E24*H24","v":0},-0.11,{"$f":"E24*J24","v":-7.7},null,null,null,2,null,null,null,null,null,null,null,null,null,null,null,1,1,1,null,null,null,null,null,null,null,null,null,null,null,null,null,null,null,null,null,null,null,null,null,null,1,{"$f":"IF(AZ24=1,G24,0)","v":0},{"$f":"IF(AZ24=2,G24,0)","v":0},{"$f":"IF(AZ24=3,G24,0)","v":0},{"$f":"IF(AZ24=4,G24,0)","v":0},{"$f":"IF(AZ24=5,G24,0)","v":0},null,null,null,null,null,null,null,null,null,null,null,null,null,null,null,null,null,null,null,null,null,1,1]
[null,null,"Vodovod - Řad 1 PE D 110x10,0 mm :",null,0,null,null,null,null,null,null,null,"Vodovod - Řad 1 PE D 110x10,0 mm :"]
[null,null,"Místní soukromá komunikace (od mostku k silnici III. tř.):70,00",null,70,null,null,null,null,null,null,null,"Místní soukromá komunikace (od mostku k silnici III. tř.):70,00"]
[5,"113109315R00","Odstranění podkladu pl.50 m2, bet.prostý tl.15 cm ","m2",2.4,null,{"$f":"E27*F27","v":0},0,{"$f":"E27*H27","v":0},-0.36,{"$f":"E27*J27","v":-0.86399999999999999},null,null,null,2,null,null,null,null,null,null,null,null,null,null,null,1,1,1,null,null,null,null,null,null,null,null,null,null,null,null,null,null,null,null,null,null,null,null,null,null,1,{"$f":"IF(AZ27=1,G27,0)","v":0},{"$f":"IF(AZ27=2,G27,0)","v":0},{"$f":"IF(AZ27=3,G27,0)","v":0},{"$f":"IF(AZ27=4,G27,0)","v":0},{"$f":"IF(AZ27=5,G27,0)","v":0},null,null,null,null,null,null,null,null,null,null,null,null,null,null,null,null,null,null,null,null,null,1,1]
[null,null,"Vodovod - Řad 1 PE D 110x10,0 mm :",null,0,null,null,null,null,null,null,null,"Vodovod - Řad 1 PE D 110x10,0 mm :"]
[null,null,"VP pro čp. 60 PE D 32x3,0 mm:3,00*0,80",null,2.4,null,null,null,null,null,null,null,"VP pro čp. 60 PE D 32x3,0 mm:3,00*0,80"]
[6,"113151113R00","Fréz.živič.krytu pl.do 500 m2,pruh do 75 cm,tl.4cm ","m2",66,null,{"$f":"E30*F30","v":0},0,{"$f":"E30*H30","v":0},-8.7999999999999995E-2,{"$f":"E30*J30","v":-5.8079999999999998},null,null,null,2,null,null,null,null,null,null,null,null,null,null,null,1,1,1,null,null,null,null,null,null,null,null,null,null,null,null,null,null,null,null,null,null,null,null,null,null,1,{"$f":"IF(AZ30=1,G30,0)","v":0},{"$f":"IF(AZ30=2,G30,0)","v":0},{"$f":"IF(AZ30=3,G30,0)","v":0},{"$f":"IF(AZ30=4,G30,0)","v":0},{"$f":"IF(AZ30=5,G30,0)","v":0},null,null,null,null,null,null,null,null,null,null,null,null,null,null,null,null,null,null,null,null,null,1,1]
[null,null,"Vodovod - Řad 1 PE D 110x10,0 mm :",null,0,null,null,null,null,null,null,null,"Vodovod - Řad 1 PE D 110x10,0 mm :"]
[null,null,"Místní komunikace:66,00",null,66,null,null,null,null,null,null,null,"Místní komunikace:66,00"]
[7,"115101201R00","Čerpání vody na výšku do 10 m, přítok do 500 l/min ","h",224,null,{"$f":"E33*F33","v":0},0,{"$f":"E33*H33","v":0},0,{"$f":"E33*J33","v":0},null,null,null,2,null,null,null,null,null,null,null,null,null,null,null,1,0,0,null,null,null,null,null,null,null,null,null,null,null,null,null,null,null,null,null,null,null,null,null,null,1,{"$f":"IF(AZ33=1,G33,0)","v":0},{"$f":"IF(AZ33=2,G33,0)","v":0},{"$f":"IF(AZ33=3,G33,0)","v":0},{"$f":"IF(AZ33=4,G33,0)","v":0},{"$f":"IF(AZ33=5,G33,0)","v":0},null,null,null,null,null,null,null,null,null,null,null,null,null,null,null,null,null,null,null,null,null,1,0]
[null,null,"Množství měrných jednotek je doba, po kterou je čerpadlo v provozu. Množství m.j. je uvedeno dle předpokladu, celková cena této práce se stanoví podle skutečnosti při provádění stavebních prací.",null,null,null,null,null,null,null,null,"Množství měrných jednotek je doba, po kterou je čerpadlo v provozu. Množství m.j. je uvedeno dle předpokladu, celková cena této práce se stanoví podle skutečnosti při provádění stavebních prací.",null,null,3]
[null,null,null,null,null,null,null,null,null,null,null,null,null,null,3]
[null,null,"Vodovod - Řad 1 PE D 110x10,0 mm km 0,000.0 - 0,120.0:200,00",null,200,null,null,null,null,null,null,null,"Vodovod - Řad 1 PE D 110x10,0 mm km 0,000.0 - 0,120.0:200,00"]
[null,null,"VP pro čp. 60 PE D 32x3,0 mm:8,00",null,8,null,null,null,null,null,null,null,"VP pro čp. 60 PE D 32x3,0 mm:8,00"]
[null,null,"Propojení Řadu TLT DN80 po odstranění AŠ:8,00",null,8,null,null,null,null,null,null,null,"Propojení Řadu TLT DN80 po odstranění AŠ:8,00"]
[null,null,"Po odpojení VP pro čp. 60 na TLT DN80:8,00",null,8,null,null,null,null,null,null,null,"Po odpojení VP pro čp. 60 na TLT DN80:8,00"]
[8,"121100002RAA","Sejmutí ornice a uložení na deponii zpětný přesun, rozprostření v tl. 20 cm","m3",43.98,null,{"$f":"E40*F40","v":0},0,{"$f":"E40*H40","v":0},0,{"$f":"E40*J40","v":0},null,null,null,2,null,null,null,null,null,null,null,null,null,null,null,1,1,1,null,null,null,null,null,null,null,null,null,null,null,null,null,null,null,null,null,null,null,null,null,null,1,{"$f":"IF(AZ40=1,G40,0)","v":0},{"$f":"IF(AZ40=2,G40,0)","v":0},{"$f":"IF(AZ40=3,G40,0)","v":0},{"$f":"IF(AZ40=4,G40,0)","v":0},{"$f":"IF(AZ40=5,G40,0)","v":0},null,null,null,null,null,null,null,null,null,null,null,null,null,null,null,null,null,null,null,null,null,1,1]
[null,null,"Vodovod - Řad 1 PE D 110x10,0 mm :",null,0,null,null,null,null,null,null,null,"Vodovod - Řad 1 PE D 110x10,0 mm :"]
[null,null,"km 0,009.7 - 0,014.0:4,30*3,00*0,20",null,2.58,null,null,null,null,null,null,null,"km 0,009.7 - 0,014.0:4,30*3,00*0,20"]
[null,null,"km 0,020.0 - 0,027.0:7,00*3,00*0,20",null,4.2,null,null,null,null,null,null,null,"km 0,020.0 - 0,027.0:7,00*3,00*0,20"]
[null,null,"km 0,055.0 - 0,112.0:57,00*3,00*0,20",null,34.200000000000003,null,null,null,null,null,null,null,"km 0,055.0 - 0,112.0:57,00*3,00*0,20"]
[null,null,"Propojení Řadu TLT DN80 po odstranění AŠ:3,00*3,00*0,20",null,1.8,null,null,null,null,null,null,null,"Propojení Řadu TLT DN80 po odstranění AŠ:3,00*3,00*0,20"]
[null,null,"Po odpojení VP pro čp. 60 na TLT DN80:2,00*3,00*0,20",null,1.2,null,null,null,null,null,null,null,"Po odpojení VP pro čp. 60 na TLT DN80:2,00*3,00*0,20"]
[9,"130001101RRX","Příplatek za ztížené hloubení v blízkosti vedení ","m3",56.822499999999998,null,{"$f":"E47*F47","v":0},0,{"$f":"E47*H47","v":0},0,{"$f":"E47*J47","v":0},null,null,null,2,null,null,null,null,null,null,null,null,null,null,null,1,1,1,null,null,null,null,null,null,null,null,null,null,null,null,null,null,null,null,null,null,null,null,null,null,1,{"$f":"IF(AZ47=1,G47,0)","v":0},{"$f":"IF(AZ47=2,G47,0)","v":0},{"$f":"IF(AZ47=3,G47,0)","v":0},{"$f":"IF(AZ47=4,G47,0)","v":0},{"$f":"IF(AZ47=5,G47,0)","v":0},null,null,null,null,null,null,null,null,null,null,null,null,null,null,null,null,null,null,null,null,null,1,1]
[null,null,"Včetně případných nutných dokopávem a ručního výkopu podél sousedících inženýrských sítí včetně vyvěšení a zajištění sítí.",null,null,null,null,null,null,null,null,"Včetně případných nutných dokopávem a ručního výkopu podél sousedících inženýrských sítí včetně vyvěšení a zajištění sítí.",null,null,3]
[null,null,"Vodovod - Řad 1 PE D 110x10,0 mm :",null,0,null,null,null,null,null,null,null,"Vodovod - Řad 1 PE D 110x10,0 mm :"]
[null,null,"V hornině tř. 3 - 5 - 38%:149,5330*0,38",null,56.822499999999998,null,null,null,null,null,null,null,"V hornině tř. 3 - 5 - 38%:149,5330*0,38"]
[10,"132201211R00","Hloubení rýh š.do 200 cm hor.3 do 100 m3,STROJNĚ ","m3",74.766499999999994,null,{"$f":"E51*F51","v":0},0,{"$f":"E51*H51","v":0},0,{"$f":"E51*J51","v":0},null,null,null,2,null,null,null,null,null,null,null,null,null,null,null,1,1,1,null,null,null,null,null,null,null,null,null,null,null,null,null,null,null,null,null,null,null,null,null,null,1,{"$f":"IF(AZ51=1,G51,0)","v":0},{"$f":"IF(AZ51=2,G51,0)","v":0},{"$f":"IF(AZ51=3,G51,0)","v":0},{"$f":"IF(AZ51=4,G51,0)","v":0},{"$f":"IF(AZ51=5,G51,0)","v":0},null,null,null,null,null,null,null,null,null,null,null,null,null,null,null,null,null,null,null,null,null,1,1]
[null,null,"Položka obsahuje hloubení rýh traktorbagrem, naložení výkopku na dopravní prostředek pro svislé, nebo vodorovné přemístění, popř. přemístění výkopku do 3 m (po povrchu území), případné zajištění rypadel polštáři, udržování pracoviště a ochranu výkopiště proti stékání srážkové vody z okolního terénu i s jejím odvodněním, nebo odvedením, přesekání a odstranění kořenů ve výkopišti, odstranění napadávek, urovnání dna výkopu.",null,null,null,null,null,null,null,null,"Položka obsahuje hloubení rýh traktorbagrem, naložení výkopku na dopravní prostředek pro svislé, nebo vodorovné přemístění, popř. přemístění výkopku do 3 m (po povrchu území), případné zajištění rypadel polštáři, udržování pracoviště a ochranu výkopiště proti stékání srážkové vody z okolního terénu i s jejím odvodněním, nebo odvedením, přesekání a odstranění kořenů ve výkopišti, odstranění napadávek, urovnání dna výkopu.",null,null,3]
[null,null,"Vodovod - Řad 1 PE D 110x10,0 mm :",null,0,null,null,null,null,null,null,null,"Vodovod - Řad 1 PE D 110x10,0 mm :"]
[null,null,"Začátek provozního součtu",null,0,null,null,null,null,null,null,null,"Začátek provozního součtu"]
[null,null,"km 0,000.0 - 0,014.0:14,00*0,80*1,65",null,18.48,null,null,null,null,null,null,null,"km 0,000.0 - 0,014.0:14,00*0,80*1,65"]
[null,null,"Startovací jáma:3,00*2,00*1,65",null,9.9,null,null,null,null,null,null,null,"Startovací jáma:3,00*2,00*1,65"]
[null,null,"Prohloubení pro startovací jámu:3,00*2,00*0,30",null,1.8,null,null,null,null,null,null,null,"Prohloubení pro startovací jámu:3,00*2,00*0,30"]
[null,null,"km 0,020.0 - 0,022.0:2,00*0,80*(2,42+1,65)/2",null,3.2559999999999998,null,null,null,null,null,null,null,"km 0,020.0 - 0,022.0:2,00*0,80*(2,42+1,65)/2"]
[null,null,"Rozšíření pro cílovou jámu:2,00*(2,00-0,80)*(2,42+1,65)/2",null,4.8840000000000003,null,null,null,null,null,null,null,"Rozšíření pro cílovou jámu:2,00*(2,00-0,80)*(2,42+1,65)/2"]
[null,null,"Prohloubení pro cílovou jámu:2,00*2,00*0,30",null,1.2,null,null,null,null,null,null,null,"Prohloubení pro cílovou jámu:2,00*2,00*0,30"]
[null,null,"km 0,022.0 - 0,042.0:20,00*0,80*1,65",null,26.4,null,null,null,null,null,null,null,"km 0,022.0 - 0,042.0:20,00*0,80*1,65"]
[null,null,"Rozšíření pro startovací jámu:4,00*(2,00-0,80)*1,65",null,7.92,null,null,null,null,null,null,null,"Rozšíření pro startovací jámu:4,00*(2,00-0,80)*1,65"]
[null,null,"Prohloubení pro cílovou jámu:4,00*2,00*0,30",null,2.4,null,null,null,null,null,null,null,"Prohloubení pro cílovou jámu:4,00*2,00*0,30"]
[null,null,"km 0,055.0 - 0,112.0:57,00*0,80*1,65",null,75.239999999999995,null,null,null,null,null,null,null,"km 0,055.0 - 0,112.0:57,00*0,80*1,65"]
[null,null,"Rozšíření pro cílovou jámu:2,00*(2,00-0,80)*(1,65+1,65)/2",null,3.96,null,null,null,null,null,null,null,"Rozšíření pro cílovou jámu:2,00*(2,00-0,80)*(1,65+1,65)/2"]
[null,null,"Prohloubení pro cílovou jámu:2,00*2,00*0,30",null,1.2,null,null,null,null,null,null,null,"Prohloubení pro cílovou jámu:2,00*2,00*0,30"]
[null,null,"VP pro čp. 60 PE D 32x3,0 mm:7,00*0,80*1,65",null,9.24,null,null,null,null,null,null,null,"VP pro čp. 60 PE D 32x3,0 mm:7,00*0,80*1,65"]
[null,null,"Odpočet objemu konstrukce komunikací a krajnic:",null,0,null,null,null,null,null,null,null,"Odpočet objemu konstrukce komunikací a krajnic:"]
[null,null,"Vodovod - Řad 1 PE D 110x10,0 mm :",null,0,null,null,null,null,null,null,null,"Vodovod - Řad 1 PE D 110x10,0 mm :"]
[null,null,"km 0,000.0 - 0,009.7:-9,70*0,80*0,40",null,-3.1040000000000001,null,null,null,null,null,null,null,"km 0,000.0 - 0,009.7:-9,70*0,80*0,40"]
[null,null,"km 0,027.0 - 0,038 (krajnice):-11,00*0,80*0,25",null,-2.2000000000000002,null,null,null,null,null,null,null,"km 0,027.0 - 0,038 (krajnice):-11,00*0,80*0,25"]
[null,null,"km 0,038.0 - 0,042.0:-4,00*2,00*0,40",null,-3.2,null,null,null,null,null,null,null,"km 0,038.0 - 0,042.0:-4,00*2,00*0,40"]
[null,null,"VP pro čp. 60 PE D 32x3,0 mm:-4,00*0,80*0,40",null,-1.28,null,null,null,null,null,null,null,"VP pro čp. 60 PE D 32x3,0 mm:-4,00*0,80*0,40"]
[null,null,"Propojení Řadu TLT DN80 po odstranění AŠ:3,00*1,50*2,00",null,9,null,null,null,null,null,null,null,"Propojení Řadu TLT DN80 po odstranění AŠ:3,00*1,50*2,00"]
[null,null,"Po odpojení VP pro čp. 60 na TLT DN80:2,00*0,80*2,00",null,3.2,null,null,null,null,null,null,null,"Po odpojení VP pro čp. 60 na TLT DN80:2,00*0,80*2,00"]
[null,null,"Odpočet objemu stávající AŠ:-4,4550",null,-4.4550000000000001,null,null,null,null,null,null,null,"Odpočet objemu stávající AŠ:-4,4550"]
[null,null,"Odpočet objemu ornice:",null,0,null,null,null,null,null,null,null,"Odpočet objemu ornice:"]
[null,null,"Vodovod - Řad 1 PE D 110x10,0 mm :",null,0,null,null,null,null,null,null,null,"Vodovod - Řad 1 PE D 110x10,0 mm :"]
[null,null,"km 0,009.7 - 0,014.0:-(4,30*0,80*0,20+3,00*2,00*0,20)",null,-1.8879999999999999,null,null,null,null,null,null,null,"km 0,009.7 - 0,014.0:-(4,30*0,80*0,20+3,00*2,00*0,20)"]
[null,null,"km 0,020.0 - 0,027.0:-7,00*0,80*0,20",null,-1.1200000000000001,null,null,null,null,null,null,null,"km 0,020.0 - 0,027.0:-7,00*0,80*0,20"]
[null,null,"km 0,055.0 - 0,112.0:-(57,00*0,80*0,20+2,00*(2,00-0,80)*0,20)",null,-9.6,null,null,null,null,null,null,null,"km 0,055.0 - 0,112.0:-(57,00*0,80*0,20+2,00*(2,00-0,80)*0,20)"]
[null,null,"VP pro čp. 60 PE D 32x3,0 mm:-3,00*0,80*0,20",null,-0.48,null,null,null,null,null,null,null,"VP pro čp. 60 PE D 32x3,0 mm:-3,00*0,80*0,20"]
[null,null,"Propojení Řadu TLT DN80 po odstranění AŠ:-3,00*1,50*0,20",null,-0.9,null,null,null,null,null,null,null,"Propojení Řadu TLT DN80 po odstranění AŠ:-3,00*1,50*0,20"]
[null,null,"Po odpojení VP pro čp. 60 na TLT DN80:-2,00*0,80*0,20",null,-0.32,null,null,null,null,null,null,null,"Po odpojení VP pro čp. 60 na TLT DN80:-2,00*0,80*0,20"]
[null,null,"Konec provozního součtu",null,149.53300000000002,null,null,null,null,null,null,null,"Konec provozního součtu"]
[null,null,"V hornině tř. 3 - 50%:149,5330*0,5",null,74.766499999999994,null,null,null,null,null,null,null,"V hornině tř. 3 - 50%:149,5330*0,5"]
[11,"132201219R00","Přípl.za lepivost,hloubení rýh 200cm,hor.3,STROJNĚ ","m3",74.766499999999994,null,{"$f":"E87*F87","v":0},0,{"$f":"E87*H87","v":0},0,{"$f":"E87*J87","v":0},null,null,null,2,null,null,null,null,null,null,null,null,null,null,null,1,1,1,null,null,null,null,null,null,null,null,null,null,null,null,null,null,null,null,null,null,null,null,null,null,1,{"$f":"IF(AZ87=1,G87,0)","v":0},{"$f":"IF(AZ87=2,G87,0)","v":0},{"$f":"IF(AZ87=3,G87,0)","v":0},{"$f":"IF(AZ87=4,G87,0)","v":0},{"$f":"IF(AZ87=5,G87,0)","v":0},null,null,null,null,null,null,null,null,null,null,null,null,null,null,null,null,null,null,null,null,null,1,1]
[null,null,"Vodovod - Řad 1 PE D 110x10,0 mm :",null,0,null,null,null,null,null,null,null,"Vodovod - Řad 1 PE D 110x10,0 mm :"]
[null,null,"V hornině tř. 3 - 50%:149,5330*0,5",null,74.766499999999994,null,null,null,null,null,null,null,"V hornině tř. 3 - 50%:149,5330*0,5"]
[12,"132301211R00","Hloubení rýh š.do 200 cm hor.4 do 100 m3, STROJNĚ ","m3",59.813200000000002,null,{"$f":"E90*F90","v":0},0,{"$f":"E90*H90","v":0},0,{"$f":"E90*J90","v":0},null,null,null,2,null,null,null,null,null,null,null,null,null,null,null,1,1,1,null,null,null,null,null,null,null,null,null,null,null,null,null,null,null,null,null,null,null,null,null,null,1,{"$f":"IF(AZ90=1,G90,0)","v":0},{"$f":"IF(AZ90=2,G90,0)","v":0},{"$f":"IF(AZ90=3,G90,0)","v":0},{"$f":"IF(AZ90=4,G90,0)","v":0},{"$f":"IF(AZ90=5,G90,0)","v":0},null,null,null,null,null,null,null,null,null,null,null,null,null,null,null,null,null,null,null,null,null,1,1]
[null,null,"Položka obsahuje hloubení rýh traktorbagrem, naložení výkopku na dopravní prostředek pro svislé, nebo vodorovné přemístění, popř. přemístění výkopku do 3 m (po povrchu území), případné zajištění rypadel polštáři, udržování pracoviště a ochranu výkopiště proti stékání srážkové vody z okolního terénu i s jejím odvodněním, nebo odvedením, přesekání a odstranění kořenů ve výkopišti, odstranění napadávek, urovnání dna výkopu.",null,null,null,null,null,null,null,null,"Položka obsahuje hloubení rýh traktorbagrem, naložení výkopku na dopravní prostředek pro svislé, nebo vodorovné přemístění, popř. přemístění výkopku do 3 m (po povrchu území), případné zajištění rypadel polštáři, udržování pracoviště a ochranu výkopiště proti stékání srážkové vody z okolního terénu i s jejím odvodněním, nebo odvedením, přesekání a odstranění kořenů ve výkopišti, odstranění napadávek, urovnání dna výkopu.",null,null,3]
[null,null,"Vodovod - Řad 1 PE D 110x10,0 mm :",null,0,null,null,null,null,null,null,null,"Vodovod - Řad 1 PE D 110x10,0 mm :"]
[null,null,"V hornině tř. 4 - 40%:149,5330*0,4",null,59.813200000000002,null,null,null,null,null,null,null,"V hornině tř. 4 - 40%:149,5330*0,4"]
[13,"132301219R00","Přípl.za lepivost,hloubení rýh 200cm,hor.4,STROJNĚ ","m3",59.813200000000002,null,{"$f":"E94*F94","v":0},0,{"$f":"E94*H94","v":0},0,{"$f":"E94*J94","v":0},null,null,null,2,null,null,null,null,null,null,null,null,null,null,null,1,1,1,null,null,null,null,null,null,null,null,null,null,null,null,null,null,null,null,null,null,null,null,null,null,1,{"$f":"IF(AZ94=1,G94,0)","v":0},{"$f":"IF(AZ94=2,G94,0)","v":0},{"$f":"IF(AZ94=3,G94,0)","v":0},{"$f":"IF(AZ94=4,G94,0)","v":0},{"$f":"IF(AZ94=5,G94,0)","v":0},null,null,null,null,null,null,null,null,null,null,null,null,null,null,null,null,null,null,null,null,null,1,1]
[null,null,"Vodovod - Řad 1 PE D 110x10,0 mm :",null,0,null,null,null,null,null,null,null,"Vodovod - Řad 1 PE D 110x10,0 mm :"]
[null,null,"V hornině tř. 4 - 40%:149,5330*0,4",null,59.813200000000002,null,null,null,null,null,null,null,"V hornině tř. 4 - 40%:149,5330*0,4"]
[14,"132401211R00","Hloubení rýh šířky do 200 cm v hor.5, STROJNĚ ","m3",14.9533,null,{"$f":"E97*F97","v":0},0,{"$f":"E97*H97","v":0},0,{"$f":"E97*J97","v":0},null,null,null,2,null,null,null,null,null,null,null,null,null,null,null,1,1,1,null,null,null,null,null,null,null,null,null,null,null,null,null,null,null,null,null,null,null,null,null,null,1,{"$f":"IF(AZ97=1,G97,0)","v":0},{"$f":"IF(AZ97=2,G97,0)","v":0},{"$f":"IF(AZ97=3,G97,0)","v":0},{"$f":"IF(AZ97=4,G97,0)","v":0},{"$f":"IF(AZ97=5,G97,0)","v":0},null,null,null,null,null,null,null,null,null,null,null,null,null,null,null,null,null,null,null,null,null,1,1]
[null,null,"Vodovod - Řad 1 PE D 110x10,0 mm :",null,0,null,null,null,null,null,null,null,"Vodovod - Řad 1 PE D 110x10,0 mm :"]
[null,null,"V hornině tř. 5 - 10%:149,5330*0,1",null,14.9533,null,null,null,null,null,null,null,"V hornině tř. 5 - 10%:149,5330*0,1"]
[15,"141721103R00","Řízené protlačení a vtažení PE d 225 mm, hor.1 - 4 ","m",19,null,{"$f":"E100*F100","v":0},6.96E-3,{"$f":"E100*H100","v":0.13224},0,{"$f":"E100*J100","v":0},null,null,null,2,null,null,null,null,null,null,null,null,null,null,null,1,1,1,null,null,null,null,null,null,null,null,null,null,null,null,null,null,null,null,null,null,null,null,null,null,1,{"$f":"IF(AZ100=1,G100,0)","v":0},{"$f":"IF(AZ100=2,G100,0)","v":0},{"$f":"IF(AZ100=3,G100,0)","v":0},{"$f":"IF(AZ100=4,G100,0)","v":0},{"$f":"IF(AZ100=5,G100,0)","v":0},null,null,null,null,null,null,null,null,null,null,null,null,null,null,null,null,null,null,null,null,null,1,1]
[null,null,"Jedná se o bezvýkopovou technologii horizontálně řízeného vrtání a vtažení potrubí na principu rozplavování a rozrušování zeminy pomocí vysokotlaké směsi vody a bentonitu.",null,null,null,null,null,null,null,null,"Jedná se o bezvýkopovou technologii horizontálně řízeného vrtání a vtažení potrubí na principu rozplavování a rozrušování zeminy pomocí vysokotlaké směsi vody a bentonitu.",null,null,3]
[null,null,"V položce je započteno : - provedení pilotního vrtu,",null,null,null,null,null,null,null,null,"V položce je započteno : - provedení pilotního vrtu,",null,null,3]
[null,null,"                                        - potřebné rozšíření vrtu,",null,null,null,null,null,null,null,null,"                                        - potřebné rozšíření vrtu,",null,null,3]
[null,null,"                                        - vtažení potrubí,",null,null,null,null,null,null,null,null,"                                        - vtažení potrubí,",null,null,3]
[null,null,"                                        - svařování vtahovaného potrubí.",null,null,null,null,null,null,null,null,"                                        - svařování vtahovaného potrubí.",null,null,3]
[null,null,"V položce není započteno: - zemní práce nutné pro provedení prací,",null,null,null,null,null,null,null,null,"V položce není započteno: - zemní práce nutné pro provedení prací,",null,null,3]
[null,null,"                                           - případné čerpání vody,",null,null,null,null,null,null,null,null,"                                           - případné čerpání vody,",null,null,3]
[null,null,"                                           - montáž vedení, slouží-li vtahovaná trubka jako ochranné potrubí,",null,null,null,null,null,null,null,null,"                                           - montáž vedení, slouží-li vtahovaná trubka jako ochranné potrubí,",null,null,3]
[null,null,"                                           - dodání vtahovaných trubek.",null,null,null,null,null,null,null,null,"                                           - dodání vtahovaných trubek.",null,null,3]
[null,null,"Vodovod - Řad 1 PE D 110x10,0 mm:",null,0,null,null,null,null,null,null,null,"Vodovod - Řad 1 PE D 110x10,0 mm:"]
[null,null,"Řízený protlak km 0,014.0 - 0,020.0:6,00",null,6,null,null,null,null,null,null,null,"Řízený protlak km 0,014.0 - 0,020.0:6,00"]
[null,null,"Řízený protlak km 0,042.0 - 0,055.0:13,00",null,13,null,null,null,null,null,null,null,"Řízený protlak km 0,042.0 - 0,055.0:13,00"]
[16,"151101101R00","Pažení a rozepření stěn rýh - příložné - hl.do 2 m ","m2",368.04,null,{"$f":"E113*F113","v":0},9.8999999999999999E-4,{"$f":"E113*H113","v":0.36435960000000001},0,{"$f":"E113*J113","v":0},null,null,null,2,null,null,null,null,null,null,null,null,null,null,null,1,1,1,null,null,null,null,null,null,null,null,null,null,null,null,null,null,null,null,null,null,null,null,null,null,1,{"$f":"IF(AZ113=1,G113,0)","v":0},{"$f":"IF(AZ113=2,G113,0)","v":0},{"$f":"IF(AZ113=3,G113,0)","v":0},{"$f":"IF(AZ113=4,G113,0)","v":0},{"$f":"IF(AZ113=5,G113,0)","v":0},null,null,null,null,null,null,null,null,null,null,null,null,null,null,null,null,null,null,null,null,null,1,1]
[null,null,"Vodovod - Řad 1 PE D 110x10,0 mm :",null,0,null,null,null,null,null,null,null,"Vodovod - Řad 1 PE D 110x10,0 mm :"]
[null,null,"km 0,000.0 - 0,014.0:14,00*1,65*2",null,46.2,null,null,null,null,null,null,null,"km 0,000.0 - 0,014.0:14,00*1,65*2"]
[null,null,"Startovací jáma:3,00*1,65*2",null,9.9,null,null,null,null,null,null,null,"Startovací jáma:3,00*1,65*2"]
[null,null,"Prohloubení pro startovací jámu:3,00*0,30*2",null,1.8,null,null,null,null,null,null,null,"Prohloubení pro startovací jámu:3,00*0,30*2"]
[null,null,"km 0,020.0 - 0,022.0:2,00*(2,42+1,65)/2*2",null,8.14,null,null,null,null,null,null,null,"km 0,020.0 - 0,022.0:2,00*(2,42+1,65)/2*2"]
[null,null,"Prohloubení pro cílovou jámu:2,00*0,30*2",null,1.2,null,null,null,null,null,null,null,"Prohloubení pro cílovou jámu:2,00*0,30*2"]
[null,null,"km 0,022.0 - 0,042.0:20,00*1,65*2",null,66,null,null,null,null,null,null,null,"km 0,022.0 - 0,042.0:20,00*1,65*2"]
[null,null,"Prohloubení pro cílovou jámu:4,00*0,30*2",null,2.4,null,null,null,null,null,null,null,"Prohloubení pro cílovou jámu:4,00*0,30*2"]
[null,null,"km 0,055.0 - 0,112.0:57,00*1,65*2",null,188.1,null,null,null,null,null,null,null,"km 0,055.0 - 0,112.0:57,00*1,65*2"]
[null,null,"Prohloubení pro cílovou jámu:2,00*0,30*2",null,1.2,null,null,null,null,null,null,null,"Prohloubení pro cílovou jámu:2,00*0,30*2"]
[null,null,"VP pro čp. 60 PE D 32x3,0 mm:7,00*1,65*2",null,23.1,null,null,null,null,null,null,null,"VP pro čp. 60 PE D 32x3,0 mm:7,00*1,65*2"]
[null,null,"Propojení Řadu TLT DN80 po odstranění AŠ:3,00*2,00*2",null,12,null,null,null,null,null,null,null,"Propojení Řadu TLT DN80 po odstranění AŠ:3,00*2,00*2"]
[null,null,"Po odpojení VP pro čp. 60 na TLT DN80:2,00*2,00*2",null,8,null,null,null,null,null,null,null,"Po odpojení VP pro čp. 60 na TLT DN80:2,00*2,00*2"]
[17,"151101111R00","Odstranění pažení stěn rýh - příložné - hl. do 2 m ","m2",368.04,null,{"$f":"E127*F127","v":0},0,{"$f":"E127*H127","v":0},0,{"$f":"E127*J127","v":0},null,null,null,2,null,null,null,null,null,null,null,null,null,null,null,1,1,1,null,null,null,null,null,null,null,null,null,null,null,null,null,null,null,null,null,null,null,null,null,null,1,{"$f":"IF(AZ127=1,G127,0)","v":0},{"$f":"IF(AZ127=2,G127,0)","v":0},{"$f":"IF(AZ127=3,G127,0)","v":0},{"$f":"IF(AZ127=4,G127,0)","v":0},{"$f":"IF(AZ127=5,G127,0)","v":0},null,null,null,null,null,null,null,null,null,null,null,null,null,null,null,null,null,null,null,null,null,1,1]
[null,null,"Vodovod - Řad 1 PE D 110x10,0 mm :",null,0,null,null,null,null,null,null,null,"Vodovod - Řad 1 PE D 110x10,0 mm :"]
[null,null,"km 0,000.0 - 0,014.0:14,00*1,65*2",null,46.2,null,null,null,null,null,null,null,"km 0,000.0 - 0,014.0:14,00*1,65*2"]
[null,null,"Startovací jáma:3,00*1,65*2",null,9.9,null,null,null,null,null,null,null,"Startovací jáma:3,00*1,65*2"]
[null,null,"Prohloubení pro startovací jámu:3,00*0,30*2",null,1.8,null,null,null,null,null,null,null,"Prohloubení pro startovací jámu:3,00*0,30*2"]
[null,null,"km 0,020.0 - 0,022.0:2,00*(2,42+1,65)/2*2",null,8.14,null,null,null,null,null,null,null,"km 0,020.0 - 0,022.0:2,00*(2,42+1,65)/2*2"]
[null,null,"Prohloubení pro cílovou jámu:2,00*0,30*2",null,1.2,null,null,null,null,null,null,null,"Prohloubení pro cílovou jámu:2,00*0,30*2"]
[null,null,"km 0,022.0 - 0,042.0:20,00*1,65*2",null,66,null,null,null,null,null,null,null,"km 0,022.0 - 0,042.0:20,00*1,65*2"]
[null,null,"Prohloubení pro cílovou jámu:4,00*0,30*2",null,2.4,null,null,null,null,null,null,null,"Prohloubení pro cílovou jámu:4,00*0,30*2"]
[null,null,"km 0,055.0 - 0,112.0:57,00*1,65*2",null,188.1,null,null,null,null,null,null,null,"km 0,055.0 - 0,112.0:57,00*1,65*2"]
[null,null,"Prohloubení pro cílovou jámu:2,00*0,30*2",null,1.2,null,null,null,null,null,null,null,"Prohloubení pro cílovou jámu:2,00*0,30*2"]
[null,null,"VP pro čp. 60 PE D 32x3,0 mm:7,00*1,65*2",null,23.1,null,null,null,null,null,null,null,"VP pro čp. 60 PE D 32x3,0 mm:7,00*1,65*2"]
[null,null,"Propojení Řadu TLT DN80 po odstranění AŠ:3,00*2,00*2",null,12,null,null,null,null,null,null,null,"Propojení Řadu TLT DN80 po odstranění AŠ:3,00*2,00*2"]
[null,null,"Po odpojení VP pro čp. 60 na TLT DN80:2,00*2,00*2",null,8,null,null,null,null,null,null,null,"Po odpojení VP pro čp. 60 na TLT DN80:2,00*2,00*2"]
[18,"162701105RSZ","Vodorovné přemístění výkopku z hor.1-7 na skládku zhotovitele","m3",71.043400000000005,null,{"$f":"E141*F141","v":0},0,{"$f":"E141*H141","v":0},0,{"$f":"E141*J141","v":0},null,null,null,2,null,null,null,null,null,null,null,null,null,null,null,1,1,1,null,null,null,null,null,null,null,null,null,null,null,null,null,null,null,null,null,null,null,null,null,null,1,{"$f":"IF(AZ141=1,G141,0)","v":0},{"$f":"IF(AZ141=2,G141,0)","v":0},{"$f":"IF(AZ141=3,G141,0)","v":0},{"$f":"IF(AZ141=4,G141,0)","v":0},{"$f":"IF(AZ141=5,G141,0)","v":0},null,null,null,null,null,null,null,null,null,null,null,null,null,null,null,null,null,null,null,null,null,1,1]
[null,null,"Vodovod - Řad 1 PE D 110x10,0 mm :",null,0,null,null,null,null,null,null,null,"Vodovod - Řad 1 PE D 110x10,0 mm :"]
[null,null,"Výkopy:",null,0,null,null,null,null,null,null,null,"Výkopy:"]
[null,null,"V hornině tř. 3 - 5 :149,5330",null,149.53299999999999,null,null,null,null,null,null,null,"V hornině tř. 3 - 5 :149,5330"]
[null,null,"Odpočet objemu zásypů zeminou:-78,4896",null,-78.489599999999996,null,null,null,null,null,null,null,"Odpočet objemu zásypů zeminou:-78,4896"]
[19,"174101101R00","Zásyp jam, rýh, šachet se zhutněním ","m3",30.172000000000001,null,{"$f":"E146*F146","v":0},0,{"$f":"E146*H146","v":0},0,{"$f":"E146*J146","v":0},null,null,null,2,null,null,null,null,null,null,null,null,null,null,null,1,1,1,null,null,null,null,null,null,null,null,null,null,null,null,null,null,null,null,null,null,null,null,null,null,1,{"$f":"IF(AZ146=1,G146,0)","v":0},{"$f":"IF(AZ146=2,G146,0)","v":0},{"$f":"IF(AZ146=3,G146,0)","v":0},{"$f":"IF(AZ146=4,G146,0)","v":0},{"$f":"IF(AZ146=5,G146,0)","v":0},null,null,null,null,null,null,null,null,null,null,null,null,null,null,null,null,null,null,null,null,null,1,1]
[null,null,"Položka obsahuje strojní přemístění materiálu pro zásyp ze vzdálenosti do 10 m od okraje zásypu.",null,null,null,null,null,null,null,null,"Položka obsahuje strojní přemístění materiálu pro zásyp ze vzdálenosti do 10 m od okraje zásypu.",null,null,3]
[null,null,null,null,null,null,null,null,null,null,null,null,null,null,3]
[null,null,"Vodovod - Řad 1 PE D 110x10,0 mm :",null,0,null,null,null,null,null,null,null,"Vodovod - Řad 1 PE D 110x10,0 mm :"]
[null,null,"Zásypy ŠD fr. - 0-63 mm:30,1720",null,30.172000000000001,null,null,null,null,null,null,null,"Zásypy ŠD fr. - 0-63 mm:30,1720"]
[null,null,"Začátek provozního součtu",null,0,null,null,null,null,null,null,null,"Začátek provozního součtu"]
[null,null,"km 0,000.0 - 0,009.7:9,70*0,80*1,65",null,12.804,null,null,null,null,null,null,null,"km 0,000.0 - 0,009.7:9,70*0,80*1,65"]
[null,null,"km 0,022.0 - 0,042.0 (krajnice + komunikace):20,00*0,80*1,65",null,26.4,null,null,null,null,null,null,null,"km 0,022.0 - 0,042.0 (krajnice + komunikace):20,00*0,80*1,65"]
[null,null,"Rozšíření pro startovací jámu:4,00*(2,00-0,80)*1,65",null,7.92,null,null,null,null,null,null,null,"Rozšíření pro startovací jámu:4,00*(2,00-0,80)*1,65"]
[null,null,"Prohloubení pro cílovou jámu:4,00*2,00*0,30",null,2.4,null,null,null,null,null,null,null,"Prohloubení pro cílovou jámu:4,00*2,00*0,30"]
[null,null,"VP pro čp. 60 PE D 32x3,0 mm:4,00*0,80*1,65",null,5.28,null,null,null,null,null,null,null,"VP pro čp. 60 PE D 32x3,0 mm:4,00*0,80*1,65"]
[null,null,"Odpočet objemu konstrukce komunikací a krajnic:",null,0,null,null,null,null,null,null,null,"Odpočet objemu konstrukce komunikací a krajnic:"]
[null,null,"Vodovod - Řad 1 PE D 110x10,0 mm :",null,0,null,null,null,null,null,null,null,"Vodovod - Řad 1 PE D 110x10,0 mm :"]
[null,null,"km 0,000.0 - 0,009.7:-9,70*0,80*0,40",null,-3.1040000000000001,null,null,null,null,null,null,null,"km 0,000.0 - 0,009.7:-9,70*0,80*0,40"]
[null,null,"km 0,027.0 - 0,038 (krajnice):-11,00*0,80*0,25",null,-2.2000000000000002,null,null,null,null,null,null,null,"km 0,027.0 - 0,038 (krajnice):-11,00*0,80*0,25"]
[null,null,"km 0,038.0 - 0,042.0:-4,00*2,00*0,40",null,-3.2,null,null,null,null,null,null,null,"km 0,038.0 - 0,042.0:-4,00*2,00*0,40"]
[null,null,"VP pro čp. 60 PE D 32x3,0 mm:-4,00*0,80*0,40",null,-1.28,null,null,null,null,null,null,null,"VP pro čp. 60 PE D 32x3,0 mm:-4,00*0,80*0,40"]
[null,null,"Odpočet lože, potrubí a obsypů:",null,0,null,null,null,null,null,null,null,"Odpočet lože, potrubí a obsypů:"]
[null,null,"Vodovod - Řad PE D 110x10,0 mm:",null,0,null,null,null,null,null,null,null,"Vodovod - Řad PE D 110x10,0 mm:"]
[null,null,"km 0,000.0 - 0,009.7:-9,70*0,80*(0,15+0,11+0,30)",null,-4.3456000000000001,null,null,null,null,null,null,null,"km 0,000.0 - 0,009.7:-9,70*0,80*(0,15+0,11+0,30)"]
[null,null,"km 0,022.0 - 0,042.0:-20,00*0,80*(0,15+0,11+0,30)",null,-8.9600000000000009,null,null,null,null,null,null,null,"km 0,022.0 - 0,042.0:-20,00*0,80*(0,15+0,11+0,30)"]
[null,null,"VP pro čp. 60 PE D 32x3,0 mm:-4,00*0,80*(0,15+0,032+0,30)",null,-1.5424,null,null,null,null,null,null,null,"VP pro čp. 60 PE D 32x3,0 mm:-4,00*0,80*(0,15+0,032+0,30)"]
[null,null,"Konec provozního součtu",null,30.171999999999997,null,null,null,null,null,null,null,"Konec provozního součtu"]
[20,"175101101R00","Obsyp potrubí bez prohození sypaniny ","m3",36.4666,null,{"$f":"E169*F169","v":0},0,{"$f":"E169*H169","v":0},0,{"$f":"E169*J169","v":0},null,null,null,2,null,null,null,null,null,null,null,null,null,null,null,1,1,1,null,null,null,null,null,null,null,null,null,null,null,null,null,null,null,null,null,null,null,null,null,null,1,{"$f":"IF(AZ169=1,G169,0)","v":0},{"$f":"IF(AZ169=2,G169,0)","v":0},{"$f":"IF(AZ169=3,G169,0)","v":0},{"$f":"IF(AZ169=4,G169,0)","v":0},{"$f":"IF(AZ169=5,G169,0)","v":0},null,null,null,null,null,null,null,null,null,null,null,null,null,null,null,null,null,null,null,null,null,1,1]
[null,null,"Vodovod - Řad 1 PE D 110x10,0 mm km 0,000.0 - 0,120.0:(120,00-6,00-13,00)*(0,80*(0,11+0,30)-0,055^2*Pi)",null,32.168199999999999,null,null,null,null,null,null,null,"Vodovod - Řad 1 PE D 110x10,0 mm km 0,000.0 - 0,120.0:(120,00-6,00-13,00)*(0,80*(0,11+0,30)-0,055^2*Pi)"]
[null,null,"VP pro čp. 60 PE D 32x3,0 mm:7,00*(0,80*(0,032+0,30)-0,016^2*Pi)",null,1.8535999999999999,null,null,null,null,null,null,null,"VP pro čp. 60 PE D 32x3,0 mm:7,00*(0,80*(0,032+0,30)-0,016^2*Pi)"]
[null,null,"Propojení Řadu TLT DN80 po odstranění AŠ:3,00*(1,50*(0,08+0,30)-0,04^2*Pi)",null,1.6949000000000001,null,null,null,null,null,null,null,"Propojení Řadu TLT DN80 po odstranění AŠ:3,00*(1,50*(0,08+0,30)-0,04^2*Pi)"]
[null,null,"Po odpojení VP pro čp. 60 na TLT DN80:2,00*(1,00*(0,08+0,30)-0,04^2*Pi)",null,0.74990000000000001,null,null,null,null,null,null,null,"Po odpojení VP pro čp. 60 na TLT DN80:2,00*(1,00*(0,08+0,30)-0,04^2*Pi)"]
[21,"199000002R00","Poplatek za skládku horniny 1- 7 č. dle katal. odpadů 17 05 04","m3",71.043400000000005,null,{"$f":"E174*F174","v":0},0,{"$f":"E174*H174","v":0},0,{"$f":"E174*J174","v":0},null,null,null,2,null,null,null,null,null,null,null,null,null,null,null,1,1,1,null,null,null,null,null,null,null,null,null,null,null,null,null,null,null,null,null,null,null,null,null,null,1,{"$f":"IF(AZ174=1,G174,0)","v":0},{"$f":"IF(AZ174=2,G174,0)","v":0},{"$f":"IF(AZ174=3,G174,0)","v":0},{"$f":"IF(AZ174=4,G174,0)","v":0},{"$f":"IF(AZ174=5,G174,0)","v":0},null,null,null,null,null,null,null,null,null,null,null,null,null,null,null,null,null,null,null,null,null,1,1]
[null,null,"Vodovod - Řad 1 PE D 110x10,0 mm :",null,0,null,null,null,null,null,null,null,"Vodovod - Řad 1 PE D 110x10,0 mm :"]
[null,null,"Výkopy:",null,0,null,null,null,null,null,null,null,"Výkopy:"]
[null,null,"V hornině tř. 3 - 5 :149,5330",null,149.53299999999999,null,null,null,null,null,null,null,"V hornině tř. 3 - 5 :149,5330"]
[null,null,"Odpočet objemu zásypů zeminou:-78,4896",null,-78.489599999999996,null,null,null,null,null,null,null,"Odpočet objemu zásypů zeminou:-78,4896"]
[22,"230191039R00","Uložení chráničky ve výkopu PE 225x20,5 mm ","m",6.6,null,{"$f":"E179*F179","v":0},0,{"$f":"E179*H179","v":0},0,{"$f":"E179*J179","v":0},null,null,null,2,null,null,null,null,null,null,null,null,null,null,null,1,9,9,null,null,null,null,null,null,null,null,null,null,null,null,null,null,null,null,null,null,null,null,null,null,1,{"$f":"IF(AZ179=1,G179,0)","v":0},{"$f":"IF(AZ179=2,G179,0)","v":0},{"$f":"IF(AZ179=3,G179,0)","v":0},{"$f":"IF(AZ179=4,G179,0)","v":0},{"$f":"IF(AZ179=5,G179,0)","v":0},null,null,null,null,null,null,null,null,null,null,null,null,null,null,null,null,null,null,null,null,null,1,9]
[null,null,"Vodovod - Řad 1 PE D 110x10,0 mm:",null,0,null,null,null,null,null,null,null,"Vodovod - Řad 1 PE D 110x10,0 mm:"]
[null,null,"Chránička km 0,055.0 - 0,061.0:6,00*1,10",null,6.6,null,null,null,null,null,null,null,"Chránička km 0,055.0 - 0,061.0:6,00*1,10"]
[23,"919735112R00","Řezání stávajícího živičného krytu tl. 5 - 10 cm ","m",36.200000000000003,null,{"$f":"E182*F182","v":0},0,{"$f":"E182*H182","v":0},0,{"$f":"E182*J182","v":0},null,null,null,2,null,null,null,null,null,null,null,null,null,null,null,1,1,1,null,null,null,null,null,null,null,null,null,null,null,null,null,null,null,null,null,null,null,null,null,null,1,{"$f":"IF(AZ182=1,G182,0)","v":0},{"$f":"IF(AZ182=2,G182,0)","v":0},{"$f":"IF(AZ182=3,G182,0)","v":0},{"$f":"IF(AZ182=4,G182,0)","v":0},{"$f":"IF(AZ182=5,G182,0)","v":0},null,null,null,null,null,null,null,null,null,null,null,null,null,null,null,null,null,null,null,null,null,1,1]
[null,null,"Vodovod - Řad 1 PE D 110x10,0 mm :",null,0,null,null,null,null,null,null,null,"Vodovod - Řad 1 PE D 110x10,0 mm :"]
[null,null,"km 0,000.0 - 0,009.7:9,70*2+0,80",null,20.2,null,null,null,null,null,null,null,"km 0,000.0 - 0,009.7:9,70*2+0,80"]
[null,null,"km 0,038.0 - 0,042.0:4,00*2",null,8,null,null,null,null,null,null,null,"km 0,038.0 - 0,042.0:4,00*2"]
[null,null,"VP pro čp. 60 PE D 32x3,0 mm:4,00*2",null,8,null,null,null,null,null,null,null,"VP pro čp. 60 PE D 32x3,0 mm:4,00*2"]
[24,"919735123R00","Řezání stávajícího betonového krytu tl. 10 - 15 cm ","m",5,null,{"$f":"E187*F187","v":0},0,{"$f":"E187*H187","v":0},0,{"$f":"E187*J187","v":0},null,null,null,2,null,null,null,null,null,null,null,null,null,null,null,1,1,1,null,null,null,null,null,null,null,null,null,null,null,null,null,null,null,null,null,null,null,null,null,null,1,{"$f":"IF(AZ187=1,G187,0)","v":0},{"$f":"IF(AZ187=2,G187,0)","v":0},{"$f":"IF(AZ187=3,G187,0)","v":0},{"$f":"IF(AZ187=4,G187,0)","v":0},{"$f":"IF(AZ187=5,G187,0)","v":0},null,null,null,null,null,null,null,null,null,null,null,null,null,null,null,null,null,null,null,null,null,1,1]
[null,null,"Vodovod - Řad 1 PE D 110x10,0 mm km 0,000.0 - 0,120.0:",null,0,null,null,null,null,null,null,null,"Vodovod - Řad 1 PE D 110x10,0 mm km 0,000.0 - 0,120.0:"]
[null,null,"VP pro čp. 60 PE D 32x3,0 mm:2,50*2",null,5,null,null,null,null,null,null,null,"VP pro čp. 60 PE D 32x3,0 mm:2,50*2"]
[25,"979082113RSZ","Vodorovná doprava suti po suchu na skládku zhotovitele","t",43.918900000000001,null,{"$f":"E190*F190","v":0},0,{"$f":"E190*H190","v":0},0,{"$f":"E190*J190","v":0},null,null,null,2,null,null,null,null,null,null,null,null,null,null,null,1,1,1,null,null,null,null,null,null,null,null,null,null,null,null,null,null,null,null,null,null,null,null,null,null,1,{"$f":"IF(AZ190=1,G190,0)","v":0},{"$f":"IF(AZ190=2,G190,0)","v":0},{"$f":"IF(AZ190=3,G190,0)","v":0},{"$f":"IF(AZ190=4,G190,0)","v":0},{"$f":"IF(AZ190=5,G190,0)","v":0},null,null,null,null,null,null,null,null,null,null,null,null,null,null,null,null,null,null,null,null,null,1,1]
[26,"979089001R00","Poplatek za skládku stavební suti štěrky z komunikací, skupina odpadu 010408","t",26.1096,null,{"$f":"E191*F191","v":0},0,{"$f":"E191*H191","v":0},0,{"$f":"E191*J191","v":0},null,null,null,2,null,null,null,null,null,null,null,null,null,null,null,1,1,1,null,null,null,null,null,null,null,null,null,null,null,null,null,null,null,null,null,null,null,null,null,null,1,{"$f":"IF(AZ191=1,G191,0)","v":0},{"$f":"IF(AZ191=2,G191,0)","v":0},{"$f":"IF(AZ191=3,G191,0)","v":0},{"$f":"IF(AZ191=4,G191,0)","v":0},{"$f":"IF(AZ191=5,G191,0)","v":0},null,null,null,null,null,null,null,null,null,null,null,null,null,null,null,null,null,null,null,null,null,1,1]
[27,"979990103R00","Poplatek za skládku stavební suti beton, skupina odpadu 170101","t",0.86399999999999999,null,{"$f":"E192*F192","v":0},0,{"$f":"E192*H192","v":0},0,{"$f":"E192*J192","v":0},null,null,null,2,null,null,null,null,null,null,null,null,null,null,null,1,1,1,null,null,null,null,null,null,null,null,null,null,null,null,null,null,null,null,null,null,null,null,null,null,1,{"$f":"IF(AZ192=1,G192,0)","v":0},{"$f":"IF(AZ192=2,G192,0)","v":0},{"$f":"IF(AZ192=3,G192,0)","v":0},{"$f":"IF(AZ192=4,G192,0)","v":0},{"$f":"IF(AZ192=5,G192,0)","v":0},null,null,null,null,null,null,null,null,null,null,null,null,null,null,null,null,null,null,null,null,null,1,1]
[28,"979999995R00","Poplatek za reciklaci asfaltu, kusovost do 1600cm2 skupina 170302","t",16.9453,null,{"$f":"E193*F193","v":0},0,{"$f":"E193*H193","v":0},0,{"$f":"E193*J193","v":0},null,null,null,2,null,null,null,null,null,null,null,null,null,null,null,1,1,1,null,null,null,null,null,null,null,null,null,null,null,null,null,null,null,null,null,null,null,null,null,null,1,{"$f":"IF(AZ193=1,G193,0)","v":0},{"$f":"IF(AZ193=2,G193,0)","v":0},{"$f":"IF(AZ193=3,G193,0)","v":0},{"$f":"IF(AZ193=4,G193,0)","v":0},{"$f":"IF(AZ193=5,G193,0)","v":0},null,null,null,null,null,null,null,null,null,null,null,null,null,null,null,null,null,null,null,null,null,1,1]
[null,null,"Položka je určena pro suť o velikosti kusu do 30x30 cm (technologický materiál určený k recyklaci).",null,null,null,null,null,null,null,null,"Položka je určena pro suť o velikosti kusu do 30x30 cm (technologický materiál určený k recyklaci).",null,null,3]
[29,"286134137.R","Trubka tlaková AQUALINE RC1 PE100 225x20,5 mm PN10 tyče L=6/12 m včetně vymezovacích prvků dle PD","m",27.5,null,{"$f":"E195*F195","v":0},6.6699999999999997E-3,{"$f":"E195*H195","v":0.183425},null,{"$f":"E195*J195","v":0},null,null,null,2,null,null,null,null,null,null,null,null,null,null,null,3,1,"286134137.R",null,null,null,null,null,null,null,null,null,null,null,null,null,null,null,null,null,null,null,null,null,null,1,{"$f":"IF(AZ195=1,G195,0)","v":0},{"$f":"IF(AZ195=2,G195,0)","v":0},{"$f":"IF(AZ195=3,G195,0)","v":0},{"$f":"IF(AZ195=4,G195,0)","v":0},{"$f":"IF(AZ195=5,G195,0)","v":0},null,null,null,null,null,null,null,null,null,null,null,null,null,null,null,null,null,null,null,null,null,3,1]
[null,null,"Vodovodní PE tlaková trubka AQUALINE RC1 dle normy EN 12 201-2",null,null,null,null,null,null,null,null,"Vodovodní PE tlaková trubka AQUALINE RC1 dle normy EN 12 201-2",null,null,3]
[null,null,"Jednovrstvá - celý průřez stěny z PE 100RC",null,null,null,null,null,null,null,null,"Jednovrstvá - celý průřez stěny z PE 100RC",null,null,3]
[null,null,"Černá s modrými pruhy (doprava pitné a užitkové vody)",null,null,null,null,null,null,null,null,"Černá s modrými pruhy (doprava pitné a užitkové vody)",null,null,3]
[null,null,"Použití: vhodná do otevřeného výkopu bez pískového lože (možnost bodového zatížení) a pro méně náročné metody bezvýkopové pokládky",null,null,null,null,null,null,null,null,"Použití: vhodná do otevřeného výkopu bez pískového lože (možnost bodového zatížení) a pro méně náročné metody bezvýkopové pokládky",null,null,3]
[null,null,"Tyč 6 m/12 m",null,null,null,null,null,null,null,null,"Tyč 6 m/12 m",null,null,3]
[null,null,"Součástí dodávky chráničky je i osazení a dodávka kluzných a vymezovacích objímek a koncových manžet v provedení dle projektové dokumentace v.č.D.5.7.",null,null,null,null,null,null,null,null,"Součástí dodávky chráničky je i osazení a dodávka kluzných a vymezovacích objímek a koncových manžet v provedení dle projektové dokumentace v.č.D.5.7.",null,null,3]
[null,null,"Vodovod - Řad 1 PE D 110x10,0 mm:",null,0,null,null,null,null,null,null,null,"Vodovod - Řad 1 PE D 110x10,0 mm:"]
[null,null,"Řízený protlak km 0,014.0 - 0,020.0 (chránička):6,00*1,10",null,6.6,null,null,null,null,null,null,null,"Řízený protlak km 0,014.0 - 0,020.0 (chránička):6,00*1,10"]
[null,null,"Řízený protlak km 0,042.0 - 0,055.0 (chránička):13,00*1,10",null,14.3,null,null,null,null,null,null,null,"Řízený protlak km 0,042.0 - 0,055.0 (chránička):13,00*1,10"]
[null,null,"Chránička km 0,055.0 - 0,061.0:6,00*1,10",null,6.6,null,null,null,null,null,null,null,"Chránička km 0,055.0 - 0,061.0:6,00*1,10"]
[30,"58337309.R","Štěrkopísek frakce 0-4 tř.B","t",72.668099999999995,null,{"$f":"E206*F206","v":0},1,{"$f":"E206*H206","v":72.668099999999995},null,{"$f":"E206*J206","v":0},null,null,null,2,null,null,null,null,null,null,null,null,null,null,null,3,1,"58337309.R",null,null,null,null,null,null,null,null,null,null,null,null,null,null,null,null,null,null,null,null,null,null,1,{"$f":"IF(AZ206=1,G206,0)","v":0},{"$f":"IF(AZ206=2,G206,0)","v":0},{"$f":"IF(AZ206=3,G206,0)","v":0},{"$f":"IF(AZ206=4,G206,0)","v":0},{"$f":"IF(AZ206=5,G206,0)","v":0},null,null,null,null,null,null,null,null,null,null,null,null,null,null,null,null,null,null,null,null,null,3,1]
[null,null,"Vodovod - Řad 1 PE D 110x10,0 mm km 0,000.0 - 0,120.0:(120,00-6,00-13,00)*(0,80*(0,11+0,30)-0,055^2*Pi)*1,973*1,01",null,64.102500000000006,null,null,null,null,null,null,null,"Vodovod - Řad 1 PE D 110x10,0 mm km 0,000.0 - 0,120.0:(120,00-6,00-13,00)*(0,80*(0,11+0,30)-0,055^2*Pi)*1,973*1,01"]
[null,null,"VP pro čp. 60 PE D 32x3,0 mm:7,00*(0,80*(0,032+0,30)-0,016^2*Pi)*1,973*1,01",null,3.6937000000000002,null,null,null,null,null,null,null,"VP pro čp. 60 PE D 32x3,0 mm:7,00*(0,80*(0,032+0,30)-0,016^2*Pi)*1,973*1,01"]
[null,null,"Propojení Řadu TLT DN80 po odstranění AŠ:3,00*(1,50*(0,08+0,30)-0,04^2*Pi)*1,973*1,01",null,3.3774999999999999,null,null,null,null,null,null,null,"Propojení Řadu TLT DN80 po odstranění AŠ:3,00*(1,50*(0,08+0,30)-0,04^2*Pi)*1,973*1,01"]
[null,null,"Po odpojení VP pro čp. 60 na TLT DN80:2,00*(1,00*(0,08+0,30)-0,04^2*Pi)*1,973*1,01",null,1.4944,null,null,null,null,null,null,null,"Po odpojení VP pro čp. 60 na TLT DN80:2,00*(1,00*(0,08+0,30)-0,04^2*Pi)*1,973*1,01"]
[31,"58344197R","Štěrkodrtě frakce 0-63 A","t",57.077300000000001,null,{"$f":"E211*F211","v":0},1,{"$f":"E211*H211","v":57.077300000000001},null,{"$f":"E211*J211","v":0},null,null,null,2,null,null,null,null,null,null,null,null,null,null,null,3,1,"58344197R",null,null,null,null,null,null,null,null,null,null,null,null,null,null,null,null,null,null,null,null,null,null,1,{"$f":"IF(AZ211=1,G211,0)","v":0},{"$f":"IF(AZ211=2,G211,0)","v":0},{"$f":"IF(AZ211=3,G211,0)","v":0},{"$f":"IF(AZ211=4,G211,0)","v":0},{"$f":"IF(AZ211=5,G211,0)","v":0},null,null,null,null,null,null,null,null,null,null,null,null,null,null,null,null,null,null,null,null,null,3,1]
[null,null,"Vodovod - Řad 1 PE D 110x10,0 mm :",null,0,null,null,null,null,null,null,null,"Vodovod - Řad 1 PE D 110x10,0 mm :"]
[null,null,"Zásypy ŠD fr. - 0-63 mm:30,1720*1,873*1,01",null,57.077300000000001,null,null,null,null,null,null,null,"Zásypy ŠD fr. - 0-63 mm:30,1720*1,873*1,01"]
[null,"Celkem za","1 Zemní práce",null,null,null,{"$f":"SUM(G7:G213)","v":0},null,{"$f":"SUM(I7:I213)","v":130.42542459999999},null,{"$f":"SUM(K7:K213)","v":-43.918880000000001},null,null,null,4,null,null,null,null,null,null,null,null,null,null,null,null,null,null,null,null,null,null,null,null,null,null,null,null,null,null,null,null,null,null,null,null,null,null,null,null,null,{"$f":"SUM(BA7:BA213)","v":0},{"$f":"SUM(BB7:BB213)","v":0},{"$f":"SUM(BC7:BC213)","v":0},{"$f":"SUM(BD7:BD213)","v":0},{"$f":"SUM(BE7:BE213)","v":0}]
["Díl:","45","Podkladní a vedlejší konstrukce",null,null,null,null,null,null,null,null,null,null,null,1]
[32,"451572111R00","Lože pod potrubí z kameniva těženého 0 - 4 mm ","m3",13.935,null,{"$f":"E216*F216","v":0},0.43051,{"$f":"E216*H216","v":5.9991568500000003},0,{"$f":"E216*J216","v":0},null,null,null,2,null,null,null,null,null,null,null,null,null,null,null,1,1,1,null,null,null,null,null,null,null,null,null,null,null,null,null,null,null,null,null,null,null,null,null,null,1,{"$f":"IF(AZ216=1,G216,0)","v":0},{"$f":"IF(AZ216=2,G216,0)","v":0},{"$f":"IF(AZ216=3,G216,0)","v":0},{"$f":"IF(AZ216=4,G216,0)","v":0},{"$f":"IF(AZ216=5,G216,0)","v":0},null,null,null,null,null,null,null,null,null,null,null,null,null,null,null,null,null,null,null,null,null,1,1]
[null,null,"Vodovod - Řad 1 PE D 110x10,0 mm km 0,000.0 - 0,120.0:(120,00-6,00-13,00)*0,80*0,15",null,12.12,null,null,null,null,null,null,null,"Vodovod - Řad 1 PE D 110x10,0 mm km 0,000.0 - 0,120.0:(120,00-6,00-13,00)*0,80*0,15"]
[null,null,"VP pro čp. 60 PE D 32x3,0 mm:7,00*0,80*0,15",null,0.84,null,null,null,null,null,null,null,"VP pro čp. 60 PE D 32x3,0 mm:7,00*0,80*0,15"]
[null,null,"Propojení Řadu TLT DN80 po odstranění AŠ:3,00*1,50*0,15",null,0.67500000000000004,null,null,null,null,null,null,null,"Propojení Řadu TLT DN80 po odstranění AŠ:3,00*1,50*0,15"]
[null,null,"Po odpojení VP pro čp. 60 na TLT DN80:2,00*1,00*0,15",null,0.3,null,null,null,null,null,null,null,"Po odpojení VP pro čp. 60 na TLT DN80:2,00*1,00*0,15"]
[33,"452313141R00","Bloky pro potrubí z betonu C 16/20 vč. bednění ","m3",0.57899999999999996,null,{"$f":"E221*F221","v":0},2.5,{"$f":"E221*H221","v":1.4474999999999998},0,{"$f":"E221*J221","v":0},null,null,null,2,null,null,null,null,null,null,null,null,null,null,null,1,1,1,null,null,null,null,null,null,null,null,null,null,null,null,null,null,null,null,null,null,null,null,null,null,1,{"$f":"IF(AZ221=1,G221,0)","v":0},{"$f":"IF(AZ221=2,G221,0)","v":0},{"$f":"IF(AZ221=3,G221,0)","v":0},{"$f":"IF(AZ221=4,G221,0)","v":0},{"$f":"IF(AZ221=5,G221,0)","v":0},null,null,null,null,null,null,null,null,null,null,null,null,null,null,null,null,null,null,null,null,null,1,1]
[null,null,"Vodovod - Řad 1 PE D 110x10,0 mm:",null,0,null,null,null,null,null,null,null,"Vodovod - Řad 1 PE D 110x10,0 mm:"]
[null,null,"B1:0,070",null,7.0000000000000007E-2,null,null,null,null,null,null,null,"B1:0,070"]
[null,null,"B3:0,200",null,0.2,null,null,null,null,null,null,null,"B3:0,200"]
[null,null,"B4:0,062",null,6.2E-2,null,null,null,null,null,null,null,"B4:0,062"]
[null,null,"B10:0,222",null,0.222,null,null,null,null,null,null,null,"B10:0,222"]
[null,null,"B13:0,025",null,2.5000000000000001E-2,null,null,null,null,null,null,null,"B13:0,025"]
[null,"Celkem za","45 Podkladní a vedlejší konstrukce",null,null,null,{"$f":"SUM(G215:G227)","v":0},null,{"$f":"SUM(I215:I227)","v":7.4466568500000001},null,{"$f":"SUM(K215:K227)","v":0},null,null,null,4,null,null,null,null,null,null,null,null,null,null,null,null,null,null,null,null,null,null,null,null,null,null,null,null,null,null,null,null,null,null,null,null,null,null,null,null,null,{"$f":"SUM(BA215:BA227)","v":0},{"$f":"SUM(BB215:BB227)","v":0},{"$f":"SUM(BC215:BC227)","v":0},{"$f":"SUM(BD215:BD227)","v":0},{"$f":"SUM(BE215:BE227)","v":0}]
["Díl:","5","Komunikace",null,null,null,null,null,null,null,null,null,null,null,1]
[34,"566301111R00","Úprava krytu kamenivem drceným do 0,06 m3/m2 ","m2",56.4,null,{"$f":"E230*F230","v":0},9.8479999999999998E-2,{"$f":"E230*H230","v":5.5542720000000001},0,{"$f":"E230*J230","v":0},null,null,null,2,null,null,null,null,null,null,null,null,null,null,null,1,1,1,null,null,null,null,null,null,null,null,null,null,null,null,null,null,null,null,null,null,null,null,null,null,1,{"$f":"IF(AZ230=1,G230,0)","v":0},{"$f":"IF(AZ230=2,G230,0)","v":0},{"$f":"IF(AZ230=3,G230,0)","v":0},{"$f":"IF(AZ230=4,G230,0)","v":0},{"$f":"IF(AZ230=5,G230,0)","v":0},null,null,null,null,null,null,null,null,null,null,null,null,null,null,null,null,null,null,null,null,null,1,1]
[null,null,"Vodovod - Řad 1 PE D 110x10,0 mm :",null,0,null,null,null,null,null,null,null,"Vodovod - Řad 1 PE D 110x10,0 mm :"]
[null,null,"Místní soukromá komunikace (od mostku k silnici III. tř.):70,00",null,70,null,null,null,null,null,null,null,"Místní soukromá komunikace (od mostku k silnici III. tř.):70,00"]
[null,null,"km 0,038.0 - 0,042.0:-4,00*2,00",null,-8,null,null,null,null,null,null,null,"km 0,038.0 - 0,042.0:-4,00*2,00"]
[null,null,"VP pro čp. 60 PE D 32x3,0 mm:-7,00*0,80",null,-5.6,null,null,null,null,null,null,null,"VP pro čp. 60 PE D 32x3,0 mm:-7,00*0,80"]
[35,"566501111R00","Úprava krytu kamenivem drceným do 0,10 m3/m2 ","m2",50,null,{"$f":"E235*F235","v":0},0.17726,{"$f":"E235*H235","v":8.8629999999999995},0,{"$f":"E235*J235","v":0},null,null,null,2,null,null,null,null,null,null,null,null,null,null,null,1,1,1,null,null,null,null,null,null,null,null,null,null,null,null,null,null,null,null,null,null,null,null,null,null,1,{"$f":"IF(AZ235=1,G235,0)","v":0},{"$f":"IF(AZ235=2,G235,0)","v":0},{"$f":"IF(AZ235=3,G235,0)","v":0},{"$f":"IF(AZ235=4,G235,0)","v":0},{"$f":"IF(AZ235=5,G235,0)","v":0},null,null,null,null,null,null,null,null,null,null,null,null,null,null,null,null,null,null,null,null,null,1,1]
[null,null,"Vodovod - Řad 1 PE D 110x10,0 mm :",null,0,null,null,null,null,null,null,null,"Vodovod - Řad 1 PE D 110x10,0 mm :"]
[null,null,"Ostatní plochy - sjezdy, část polní komunikace a pod.:50,00",null,50,null,null,null,null,null,null,null,"Ostatní plochy - sjezdy, část polní komunikace a pod.:50,00"]
[36,"566903111R00","Vyspravení podkladu po překopech kam.hrubě drceným ","t",15.5983,null,{"$f":"E238*F238","v":0},1.1000000000000001,{"$f":"E238*H238","v":17.15813},0,{"$f":"E238*J238","v":0},null,null,null,2,null,null,null,null,null,null,null,null,null,null,null,1,1,1,null,null,null,null,null,null,null,null,null,null,null,null,null,null,null,null,null,null,null,null,null,null,1,{"$f":"IF(AZ238=1,G238,0)","v":0},{"$f":"IF(AZ238=2,G238,0)","v":0},{"$f":"IF(AZ238=3,G238,0)","v":0},{"$f":"IF(AZ238=4,G238,0)","v":0},{"$f":"IF(AZ238=5,G238,0)","v":0},null,null,null,null,null,null,null,null,null,null,null,null,null,null,null,null,null,null,null,null,null,1,1]
[null,null,"Vodovod - Řad 1 PE D 110x10,0 mm :",null,0,null,null,null,null,null,null,null,"Vodovod - Řad 1 PE D 110x10,0 mm :"]
[null,null,"km 0,000.0 - 0,009.7:9,70*0,80*0,30*1,873",null,4.3602999999999996,null,null,null,null,null,null,null,"km 0,000.0 - 0,009.7:9,70*0,80*0,30*1,873"]
[null,null,"km 0,027.0 - 0,038 (krajnice):11,00*0,80*0,30*1,873",null,4.9447000000000001,null,null,null,null,null,null,null,"km 0,027.0 - 0,038 (krajnice):11,00*0,80*0,30*1,873"]
[null,null,"km 0,038.0 - 0,042.0:4,00*2,00*0,30*1,873",null,4.4951999999999996,null,null,null,null,null,null,null,"km 0,038.0 - 0,042.0:4,00*2,00*0,30*1,873"]
[null,null,"VP pro čp. 60 PE D 32x3,0 mm:4,00*0,80*0,30*1,873",null,1.7981,null,null,null,null,null,null,null,"VP pro čp. 60 PE D 32x3,0 mm:4,00*0,80*0,30*1,873"]
[37,"566904111R00","Vyspravení podkladu po překopech kam.obal.asfaltem ","t",3.9060000000000001,null,{"$f":"E244*F244","v":0},1,{"$f":"E244*H244","v":3.9060000000000001},0,{"$f":"E244*J244","v":0},null,null,null,2,null,null,null,null,null,null,null,null,null,null,null,1,1,1,null,null,null,null,null,null,null,null,null,null,null,null,null,null,null,null,null,null,null,null,null,null,1,{"$f":"IF(AZ244=1,G244,0)","v":0},{"$f":"IF(AZ244=2,G244,0)","v":0},{"$f":"IF(AZ244=3,G244,0)","v":0},{"$f":"IF(AZ244=4,G244,0)","v":0},{"$f":"IF(AZ244=5,G244,0)","v":0},null,null,null,null,null,null,null,null,null,null,null,null,null,null,null,null,null,null,null,null,null,1,1]
[null,null,"Včetně ošetření pracovní spáry zálivkou dle TP",null,null,null,null,null,null,null,null,"Včetně ošetření pracovní spáry zálivkou dle TP",null,null,3]
[null,null,"Vodovod - Řad 1 PE D 110x10,0 mm :",null,0,null,null,null,null,null,null,null,"Vodovod - Řad 1 PE D 110x10,0 mm :"]
[null,null,"km 0,000.0 - 0,009.7:9,70*1,20*0,06*2,5",null,1.746,null,null,null,null,null,null,null,"km 0,000.0 - 0,009.7:9,70*1,20*0,06*2,5"]
[null,null,"km 0,038.0 - 0,042.0:4,00*2,40*0,06*2,5",null,1.44,null,null,null,null,null,null,null,"km 0,038.0 - 0,042.0:4,00*2,40*0,06*2,5"]
[null,null,"VP pro čp. 60 PE D 32x3,0 mm:4,00*1,20*0,06*2,5",null,0.72,null,null,null,null,null,null,null,"VP pro čp. 60 PE D 32x3,0 mm:4,00*1,20*0,06*2,5"]
[38,"566905111R00","Vyspravení podkladu po překopech podklad.betonem ","m3",0.39600000000000002,null,{"$f":"E250*F250","v":0},2.5,{"$f":"E250*H250","v":0.99},0,{"$f":"E250*J250","v":0},null,null,null,2,null,null,null,null,null,null,null,null,null,null,null,1,1,1,null,null,null,null,null,null,null,null,null,null,null,null,null,null,null,null,null,null,null,null,null,null,1,{"$f":"IF(AZ250=1,G250,0)","v":0},{"$f":"IF(AZ250=2,G250,0)","v":0},{"$f":"IF(AZ250=3,G250,0)","v":0},{"$f":"IF(AZ250=4,G250,0)","v":0},{"$f":"IF(AZ250=5,G250,0)","v":0},null,null,null,null,null,null,null,null,null,null,null,null,null,null,null,null,null,null,null,null,null,1,1]
[null,null,"Vodovod - Řad 1 PE D 110x10,0 mm :",null,0,null,null,null,null,null,null,null,"Vodovod - Řad 1 PE D 110x10,0 mm :"]
[null,null,"VP pro čp. 60 PE D 32x3,0 mm:3,00*0,80*0,15*1,1",null,0.39600000000000002,null,null,null,null,null,null,null,"VP pro čp. 60 PE D 32x3,0 mm:3,00*0,80*0,15*1,1"]
[39,"569731111R00","Zpevnění krajnic kamenivem drceným tl. 10 cm ","m2",25.6,null,{"$f":"E253*F253","v":0},0.19694999999999999,{"$f":"E253*H253","v":5.0419200000000002},0,{"$f":"E253*J253","v":0},null,null,null,2,null,null,null,null,null,null,null,null,null,null,null,1,1,1,null,null,null,null,null,null,null,null,null,null,null,null,null,null,null,null,null,null,null,null,null,null,1,{"$f":"IF(AZ253=1,G253,0)","v":0},{"$f":"IF(AZ253=2,G253,0)","v":0},{"$f":"IF(AZ253=3,G253,0)","v":0},{"$f":"IF(AZ253=4,G253,0)","v":0},{"$f":"IF(AZ253=5,G253,0)","v":0},null,null,null,null,null,null,null,null,null,null,null,null,null,null,null,null,null,null,null,null,null,1,1]
[null,null,"Vodovod - Řad 1 PE D 110x10,0 mm :",null,0,null,null,null,null,null,null,null,"Vodovod - Řad 1 PE D 110x10,0 mm :"]
[null,null,"Dosypání krajnic:25,60",null,25.6,null,null,null,null,null,null,null,"Dosypání krajnic:25,60"]
[40,"572952111R00","Vyspravení krytu po překopu asf.betonem tl.do 5 cm ","m2",14.55,null,{"$f":"E256*F256","v":0},0.10255,{"$f":"E256*H256","v":1.4921025000000001},0,{"$f":"E256*J256","v":0},null,null,null,2,null,null,null,null,null,null,null,null,null,null,null,1,1,1,null,null,null,null,null,null,null,null,null,null,null,null,null,null,null,null,null,null,null,null,null,null,1,{"$f":"IF(AZ256=1,G256,0)","v":0},{"$f":"IF(AZ256=2,G256,0)","v":0},{"$f":"IF(AZ256=3,G256,0)","v":0},{"$f":"IF(AZ256=4,G256,0)","v":0},{"$f":"IF(AZ256=5,G256,0)","v":0},null,null,null,null,null,null,null,null,null,null,null,null,null,null,null,null,null,null,null,null,null,1,1]
[null,null,"Včetně ošetření pracovní spáry zálivkou dle TP",null,null,null,null,null,null,null,null,"Včetně ošetření pracovní spáry zálivkou dle TP",null,null,3]
[null,null,"Vodovod - Řad 1 PE D 110x10,0 mm :",null,0,null,null,null,null,null,null,null,"Vodovod - Řad 1 PE D 110x10,0 mm :"]
[null,null,"km 0,000.0 - 0,009.7:9,70*1,50",null,14.55,null,null,null,null,null,null,null,"km 0,000.0 - 0,009.7:9,70*1,50"]
[41,"573231123R00","Postřik spojovací z KAE, množ. zbyt.asf. 0,3 kg/m2 ","m2",136,null,{"$f":"E260*F260","v":0},7.1000000000000002E-4,{"$f":"E260*H260","v":9.6560000000000007E-2},0,{"$f":"E260*J260","v":0},null,null,null,2,null,null,null,null,null,null,null,null,null,null,null,1,1,1,null,null,null,null,null,null,null,null,null,null,null,null,null,null,null,null,null,null,null,null,null,null,1,{"$f":"IF(AZ260=1,G260,0)","v":0},{"$f":"IF(AZ260=2,G260,0)","v":0},{"$f":"IF(AZ260=3,G260,0)","v":0},{"$f":"IF(AZ260=4,G260,0)","v":0},{"$f":"IF(AZ260=5,G260,0)","v":0},null,null,null,null,null,null,null,null,null,null,null,null,null,null,null,null,null,null,null,null,null,1,1]
[null,null,"Vodovod - Řad 1 PE D 110x10,0 mm :",null,0,null,null,null,null,null,null,null,"Vodovod - Řad 1 PE D 110x10,0 mm :"]
[null,null,"VP pro čp. 60 PE D 32x3,0 mm:",null,0,null,null,null,null,null,null,null,"VP pro čp. 60 PE D 32x3,0 mm:"]
[null,null,"Místní komunikace:66,00",null,66,null,null,null,null,null,null,null,"Místní komunikace:66,00"]
[null,null,"Místní soukromá komunikace (od mostku k silnici III. tř.):70,00",null,70,null,null,null,null,null,null,null,"Místní soukromá komunikace (od mostku k silnici III. tř.):70,00"]
[42,"577131111RT3","Beton asfalt. ACO 11+ obrusný, š. do 3 m, tl. 4 cm plochy 101-200 m2","m2",136,null,{"$f":"E265*F265","v":0},0.10373,{"$f":"E265*H265","v":14.107280000000001},0,{"$f":"E265*J265","v":0},null,null,null,2,null,null,null,null,null,null,null,null,null,null,null,1,1,1,null,null,null,null,null,null,null,null,null,null,null,null,null,null,null,null,null,null,null,null,null,null,1,{"$f":"IF(AZ265=1,G265,0)","v":0},{"$f":"IF(AZ265=2,G265,0)","v":0},{"$f":"IF(AZ265=3,G265,0)","v":0},{"$f":"IF(AZ265=4,G265,0)","v":0},{"$f":"IF(AZ265=5,G265,0)","v":0},null,null,null,null,null,null,null,null,null,null,null,null,null,null,null,null,null,null,null,null,null,1,1]
[null,null,"Včetně ošetření pracovní spáry zálivkou dle TP",null,null,null,null,null,null,null,null,"Včetně ošetření pracovní spáry zálivkou dle TP",null,null,3]
[null,null,"Vodovod - Řad 1 PE D 110x10,0 mm :",null,0,null,null,null,null,null,null,null,"Vodovod - Řad 1 PE D 110x10,0 mm :"]
[null,null,"VP pro čp. 60 PE D 32x3,0 mm:",null,0,null,null,null,null,null,null,null,"VP pro čp. 60 PE D 32x3,0 mm:"]
[null,null,"Místní komunikace:66,00",null,66,null,null,null,null,null,null,null,"Místní komunikace:66,00"]
[null,null,"Místní soukromá komunikace (od mostku k silnici III. tř.):70,00",null,70,null,null,null,null,null,null,null,"Místní soukromá komunikace (od mostku k silnici III. tř.):70,00"]
[43,"577151123RT3","Beton asfalt. ACL 16+ ložný, š. do 3 m, tl. 6 cm plochy 101-200 m2","m2",70,null,{"$f":"E271*F271","v":0},0.15559000000000001,{"$f":"E271*H271","v":10.891300000000001},0,{"$f":"E271*J271","v":0},null,null,null,2,null,null,null,null,null,null,null,null,null,null,null,1,1,1,null,null,null,null,null,null,null,null,null,null,null,null,null,null,null,null,null,null,null,null,null,null,1,{"$f":"IF(AZ271=1,G271,0)","v":0},{"$f":"IF(AZ271=2,G271,0)","v":0},{"$f":"IF(AZ271=3,G271,0)","v":0},{"$f":"IF(AZ271=4,G271,0)","v":0},{"$f":"IF(AZ271=5,G271,0)","v":0},null,null,null,null,null,null,null,null,null,null,null,null,null,null,null,null,null,null,null,null,null,1,1]
[null,null,"Včetně ošetření pracovní spáry zálivkou dle TP",null,null,null,null,null,null,null,null,"Včetně ošetření pracovní spáry zálivkou dle TP",null,null,3]
[null,null,"Vodovod - Řad 1 PE D 110x10,0 mm :",null,0,null,null,null,null,null,null,null,"Vodovod - Řad 1 PE D 110x10,0 mm :"]
[null,null,"VP pro čp. 60 PE D 32x3,0 mm:",null,0,null,null,null,null,null,null,null,"VP pro čp. 60 PE D 32x3,0 mm:"]
[null,null,"Místní soukromá komunikace (od mostku k silnici III. tř.):70,00",null,70,null,null,null,null,null,null,null,"Místní soukromá komunikace (od mostku k silnici III. tř.):70,00"]
[null,"Celkem za","5 Komunikace",null,null,null,{"$f":"SUM(G229:G275)","v":0},null,{"$f":"SUM(I229:I275)","v":68.100564500000004},null,{"$f":"SUM(K229:K275)","v":0},null,null,null,4,null,null,null,null,null,null,null,null,null,null,null,null,null,null,null,null,null,null,null,null,null,null,null,null,null,null,null,null,null,null,null,null,null,null,null,null,null,{"$f":"SUM(BA229:BA275)","v":0},{"$f":"SUM(BB229:BB275)","v":0},{"$f":"SUM(BC229:BC275)","v":0},{"$f":"SUM(BD229:BD275)","v":0},{"$f":"SUM(BE229:BE275)","v":0}]
["Díl:","8","Trubní vedení",null,null,null,null,null,null,null,null,null,null,null,1]
[44,"899 90-8003.RRX","Demontáž stávající armaturní šachty včetně šoupat na TLT DN80","soubor",1,null,{"$f":"E278*F278","v":0},0,{"$f":"E278*H278","v":0},null,{"$f":"E278*J278","v":0},null,null,null,2,null,null,null,null,null,null,null,null,null,null,null,11,2,86,null,null,null,null,null,null,null,null,null,null,null,null,null,null,null,null,null,null,null,null,null,null,1,{"$f":"IF(AZ278=1,G278,0)","v":0},{"$f":"IF(AZ278=2,G278,0)","v":0},{"$f":"IF(AZ278=3,G278,0)","v":0},{"$f":"IF(AZ278=4,G278,0)","v":0},{"$f":"IF(AZ278=5,G278,0)","v":0},null,null,null,null,null,null,null,null,null,null,null,null,null,null,null,null,null,null,null,null,null,11,2]
[45,"899 90-8004.RRX","Odpojení stávající vodovodní přípojky pro čp. 60 na TLT DN80","soubor",1,null,{"$f":"E279*F279","v":0},0,{"$f":"E279*H279","v":0},null,{"$f":"E279*J279","v":0},null,null,null,2,null,null,null,null,null,null,null,null,null,null,null,11,2,87,null,null,null,null,null,null,null,null,null,null,null,null,null,null,null,null,null,null,null,null,null,null,1,{"$f":"IF(AZ279=1,G279,0)","v":0},{"$f":"IF(AZ279=2,G279,0)","v":0},{"$f":"IF(AZ279=3,G279,0)","v":0},{"$f":"IF(AZ279=4,G279,0)","v":0},{"$f":"IF(AZ279=5,G279,0)","v":0},null,null,null,null,null,null,null,null,null,null,null,null,null,null,null,null,null,null,null,null,null,11,2]
[46,"850245121R00","Výřez nebo výsek na potrubí DN 80 ","kus",6,null,{"$f":"E280*F280","v":0},0,{"$f":"E280*H280","v":0},0,{"$f":"E280*J280","v":0},null,null,null,2,null,null,null,null,null,null,null,null,null,null,null,1,1,1,null,null,null,null,null,null,null,null,null,null,null,null,null,null,null,null,null,null,null,null,null,null,1,{"$f":"IF(AZ280=1,G280,0)","v":0},{"$f":"IF(AZ280=2,G280,0)","v":0},{"$f":"IF(AZ280=3,G280,0)","v":0},{"$f":"IF(AZ280=4,G280,0)","v":0},{"$f":"IF(AZ280=5,G280,0)","v":0},null,null,null,null,null,null,null,null,null,null,null,null,null,null,null,null,null,null,null,null,null,1,1]
[null,null,"Položky výřezu nebo výseku na potrubí z trub litinových tlakových jsou určeny pro dva řezy nebo seky prováděné na potrubí dodatečně. V položkách jsou zakalkulovány náklady na",null,null,null,null,null,null,null,null,"Položky výřezu nebo výseku na potrubí z trub litinových tlakových jsou určeny pro dva řezy nebo seky prováděné na potrubí dodatečně. V položkách jsou zakalkulovány náklady na",null,null,3]
[null,null,"- ohlášení uzavírání vody",null,null,null,null,null,null,null,null,"- ohlášení uzavírání vody",null,null,3]
[null,null,"- uzavření a otevření šoupat",null,null,null,null,null,null,null,null,"- uzavření a otevření šoupat",null,null,3]
[null,null,"- vypuštění a napuštění vody",null,null,null,null,null,null,null,null,"- vypuštění a napuštění vody",null,null,3]
[null,null,"- odvzdušnění potrubí",null,null,null,null,null,null,null,null,"- odvzdušnění potrubí",null,null,3]
[null,null,"- strojní nebo ruční výřez potrubí",null,null,null,null,null,null,null,null,"- strojní nebo ruční výřez potrubí",null,null,3]
[null,null,"- nutné úpravy výkopu v prostoru provádění",null,null,null,null,null,null,null,null,"- nutné úpravy výkopu v prostoru provádění",null,null,3]
[null,null,"- montáž tvarovky",null,null,null,null,null,null,null,null,"- montáž tvarovky",null,null,3]
[null,null,"Vodovod - Řad 1 PE D 110x10,0 mm:",null,0,null,null,null,null,null,null,null,"Vodovod - Řad 1 PE D 110x10,0 mm:"]
[null,null,"v km 0,000.0 :",null,0,null,null,null,null,null,null,null,"v km 0,000.0 :"]
[null,null,"Pro PE D40:1",null,1,null,null,null,null,null,null,null,"Pro PE D40:1"]
[null,null,"Pro PE D90:1",null,1,null,null,null,null,null,null,null,"Pro PE D90:1"]
[null,null,"v km 0,075.0:",null,0,null,null,null,null,null,null,null,"v km 0,075.0:"]
[null,null,"Pro TLT DN80:1",null,1,null,null,null,null,null,null,null,"Pro TLT DN80:1"]
[null,null,"v km 0,112.0:",null,0,null,null,null,null,null,null,null,"v km 0,112.0:"]
[null,null,"Pro TLT DN80:1",null,1,null,null,null,null,null,null,null,"Pro TLT DN80:1"]
[null,null,"Rušní AŠ na TLT DN80:1",null,1,null,null,null,null,null,null,null,"Rušní AŠ na TLT DN80:1"]
[null,null,"Pro odpojení  stávající VP pro čp. 60 PE D50:1",null,1,null,null,null,null,null,null,null,"Pro odpojení  stávající VP pro čp. 60 PE D50:1"]
[47,"851601101RT1","Montáž potrubí tlakového tvárná litina DN 80 hrdlové, pružný spoj, ve výkopu","m",3,null,{"$f":"E299*F299","v":0},0,{"$f":"E299*H299","v":0},0,{"$f":"E299*J299","v":0},null,null,null,2,null,null,null,null,null,null,null,null,null,null,null,1,1,1,null,null,null,null,null,null,null,null,null,null,null,null,null,null,null,null,null,null,null,null,null,null,1,{"$f":"IF(AZ299=1,G299,0)","v":0},{"$f":"IF(AZ299=2,G299,0)","v":0},{"$f":"IF(AZ299=3,G299,0)","v":0},{"$f":"IF(AZ299=4,G299,0)","v":0},{"$f":"IF(AZ299=5,G299,0)","v":0},null,null,null,null,null,null,null,null,null,null,null,null,null,null,null,null,null,null,null,null,null,1,1]
[null,null,"Položka je určena pro montáž potrubí hrdlového s pružnými spoji ve výkopu. ",null,null,null,null,null,null,null,null,"Položka je určena pro montáž potrubí hrdlového s pružnými spoji ve výkopu. ",null,null,3]
[null,null,"Vodovod - Řad 1 PE D 110x10,0 mm:",null,0,null,null,null,null,null,null,null,"Vodovod - Řad 1 PE D 110x10,0 mm:"]
[null,null,"Propojení Řadu TLT DN80 po odstranění AŠ:3,00",null,3,null,null,null,null,null,null,null,"Propojení Řadu TLT DN80 po odstranění AŠ:3,00"]
[48,"857242121R00","Montáž tvarovek litin. jednoos.přír. výkop DN 80 včetně nerezových spoj. prvků a obandážování spoje","kus",9,null,{"$f":"E303*F303","v":0},2.2000000000000001E-4,{"$f":"E303*H303","v":1.98E-3},0,{"$f":"E303*J303","v":0},null,null,null,2,null,null,null,null,null,null,null,null,null,null,null,1,1,1,null,null,null,null,null,null,null,null,null,null,null,null,null,null,null,null,null,null,null,null,null,null,1,{"$f":"IF(AZ303=1,G303,0)","v":0},{"$f":"IF(AZ303=2,G303,0)","v":0},{"$f":"IF(AZ303=3,G303,0)","v":0},{"$f":"IF(AZ303=4,G303,0)","v":0},{"$f":"IF(AZ303=5,G303,0)","v":0},null,null,null,null,null,null,null,null,null,null,null,null,null,null,null,null,null,null,null,null,null,1,1]
[null,null,"Položka je určena pro montáž litinových tvarovek na potrubí litinovém tlakovém přírubovém jednoosých v otevřeném výkopu, v otevřeném kanálu nebo v šachtě.",null,null,null,null,null,null,null,null,"Položka je určena pro montáž litinových tvarovek na potrubí litinovém tlakovém přírubovém jednoosých v otevřeném výkopu, v otevřeném kanálu nebo v šachtě.",null,null,3]
[null,null,"Součástí položky je i dodávka nerezových spojovacích prvků (šrouby, podložky, matky) a kompletního obandážování spojů. ",null,null,null,null,null,null,null,null,"Součástí položky je i dodávka nerezových spojovacích prvků (šrouby, podložky, matky) a kompletního obandážování spojů. ",null,null,3]
[null,null,"Vodovod - Řad 1 PE D 110x10,0 mm:",null,0,null,null,null,null,null,null,null,"Vodovod - Řad 1 PE D 110x10,0 mm:"]
[null,null,"LN + TP D90/DN80:1",null,1,null,null,null,null,null,null,null,"LN + TP D90/DN80:1"]
[null,null,"XG DN50/1 1/2\":1",null,1,null,null,null,null,null,null,null,"XG DN50/1 1/2\":1"]
[null,null,"PPL DN80:1",null,1,null,null,null,null,null,null,null,"PPL DN80:1"]
[null,null,"Synoflex s přírubou DN80 (85-105):3",null,3,null,null,null,null,null,null,null,"Synoflex s přírubou DN80 (85-105):3"]
[null,null,"Propojení Řadu TLT DN80 po odstranění AŠ:",null,0,null,null,null,null,null,null,null,"Propojení Řadu TLT DN80 po odstranění AŠ:"]
[null,null,"Synoflex spojka DN80 (85-105):2",null,2,null,null,null,null,null,null,null,"Synoflex spojka DN80 (85-105):2"]
[null,null,"Po odpojení VP pro čp. 60:",null,0,null,null,null,null,null,null,null,"Po odpojení VP pro čp. 60:"]
[null,null,"Třměn č. 0750 M95-104:1",null,1,null,null,null,null,null,null,null,"Třměn č. 0750 M95-104:1"]
[49,"857262121R00","Montáž tvarovek litin. jednoos. přír. výkop DN 100 včetně nerezových spoj. prvků a obandážování spoje","kus",9,null,{"$f":"E315*F315","v":0},4.0999999999999999E-4,{"$f":"E315*H315","v":3.6899999999999997E-3},0,{"$f":"E315*J315","v":0},null,null,null,2,null,null,null,null,null,null,null,null,null,null,null,1,1,1,null,null,null,null,null,null,null,null,null,null,null,null,null,null,null,null,null,null,null,null,null,null,1,{"$f":"IF(AZ315=1,G315,0)","v":0},{"$f":"IF(AZ315=2,G315,0)","v":0},{"$f":"IF(AZ315=3,G315,0)","v":0},{"$f":"IF(AZ315=4,G315,0)","v":0},{"$f":"IF(AZ315=5,G315,0)","v":0},null,null,null,null,null,null,null,null,null,null,null,null,null,null,null,null,null,null,null,null,null,1,1]
[null,null,"Položka je určena pro montáž litinových tvarovek na potrubí litinovém tlakovém přírubovém jednoosých v otevřeném výkopu, v otevřeném kanálu nebo v šachtě.",null,null,null,null,null,null,null,null,"Položka je určena pro montáž litinových tvarovek na potrubí litinovém tlakovém přírubovém jednoosých v otevřeném výkopu, v otevřeném kanálu nebo v šachtě.",null,null,3]
[null,null,"Součástí položky je i dodávka nerezových spojovacích prvků (šrouby, podložky, matky) a kompletního obandážování spojů. ",null,null,null,null,null,null,null,null,"Součástí položky je i dodávka nerezových spojovacích prvků (šrouby, podložky, matky) a kompletního obandážování spojů. ",null,null,3]
[null,null,"Vodovod - Řad 1 PE D 110x10,0 mm:",null,0,null,null,null,null,null,null,null,"Vodovod - Řad 1 PE D 110x10,0 mm:"]
[null,null,"LN + TP D110/DN100:5",null,5,null,null,null,null,null,null,null,"LN + TP D110/DN100:5"]
[null,null,"FFR DN100/80:4",null,4,null,null,null,null,null,null,null,"FFR DN100/80:4"]
[50,"857264121R00","Montáž tvarovek litin. odboč. přír. výkop DN 100 včetně nerezových spoj. prvků a obandážování spoje","kus",3,null,{"$f":"E321*F321","v":0},6.2E-4,{"$f":"E321*H321","v":1.8600000000000001E-3},0,{"$f":"E321*J321","v":0},null,null,null,2,null,null,null,null,null,null,null,null,null,null,null,1,1,1,null,null,null,null,null,null,null,null,null,null,null,null,null,null,null,null,null,null,null,null,null,null,1,{"$f":"IF(AZ321=1,G321,0)","v":0},{"$f":"IF(AZ321=2,G321,0)","v":0},{"$f":"IF(AZ321=3,G321,0)","v":0},{"$f":"IF(AZ321=4,G321,0)","v":0},{"$f":"IF(AZ321=5,G321,0)","v":0},null,null,null,null,null,null,null,null,null,null,null,null,null,null,null,null,null,null,null,null,null,1,1]
[null,null,"Položka je určena pro montáž litinových tvarovek na potrubí litinovém tlakovém přírubovém odbočných v otevřeném výkopu, v otevřeném kanálu nebo v šachtě.",null,null,null,null,null,null,null,null,"Položka je určena pro montáž litinových tvarovek na potrubí litinovém tlakovém přírubovém odbočných v otevřeném výkopu, v otevřeném kanálu nebo v šachtě.",null,null,3]
[null,null,"Součástí položky je i dodávka nerezových spojovacích prvků (šrouby, podložky, matky) a kompletního obandážování spojů. ",null,null,null,null,null,null,null,null,"Součástí položky je i dodávka nerezových spojovacích prvků (šrouby, podložky, matky) a kompletního obandážování spojů. ",null,null,3]
[null,null,"Vodovod - Řad 1 PE D 110x10,0 mm:",null,0,null,null,null,null,null,null,null,"Vodovod - Řad 1 PE D 110x10,0 mm:"]
[null,null,"T DN100/50:1",null,1,null,null,null,null,null,null,null,"T DN100/50:1"]
[null,null,"T DN100/80:1",null,1,null,null,null,null,null,null,null,"T DN100/80:1"]
[null,null,"TT DN100/100:1",null,1,null,null,null,null,null,null,null,"TT DN100/100:1"]
[51,"871161121R00","Montáž trubek polyetylenových ve výkopu d 32 mm ","m",7,null,{"$f":"E328*F328","v":0},0,{"$f":"E328*H328","v":0},0,{"$f":"E328*J328","v":0},null,null,null,2,null,null,null,null,null,null,null,null,null,null,null,1,1,1,null,null,null,null,null,null,null,null,null,null,null,null,null,null,null,null,null,null,null,null,null,null,1,{"$f":"IF(AZ328=1,G328,0)","v":0},{"$f":"IF(AZ328=2,G328,0)","v":0},{"$f":"IF(AZ328=3,G328,0)","v":0},{"$f":"IF(AZ328=4,G328,0)","v":0},{"$f":"IF(AZ328=5,G328,0)","v":0},null,null,null,null,null,null,null,null,null,null,null,null,null,null,null,null,null,null,null,null,null,1,1]
[null,null,"V položce je uvažováno použití svitku. ",null,null,null,null,null,null,null,null,"V položce je uvažováno použití svitku. ",null,null,3]
[null,null,"Vodovod - Řad 1 PE D 110x10,0 mm:",null,0,null,null,null,null,null,null,null,"Vodovod - Řad 1 PE D 110x10,0 mm:"]
[null,null,"VP pro čp. 60 PE D 32x3,0 mm:7,00",null,7,null,null,null,null,null,null,null,"VP pro čp. 60 PE D 32x3,0 mm:7,00"]
[52,"871251121R00","Montáž trubek polyetylenových ve výkopu d 110 mm ","m",120,null,{"$f":"E332*F332","v":0},0,{"$f":"E332*H332","v":0},0,{"$f":"E332*J332","v":0},null,null,null,2,null,null,null,null,null,null,null,null,null,null,null,1,1,1,null,null,null,null,null,null,null,null,null,null,null,null,null,null,null,null,null,null,null,null,null,null,1,{"$f":"IF(AZ332=1,G332,0)","v":0},{"$f":"IF(AZ332=2,G332,0)","v":0},{"$f":"IF(AZ332=3,G332,0)","v":0},{"$f":"IF(AZ332=4,G332,0)","v":0},{"$f":"IF(AZ332=5,G332,0)","v":0},null,null,null,null,null,null,null,null,null,null,null,null,null,null,null,null,null,null,null,null,null,1,1]
[null,null,"Vodovod - Řad 1 PE D 110x10,0 mm km 0,000.0 - 0,120.0:120,00",null,120,null,null,null,null,null,null,null,"Vodovod - Řad 1 PE D 110x10,0 mm km 0,000.0 - 0,120.0:120,00"]
[53,"871261122T00","Příplatek za nasunutí PE potrubí do chráničky pro D63 - 160 mm","m",25,null,{"$f":"E334*F334","v":0},0,{"$f":"E334*H334","v":0},0,{"$f":"E334*J334","v":0},null,null,null,2,null,null,null,null,null,null,null,null,null,null,null,1,1,1,null,null,null,null,null,null,null,null,null,null,null,null,null,null,null,null,null,null,null,null,null,null,1,{"$f":"IF(AZ334=1,G334,0)","v":0},{"$f":"IF(AZ334=2,G334,0)","v":0},{"$f":"IF(AZ334=3,G334,0)","v":0},{"$f":"IF(AZ334=4,G334,0)","v":0},{"$f":"IF(AZ334=5,G334,0)","v":0},null,null,null,null,null,null,null,null,null,null,null,null,null,null,null,null,null,null,null,null,null,1,1]
[null,null,"Vodovod - Řad 1 PE D 110x10,0 mm:",null,0,null,null,null,null,null,null,null,"Vodovod - Řad 1 PE D 110x10,0 mm:"]
[null,null,"Řízený protlak km 0,014.0 - 0,020.0 (chránička):6,00",null,6,null,null,null,null,null,null,null,"Řízený protlak km 0,014.0 - 0,020.0 (chránička):6,00"]
[null,null,"Řízený protlak km 0,042.0 - 0,055.0 (chránička):13,00",null,13,null,null,null,null,null,null,null,"Řízený protlak km 0,042.0 - 0,055.0 (chránička):13,00"]
[null,null,"Chránička km 0,055.0 - 0,061.0:6,00",null,6,null,null,null,null,null,null,null,"Chránička km 0,055.0 - 0,061.0:6,00"]
[54,"877162121R00","Přirážka za 1 spoj elektrotvarovky d 32 mm ","kus",1,null,{"$f":"E339*F339","v":0},0,{"$f":"E339*H339","v":0},0,{"$f":"E339*J339","v":0},null,null,null,2,null,null,null,null,null,null,null,null,null,null,null,1,1,1,null,null,null,null,null,null,null,null,null,null,null,null,null,null,null,null,null,null,null,null,null,null,1,{"$f":"IF(AZ339=1,G339,0)","v":0},{"$f":"IF(AZ339=2,G339,0)","v":0},{"$f":"IF(AZ339=3,G339,0)","v":0},{"$f":"IF(AZ339=4,G339,0)","v":0},{"$f":"IF(AZ339=5,G339,0)","v":0},null,null,null,null,null,null,null,null,null,null,null,null,null,null,null,null,null,null,null,null,null,1,1]
[null,null,"Vodovod - Řad 1 PE D 110x10,0 mm:",null,0,null,null,null,null,null,null,null,"Vodovod - Řad 1 PE D 110x10,0 mm:"]
[null,null,"VP pro čp. 60 PE D 32x3,0 mm:",null,0,null,null,null,null,null,null,null,"VP pro čp. 60 PE D 32x3,0 mm:"]
[null,null,"MB Elektrospojka D 32:1",null,1,null,null,null,null,null,null,null,"MB Elektrospojka D 32:1"]
[55,"877242121R00","Přirážka za 1 spoj elektrotvarovky d 90 mm ","kus",1,null,{"$f":"E343*F343","v":0},0,{"$f":"E343*H343","v":0},0,{"$f":"E343*J343","v":0},null,null,null,2,null,null,null,null,null,null,null,null,null,null,null,1,1,1,null,null,null,null,null,null,null,null,null,null,null,null,null,null,null,null,null,null,null,null,null,null,1,{"$f":"IF(AZ343=1,G343,0)","v":0},{"$f":"IF(AZ343=2,G343,0)","v":0},{"$f":"IF(AZ343=3,G343,0)","v":0},{"$f":"IF(AZ343=4,G343,0)","v":0},{"$f":"IF(AZ343=5,G343,0)","v":0},null,null,null,null,null,null,null,null,null,null,null,null,null,null,null,null,null,null,null,null,null,1,1]
[null,null,"Vodovod - Řad 1 PE D 110x10,0 mm:",null,0,null,null,null,null,null,null,null,"Vodovod - Řad 1 PE D 110x10,0 mm:"]
[null,null,"MB Elektrospojka D 90:1",null,1,null,null,null,null,null,null,null,"MB Elektrospojka D 90:1"]
[56,"877252121R00","Přirážka za 1 spoj elektrotvarovky d 110 mm ","kus",39,null,{"$f":"E346*F346","v":0},0,{"$f":"E346*H346","v":0},0,{"$f":"E346*J346","v":0},null,null,null,2,null,null,null,null,null,null,null,null,null,null,null,1,1,1,null,null,null,null,null,null,null,null,null,null,null,null,null,null,null,null,null,null,null,null,null,null,1,{"$f":"IF(AZ346=1,G346,0)","v":0},{"$f":"IF(AZ346=2,G346,0)","v":0},{"$f":"IF(AZ346=3,G346,0)","v":0},{"$f":"IF(AZ346=4,G346,0)","v":0},{"$f":"IF(AZ346=5,G346,0)","v":0},null,null,null,null,null,null,null,null,null,null,null,null,null,null,null,null,null,null,null,null,null,1,1]
[null,null,"Vodovod - Řad 1 PE D 110x10,0 mm:",null,0,null,null,null,null,null,null,null,"Vodovod - Řad 1 PE D 110x10,0 mm:"]
[null,null,"MB Elektrospojka D 110:25",null,25,null,null,null,null,null,null,null,"MB Elektrospojka D 110:25"]
[null,null,"W45 Koleno 45° D 110:4",null,4,null,null,null,null,null,null,null,"W45 Koleno 45° D 110:4"]
[null,null,"W30 Koleno 30° D 110:6",null,6,null,null,null,null,null,null,null,"W30 Koleno 30° D 110:6"]
[null,null,"WS11 Koleno 11° D 110:4",null,4,null,null,null,null,null,null,null,"WS11 Koleno 11° D 110:4"]
[57,"891183459RX0","Úpravy vnitřních rozvodů vody v objektech(prostup) včetně stavebních přípomocí","kus",1,null,{"$f":"E352*F352","v":0},4.6000000000000001E-4,{"$f":"E352*H352","v":4.6000000000000001E-4},0,{"$f":"E352*J352","v":0},null,null,null,2,null,null,null,null,null,null,null,null,null,null,null,1,1,1,null,null,null,null,null,null,null,null,null,null,null,null,null,null,null,null,null,null,null,null,null,null,1,{"$f":"IF(AZ352=1,G352,0)","v":0},{"$f":"IF(AZ352=2,G352,0)","v":0},{"$f":"IF(AZ352=3,G352,0)","v":0},{"$f":"IF(AZ352=4,G352,0)","v":0},{"$f":"IF(AZ352=5,G352,0)","v":0},null,null,null,null,null,null,null,null,null,null,null,null,null,null,null,null,null,null,null,null,null,1,1]
[null,null,"Položka obsahuje přemístění stávající vodoměrné sestavy v objektu a provedení prostupu nového potrubí VP D 32 základy objektu včetně dodávky potřebných tvarovek a potrub chráničky PE D63x5,8 mm.",null,null,null,null,null,null,null,null,"Položka obsahuje přemístění stávající vodoměrné sestavy v objektu a provedení prostupu nového potrubí VP D 32 základy objektu včetně dodávky potřebných tvarovek a potrub chráničky PE D63x5,8 mm.",null,null,3]
[null,null,"Vodovod - Řad 1 PE D 110x10,0 mm:",null,0,null,null,null,null,null,null,null,"Vodovod - Řad 1 PE D 110x10,0 mm:"]
[null,null,"VP pro čp. 60 PE D 32x3,0 mm:1",null,1,null,null,null,null,null,null,null,"VP pro čp. 60 PE D 32x3,0 mm:1"]
[58,"891183465RX0","Úpravy vnitřních rozvodů vody v objektech včetně stavebních přípomocí","kus",1,null,{"$f":"E356*F356","v":0},4.6000000000000001E-4,{"$f":"E356*H356","v":4.6000000000000001E-4},0,{"$f":"E356*J356","v":0},null,null,null,2,null,null,null,null,null,null,null,null,null,null,null,1,1,1,null,null,null,null,null,null,null,null,null,null,null,null,null,null,null,null,null,null,null,null,null,null,1,{"$f":"IF(AZ356=1,G356,0)","v":0},{"$f":"IF(AZ356=2,G356,0)","v":0},{"$f":"IF(AZ356=3,G356,0)","v":0},{"$f":"IF(AZ356=4,G356,0)","v":0},{"$f":"IF(AZ356=5,G356,0)","v":0},null,null,null,null,null,null,null,null,null,null,null,null,null,null,null,null,null,null,null,null,null,1,1]
[null,null,"Položka obsahuje přebudování stávajícího potrubí vnitřních rozvodů ZTI, montáž a dodávku příslušného potrubí včetně tvarovek a potřebné stavební přípomoce.",null,null,null,null,null,null,null,null,"Položka obsahuje přebudování stávajícího potrubí vnitřních rozvodů ZTI, montáž a dodávku příslušného potrubí včetně tvarovek a potřebné stavební přípomoce.",null,null,3]
[null,null,"Celková délka úprav vnitřího rozvodu cca 10 m.",null,null,null,null,null,null,null,null,"Celková délka úprav vnitřího rozvodu cca 10 m.",null,null,3]
[null,null,"Vodovod - Řad 1 PE D 110x10,0 mm:",null,0,null,null,null,null,null,null,null,"Vodovod - Řad 1 PE D 110x10,0 mm:"]
[null,null,"VP pro čp. 60 PE D 32x3,0 mm:1",null,1,null,null,null,null,null,null,null,"VP pro čp. 60 PE D 32x3,0 mm:1"]
[59,"891211111R00","Montáž vodovodních šoupátek ve výkopu DN 50 včetně nerezových spoj. prvků a obandážování spoje","kus",1,null,{"$f":"E361*F361","v":0},2.1000000000000001E-4,{"$f":"E361*H361","v":2.1000000000000001E-4},0,{"$f":"E361*J361","v":0},null,null,null,2,null,null,null,null,null,null,null,null,null,null,null,1,1,1,null,null,null,null,null,null,null,null,null,null,null,null,null,null,null,null,null,null,null,null,null,null,1,{"$f":"IF(AZ361=1,G361,0)","v":0},{"$f":"IF(AZ361=2,G361,0)","v":0},{"$f":"IF(AZ361=3,G361,0)","v":0},{"$f":"IF(AZ361=4,G361,0)","v":0},{"$f":"IF(AZ361=5,G361,0)","v":0},null,null,null,null,null,null,null,null,null,null,null,null,null,null,null,null,null,null,null,null,null,1,1]
[null,null,"Položka je určena pro montáž vodovodních šoupátek v otevřeném výkopu nebo v šachtách s osazením zemní soupravy (bez poklopů). V položce jsou zakalkulovány i náklady na vytvoření otvorů ve stropech šachet pro prostup zemních souprav šoupátek.",null,null,null,null,null,null,null,null,"Položka je určena pro montáž vodovodních šoupátek v otevřeném výkopu nebo v šachtách s osazením zemní soupravy (bez poklopů). V položce jsou zakalkulovány i náklady na vytvoření otvorů ve stropech šachet pro prostup zemních souprav šoupátek.",null,null,3]
[null,null,"Součástí položky je i dodávka nerezových spojovacích prvků (šrouby, podložky, matky) a kompletního obandážování spojů. ",null,null,null,null,null,null,null,null,"Součástí položky je i dodávka nerezových spojovacích prvků (šrouby, podložky, matky) a kompletního obandážování spojů. ",null,null,3]
[null,null,"Vodovod - Řad 1 PE D 110x10,0 mm:",null,0,null,null,null,null,null,null,null,"Vodovod - Řad 1 PE D 110x10,0 mm:"]
[null,null,"Šoupě DN50:1",null,1,null,null,null,null,null,null,null,"Šoupě DN50:1"]
[60,"891241111R00","Montáž vodovodních šoupátek ve výkopu DN 80 včetně nerezových spoj. prvků a obandážování spoje","kus",1,null,{"$f":"E366*F366","v":0},2.2000000000000001E-4,{"$f":"E366*H366","v":2.2000000000000001E-4},0,{"$f":"E366*J366","v":0},null,null,null,2,null,null,null,null,null,null,null,null,null,null,null,1,1,1,null,null,null,null,null,null,null,null,null,null,null,null,null,null,null,null,null,null,null,null,null,null,1,{"$f":"IF(AZ366=1,G366,0)","v":0},{"$f":"IF(AZ366=2,G366,0)","v":0},{"$f":"IF(AZ366=3,G366,0)","v":0},{"$f":"IF(AZ366=4,G366,0)","v":0},{"$f":"IF(AZ366=5,G366,0)","v":0},null,null,null,null,null,null,null,null,null,null,null,null,null,null,null,null,null,null,null,null,null,1,1]
[null,null,"Položka je určena pro montáž vodovodních šoupátek v otevřeném výkopu nebo v šachtách s osazením zemní soupravy (bez poklopů). V položce jsou zakalkulovány i náklady na vytvoření otvorů ve stropech šachet pro prostup zemních souprav šoupátek.",null,null,null,null,null,null,null,null,"Položka je určena pro montáž vodovodních šoupátek v otevřeném výkopu nebo v šachtách s osazením zemní soupravy (bez poklopů). V položce jsou zakalkulovány i náklady na vytvoření otvorů ve stropech šachet pro prostup zemních souprav šoupátek.",null,null,3]
[null,null,"Součástí položky je i dodávka nerezových spojovacích prvků (šrouby, podložky, matky) a kompletního obandážování spojů. ",null,null,null,null,null,null,null,null,"Součástí položky je i dodávka nerezových spojovacích prvků (šrouby, podložky, matky) a kompletního obandážování spojů. ",null,null,3]
[null,null,"Vodovod - Řad 1 PE D 110x10,0 mm:",null,0,null,null,null,null,null,null,null,"Vodovod - Řad 1 PE D 110x10,0 mm:"]
[null,null,"Šoupě DN80:1",null,1,null,null,null,null,null,null,null,"Šoupě DN80:1"]
[61,"891247111R00","Montáž hydrantů podzemních DN 80 včetně nerezových spoj. prvků a obandážování spoje","kus",1,null,{"$f":"E371*F371","v":0},1.1E-4,{"$f":"E371*H371","v":1.1E-4},0,{"$f":"E371*J371","v":0},null,null,null,2,null,null,null,null,null,null,null,null,null,null,null,1,1,1,null,null,null,null,null,null,null,null,null,null,null,null,null,null,null,null,null,null,null,null,null,null,1,{"$f":"IF(AZ371=1,G371,0)","v":0},{"$f":"IF(AZ371=2,G371,0)","v":0},{"$f":"IF(AZ371=3,G371,0)","v":0},{"$f":"IF(AZ371=4,G371,0)","v":0},{"$f":"IF(AZ371=5,G371,0)","v":0},null,null,null,null,null,null,null,null,null,null,null,null,null,null,null,null,null,null,null,null,null,1,1]
[null,null,"Položka je určena pro montáž hydrantů podzemních (bez osazení poklopů) na potrubí včetně drenážního obalu.",null,null,null,null,null,null,null,null,"Položka je určena pro montáž hydrantů podzemních (bez osazení poklopů) na potrubí včetně drenážního obalu.",null,null,3]
[null,null,"Součástí položky je i dodávka nerezových spojovacích prvků (šrouby, podložky, matky) a kompletního obandážování spojů. ",null,null,null,null,null,null,null,null,"Součástí položky je i dodávka nerezových spojovacích prvků (šrouby, podložky, matky) a kompletního obandážování spojů. ",null,null,3]
[null,null,"Vodovod - Řad 1 PE D 110x10,0 mm:",null,0,null,null,null,null,null,null,null,"Vodovod - Řad 1 PE D 110x10,0 mm:"]
[null,null,"Hp DN80/1,5:1",null,1,null,null,null,null,null,null,null,"Hp DN80/1,5:1"]
[62,"891261111R00","Montáž vodovodních šoupátek ve výkopu DN 100 včetně nerezových spoj. prvků a obandážování spoje","kus",6,null,{"$f":"E376*F376","v":0},4.0999999999999999E-4,{"$f":"E376*H376","v":2.4599999999999999E-3},0,{"$f":"E376*J376","v":0},null,null,null,2,null,null,null,null,null,null,null,null,null,null,null,1,1,1,null,null,null,null,null,null,null,null,null,null,null,null,null,null,null,null,null,null,null,null,null,null,1,{"$f":"IF(AZ376=1,G376,0)","v":0},{"$f":"IF(AZ376=2,G376,0)","v":0},{"$f":"IF(AZ376=3,G376,0)","v":0},{"$f":"IF(AZ376=4,G376,0)","v":0},{"$f":"IF(AZ376=5,G376,0)","v":0},null,null,null,null,null,null,null,null,null,null,null,null,null,null,null,null,null,null,null,null,null,1,1]
[null,null,"Položka je určena pro montáž vodovodních šoupátek v otevřeném výkopu nebo v šachtách s osazením zemní soupravy (bez poklopů). V položce jsou zakalkulovány i náklady na vytvoření otvorů ve stropech šachet pro prostup zemních souprav šoupátek.",null,null,null,null,null,null,null,null,"Položka je určena pro montáž vodovodních šoupátek v otevřeném výkopu nebo v šachtách s osazením zemní soupravy (bez poklopů). V položce jsou zakalkulovány i náklady na vytvoření otvorů ve stropech šachet pro prostup zemních souprav šoupátek.",null,null,3]
[null,null,"Součástí položky je i dodávka nerezových spojovacích prvků (šrouby, podložky, matky) a kompletního obandážování spojů. ",null,null,null,null,null,null,null,null,"Součástí položky je i dodávka nerezových spojovacích prvků (šrouby, podložky, matky) a kompletního obandážování spojů. ",null,null,3]
[null,null,"Vodovod - Řad 1 PE D 110x10,0 mm:",null,0,null,null,null,null,null,null,null,"Vodovod - Řad 1 PE D 110x10,0 mm:"]
[null,null,"Šoupě DN100:6",null,6,null,null,null,null,null,null,null,"Šoupě DN100:6"]
[63,"891269111R00","Montáž navrtávacích pasů DN 100 s ventilem ","kus",1,null,{"$f":"E381*F381","v":0},0,{"$f":"E381*H381","v":0},0,{"$f":"E381*J381","v":0},null,null,null,2,null,null,null,null,null,null,null,null,null,null,null,1,1,1,null,null,null,null,null,null,null,null,null,null,null,null,null,null,null,null,null,null,null,null,null,null,1,{"$f":"IF(AZ381=1,G381,0)","v":0},{"$f":"IF(AZ381=2,G381,0)","v":0},{"$f":"IF(AZ381=3,G381,0)","v":0},{"$f":"IF(AZ381=4,G381,0)","v":0},{"$f":"IF(AZ381=5,G381,0)","v":0},null,null,null,null,null,null,null,null,null,null,null,null,null,null,null,null,null,null,null,null,null,1,1]
[null,null,"Vodovod - Řad 1 PE D 110x10,0 mm:",null,0,null,null,null,null,null,null,null,"Vodovod - Řad 1 PE D 110x10,0 mm:"]
[null,null,"VP pro čp. 60 PE D 32x3,0 mm:",null,0,null,null,null,null,null,null,null,"VP pro čp. 60 PE D 32x3,0 mm:"]
[null,null,"DAV D 110/32:1",null,1,null,null,null,null,null,null,null,"DAV D 110/32:1"]
[64,"892233111R00","Desinfekce vodovodního potrubí DN 70 ","m",7,null,{"$f":"E385*F385","v":0},0,{"$f":"E385*H385","v":0},0,{"$f":"E385*J385","v":0},null,null,null,2,null,null,null,null,null,null,null,null,null,null,null,1,1,1,null,null,null,null,null,null,null,null,null,null,null,null,null,null,null,null,null,null,null,null,null,null,1,{"$f":"IF(AZ385=1,G385,0)","v":0},{"$f":"IF(AZ385=2,G385,0)","v":0},{"$f":"IF(AZ385=3,G385,0)","v":0},{"$f":"IF(AZ385=4,G385,0)","v":0},{"$f":"IF(AZ385=5,G385,0)","v":0},null,null,null,null,null,null,null,null,null,null,null,null,null,null,null,null,null,null,null,null,null,1,1]
[null,null,"V položce jsou zakalkulovány náklady na napuštění a vypuštění vody, dodání vody a desinfekčního prostředku a na bakteriologický rozbor vody.",null,null,null,null,null,null,null,null,"V položce jsou zakalkulovány náklady na napuštění a vypuštění vody, dodání vody a desinfekčního prostředku a na bakteriologický rozbor vody.",null,null,3]
[null,null,"Vodovod - Řad 1 PE D 110x10,0 mm:",null,0,null,null,null,null,null,null,null,"Vodovod - Řad 1 PE D 110x10,0 mm:"]
[null,null,"VP pro čp. 60 PE D 32x3,0 mm:7,00",null,7,null,null,null,null,null,null,null,"VP pro čp. 60 PE D 32x3,0 mm:7,00"]
[65,"892241111R00","Tlaková zkouška vodovodního potrubí DN 80 včetně zajištění konců potrubí","m",7,null,{"$f":"E389*F389","v":0},0,{"$f":"E389*H389","v":0},0,{"$f":"E389*J389","v":0},null,null,null,2,null,null,null,null,null,null,null,null,null,null,null,1,1,1,null,null,null,null,null,null,null,null,null,null,null,null,null,null,null,null,null,null,null,null,null,null,1,{"$f":"IF(AZ389=1,G389,0)","v":0},{"$f":"IF(AZ389=2,G389,0)","v":0},{"$f":"IF(AZ389=3,G389,0)","v":0},{"$f":"IF(AZ389=4,G389,0)","v":0},{"$f":"IF(AZ389=5,G389,0)","v":0},null,null,null,null,null,null,null,null,null,null,null,null,null,null,null,null,null,null,null,null,null,1,1]
[null,null,"V položce jsou započteny náklady na přísun, montáž, demontáž a odsun zkoušecího čerpadla, napuštění tlakovou vodou a dodání vody pro tlakovou zkoušku.",null,null,null,null,null,null,null,null,"V položce jsou započteny náklady na přísun, montáž, demontáž a odsun zkoušecího čerpadla, napuštění tlakovou vodou a dodání vody pro tlakovou zkoušku.",null,null,3]
[null,null,"Vodovod - Řad 1 PE D 110x10,0 mm:",null,0,null,null,null,null,null,null,null,"Vodovod - Řad 1 PE D 110x10,0 mm:"]
[null,null,"VP pro čp. 60 PE D 32x3,0 mm:7,00",null,7,null,null,null,null,null,null,null,"VP pro čp. 60 PE D 32x3,0 mm:7,00"]
[66,"892271111R00","Tlaková zkouška vodovodního potrubí DN 125 včetně zajištění konců potrubí","m",120,null,{"$f":"E393*F393","v":0},0,{"$f":"E393*H393","v":0},0,{"$f":"E393*J393","v":0},null,null,null,2,null,null,null,null,null,null,null,null,null,null,null,1,1,1,null,null,null,null,null,null,null,null,null,null,null,null,null,null,null,null,null,null,null,null,null,null,1,{"$f":"IF(AZ393=1,G393,0)","v":0},{"$f":"IF(AZ393=2,G393,0)","v":0},{"$f":"IF(AZ393=3,G393,0)","v":0},{"$f":"IF(AZ393=4,G393,0)","v":0},{"$f":"IF(AZ393=5,G393,0)","v":0},null,null,null,null,null,null,null,null,null,null,null,null,null,null,null,null,null,null,null,null,null,1,1]
[null,null,"V položce jsou započteny náklady na přísun, montáž, demontáž a odsun zkoušecího čerpadla, napuštění tlakovou vodou a dodání vody pro tlakovou zkoušku.",null,null,null,null,null,null,null,null,"V položce jsou započteny náklady na přísun, montáž, demontáž a odsun zkoušecího čerpadla, napuštění tlakovou vodou a dodání vody pro tlakovou zkoušku.",null,null,3]
[null,null,"Vodovod - Řad 1 PE D 110x10,0 mm km 0,000.0 - 0,120.0:120,00",null,120,null,null,null,null,null,null,null,"Vodovod - Řad 1 PE D 110x10,0 mm km 0,000.0 - 0,120.0:120,00"]
[67,"892273111R00","Desinfekce vodovodního potrubí DN 125 ","m",120,null,{"$f":"E396*F396","v":0},0,{"$f":"E396*H396","v":0},0,{"$f":"E396*J396","v":0},null,null,null,2,null,null,null,null,null,null,null,null,null,null,null,1,1,1,null,null,null,null,null,null,null,null,null,null,null,null,null,null,null,null,null,null,null,null,null,null,1,{"$f":"IF(AZ396=1,G396,0)","v":0},{"$f":"IF(AZ396=2,G396,0)","v":0},{"$f":"IF(AZ396=3,G396,0)","v":0},{"$f":"IF(AZ396=4,G396,0)","v":0},{"$f":"IF(AZ396=5,G396,0)","v":0},null,null,null,null,null,null,null,null,null,null,null,null,null,null,null,null,null,null,null,null,null,1,1]
[null,null,"V položce jsou zakalkulovány náklady na napuštění a vypuštění vody, dodání vody a desinfekčního prostředku a na bakteriologický rozbor vody.",null,null,null,null,null,null,null,null,"V položce jsou zakalkulovány náklady na napuštění a vypuštění vody, dodání vody a desinfekčního prostředku a na bakteriologický rozbor vody.",null,null,3]
[null,null,"Vodovod - Řad 1 PE D 110x10,0 mm km 0,000.0 - 0,120.0:120,00",null,120,null,null,null,null,null,null,null,"Vodovod - Řad 1 PE D 110x10,0 mm km 0,000.0 - 0,120.0:120,00"]
[68,"899401111R00","Osazení poklopů litinových ventilových ","kus",1,null,{"$f":"E399*F399","v":0},6.3829999999999998E-2,{"$f":"E399*H399","v":6.3829999999999998E-2},0,{"$f":"E399*J399","v":0},null,null,null,2,null,null,null,null,null,null,null,null,null,null,null,1,1,1,null,null,null,null,null,null,null,null,null,null,null,null,null,null,null,null,null,null,null,null,null,null,1,{"$f":"IF(AZ399=1,G399,0)","v":0},{"$f":"IF(AZ399=2,G399,0)","v":0},{"$f":"IF(AZ399=3,G399,0)","v":0},{"$f":"IF(AZ399=4,G399,0)","v":0},{"$f":"IF(AZ399=5,G399,0)","v":0},null,null,null,null,null,null,null,null,null,null,null,null,null,null,null,null,null,null,null,null,null,1,1]
[null,null,"Vodovod - Řad 1 PE D 110x10,0 mm:",null,0,null,null,null,null,null,null,null,"Vodovod - Řad 1 PE D 110x10,0 mm:"]
[null,null,"VP pro čp. 60 PE D 32x3,0 mm:",null,0,null,null,null,null,null,null,null,"VP pro čp. 60 PE D 32x3,0 mm:"]
[null,null,"Pro DAV D 110/32:1",null,1,null,null,null,null,null,null,null,"Pro DAV D 110/32:1"]
[69,"899401112R00","Osazení poklopů litinových šoupátkových ","kus",8,null,{"$f":"E403*F403","v":0},0.11178,{"$f":"E403*H403","v":0.89424000000000003},0,{"$f":"E403*J403","v":0},null,null,null,2,null,null,null,null,null,null,null,null,null,null,null,1,0,0,null,null,null,null,null,null,null,null,null,null,null,null,null,null,null,null,null,null,null,null,null,null,1,{"$f":"IF(AZ403=1,G403,0)","v":0},{"$f":"IF(AZ403=2,G403,0)","v":0},{"$f":"IF(AZ403=3,G403,0)","v":0},{"$f":"IF(AZ403=4,G403,0)","v":0},{"$f":"IF(AZ403=5,G403,0)","v":0},null,null,null,null,null,null,null,null,null,null,null,null,null,null,null,null,null,null,null,null,null,1,0]
[null,null,"V položkách osazení poklopů jsou zakalkulovány i náklady na jejich podezdění. ",null,null,null,null,null,null,null,null,"V položkách osazení poklopů jsou zakalkulovány i náklady na jejich podezdění. ",null,null,3]
[null,null,"Vodovod - Řad 1 PE D 110x10,0 mm:",null,0,null,null,null,null,null,null,null,"Vodovod - Řad 1 PE D 110x10,0 mm:"]
[null,null,"Pro Šoupě DN50:1",null,1,null,null,null,null,null,null,null,"Pro Šoupě DN50:1"]
[null,null,"Pro Šoupě DN80:1",null,1,null,null,null,null,null,null,null,"Pro Šoupě DN80:1"]
[null,null,"Pro Šoupě DN100:6",null,6,null,null,null,null,null,null,null,"Pro Šoupě DN100:6"]
[70,"899401113R00","Osazení poklopů litinových hydrantových ","kus",1,null,{"$f":"E409*F409","v":0},0.29823,{"$f":"E409*H409","v":0.29823},0,{"$f":"E409*J409","v":0},null,null,null,2,null,null,null,null,null,null,null,null,null,null,null,1,1,1,null,null,null,null,null,null,null,null,null,null,null,null,null,null,null,null,null,null,null,null,null,null,1,{"$f":"IF(AZ409=1,G409,0)","v":0},{"$f":"IF(AZ409=2,G409,0)","v":0},{"$f":"IF(AZ409=3,G409,0)","v":0},{"$f":"IF(AZ409=4,G409,0)","v":0},{"$f":"IF(AZ409=5,G409,0)","v":0},null,null,null,null,null,null,null,null,null,null,null,null,null,null,null,null,null,null,null,null,null,1,1]
[null,null,"V položkách osazení poklopů jsou zakalkulovány i náklady na jejich podezdění. ",null,null,null,null,null,null,null,null,"V položkách osazení poklopů jsou zakalkulovány i náklady na jejich podezdění. ",null,null,3]
[null,null,"Vodovod - Řad 1 PE D 110x10,0 mm:",null,0,null,null,null,null,null,null,null,"Vodovod - Řad 1 PE D 110x10,0 mm:"]
[null,null,"Pro Hp DN80/1,5:1",null,1,null,null,null,null,null,null,null,"Pro Hp DN80/1,5:1"]
[71,"899713111RRX","Orientační tabulky na sloupku ocelovém, betonovém ","kus",10,null,{"$f":"E413*F413","v":0},2.4000000000000001E-4,{"$f":"E413*H413","v":2.4000000000000002E-3},0,{"$f":"E413*J413","v":0},null,null,null,2,null,null,null,null,null,null,null,null,null,null,null,1,1,1,null,null,null,null,null,null,null,null,null,null,null,null,null,null,null,null,null,null,null,null,null,null,1,{"$f":"IF(AZ413=1,G413,0)","v":0},{"$f":"IF(AZ413=2,G413,0)","v":0},{"$f":"IF(AZ413=3,G413,0)","v":0},{"$f":"IF(AZ413=4,G413,0)","v":0},{"$f":"IF(AZ413=5,G413,0)","v":0},null,null,null,null,null,null,null,null,null,null,null,null,null,null,null,null,null,null,null,null,null,1,1]
[null,null,"Položka platí pro orientační tabulky na vodovodních a kanalizačních řadech. V položce jsou zakalkulovány náklady na dodání a připevnění tabulky a na osazení sloupku. V položce jsou zakalkulovány náklady na zemní práce a na dodání sloupků (betonových nebo ocelových s betonovými patkami)",null,null,null,null,null,null,null,null,"Položka platí pro orientační tabulky na vodovodních a kanalizačních řadech. V položce jsou zakalkulovány náklady na dodání a připevnění tabulky a na osazení sloupku. V položce jsou zakalkulovány náklady na zemní práce a na dodání sloupků (betonových nebo ocelových s betonovými patkami)",null,null,3]
[null,null,"Vodovod - Řad 1 PE D 110x10,0 mm:",null,0,null,null,null,null,null,null,null,"Vodovod - Řad 1 PE D 110x10,0 mm:"]
[null,null,"Pro Šoupě DN50:1",null,1,null,null,null,null,null,null,null,"Pro Šoupě DN50:1"]
[null,null,"Pro Šoupě DN80:1",null,1,null,null,null,null,null,null,null,"Pro Šoupě DN80:1"]
[null,null,"Pro Šoupě DN100:6",null,6,null,null,null,null,null,null,null,"Pro Šoupě DN100:6"]
[null,null,"Pro Hp DN80/1,5:1",null,1,null,null,null,null,null,null,null,"Pro Hp DN80/1,5:1"]
[null,null,"VP pro čp. 60 PE D 32x3,0 mm:",null,0,null,null,null,null,null,null,null,"VP pro čp. 60 PE D 32x3,0 mm:"]
[null,null,"Pro DAV D 110/32:1",null,1,null,null,null,null,null,null,null,"Pro DAV D 110/32:1"]
[72,"899721112R00","Fólie výstražná z PVC bílá, šířka 30 cm ","m",111,null,{"$f":"E422*F422","v":0},0,{"$f":"E422*H422","v":0},0,{"$f":"E422*J422","v":0},null,null,null,2,null,null,null,null,null,null,null,null,null,null,null,1,1,1,null,null,null,null,null,null,null,null,null,null,null,null,null,null,null,null,null,null,null,null,null,null,1,{"$f":"IF(AZ422=1,G422,0)","v":0},{"$f":"IF(AZ422=2,G422,0)","v":0},{"$f":"IF(AZ422=3,G422,0)","v":0},{"$f":"IF(AZ422=4,G422,0)","v":0},{"$f":"IF(AZ422=5,G422,0)","v":0},null,null,null,null,null,null,null,null,null,null,null,null,null,null,null,null,null,null,null,null,null,1,1]
[null,null,"Vodovod - Řad 1 PE D 110x10,0 mm km 0,000.0 - 0,120.0:120,00-6,00-13,00",null,101,null,null,null,null,null,null,null,"Vodovod - Řad 1 PE D 110x10,0 mm km 0,000.0 - 0,120.0:120,00-6,00-13,00"]
[null,null,"VP pro čp. 60 PE D 32x3,0 mm:7,00",null,7,null,null,null,null,null,null,null,"VP pro čp. 60 PE D 32x3,0 mm:7,00"]
[null,null,"Propoj na TLT DN80 po zrušení AŠ:3,00",null,3,null,null,null,null,null,null,null,"Propoj na TLT DN80 po zrušení AŠ:3,00"]
[73,"899731114R00","Vodič signalizační CYY 6 mm2 ","m",168,null,{"$f":"E426*F426","v":0},8.0000000000000007E-5,{"$f":"E426*H426","v":1.3440000000000001E-2},0,{"$f":"E426*J426","v":0},null,null,null,2,null,null,null,null,null,null,null,null,null,null,null,1,1,1,null,null,null,null,null,null,null,null,null,null,null,null,null,null,null,null,null,null,null,null,null,null,1,{"$f":"IF(AZ426=1,G426,0)","v":0},{"$f":"IF(AZ426=2,G426,0)","v":0},{"$f":"IF(AZ426=3,G426,0)","v":0},{"$f":"IF(AZ426=4,G426,0)","v":0},{"$f":"IF(AZ426=5,G426,0)","v":0},null,null,null,null,null,null,null,null,null,null,null,null,null,null,null,null,null,null,null,null,null,1,1]
[null,null,"Součástí položky je zajištění proměření vodiče a výchozí zevize.",null,null,null,null,null,null,null,null,"Součástí položky je zajištění proměření vodiče a výchozí zevize.",null,null,3]
[null,null,"Vodovod - Řad 1 PE D 110x10,0 mm km 0,000.0 - 0,120.0:120,00",null,120,null,null,null,null,null,null,null,"Vodovod - Řad 1 PE D 110x10,0 mm km 0,000.0 - 0,120.0:120,00"]
[null,null,"VP pro čp. 60 PE D 32x3,0 mm:7,00",null,7,null,null,null,null,null,null,null,"VP pro čp. 60 PE D 32x3,0 mm:7,00"]
[null,null,"Propoj na TLT DN80 po zrušení AŠ:3,00",null,3,null,null,null,null,null,null,null,"Propoj na TLT DN80 po zrušení AŠ:3,00"]
[null,null,"Vyvedení:",null,0,null,null,null,null,null,null,null,"Vyvedení:"]
[null,null,"Pro Šoupě DN50:2,00*2*1",null,4,null,null,null,null,null,null,null,"Pro Šoupě DN50:2,00*2*1"]
[null,null,"Pro Šoupě DN80:2,00*2*1",null,4,null,null,null,null,null,null,null,"Pro Šoupě DN80:2,00*2*1"]
[null,null,"Pro Šoupě DN100:2,00*2*6",null,24,null,null,null,null,null,null,null,"Pro Šoupě DN100:2,00*2*6"]
[null,null,"Pro Hp DN80/1,5:2,00*1*1",null,2,null,null,null,null,null,null,null,"Pro Hp DN80/1,5:2,00*1*1"]
[null,null,"VP pro čp. 60 PE D 32x3,0 mm:",null,0,null,null,null,null,null,null,null,"VP pro čp. 60 PE D 32x3,0 mm:"]
[null,null,"Pro DAV D 110/32:2,00*2*1",null,4,null,null,null,null,null,null,null,"Pro DAV D 110/32:2,00*2*1"]
[74,"28613068.DAV.R","Navrtávací odbočkový ventil DAV D110/32 s prodlouženým hrdlem","kus",1,null,{"$f":"E438*F438","v":0},0,{"$f":"E438*H438","v":0},null,{"$f":"E438*J438","v":0},null,null,null,2,null,null,null,null,null,null,null,null,null,null,null,3,1,"28613068.DAV.R",null,null,null,null,null,null,null,null,null,null,null,null,null,null,null,null,null,null,null,null,null,null,1,{"$f":"IF(AZ438=1,G438,0)","v":0},{"$f":"IF(AZ438=2,G438,0)","v":0},{"$f":"IF(AZ438=3,G438,0)","v":0},{"$f":"IF(AZ438=4,G438,0)","v":0},{"$f":"IF(AZ438=5,G438,0)","v":0},null,null,null,null,null,null,null,null,null,null,null,null,null,null,null,null,null,null,null,null,null,3,1]
[null,null,"Vodovod - Řad 1 PE D 110x10,0 mm:",null,0,null,null,null,null,null,null,null,"Vodovod - Řad 1 PE D 110x10,0 mm:"]
[null,null,"VP pro čp. 60 PE D 32x3,0 mm:",null,0,null,null,null,null,null,null,null,"VP pro čp. 60 PE D 32x3,0 mm:"]
[null,null,"DAV D 110/32:1",null,1,null,null,null,null,null,null,null,"DAV D 110/32:1"]
[75,"28613090.EBS.R","Zemní souprava teleskopická EBS 1,1-1,8 pro DAV","kus",1,null,{"$f":"E442*F442","v":0},0,{"$f":"E442*H442","v":0},null,{"$f":"E442*J442","v":0},null,null,null,2,null,null,null,null,null,null,null,null,null,null,null,3,1,"28613090.EBS.R",null,null,null,null,null,null,null,null,null,null,null,null,null,null,null,null,null,null,null,null,null,null,1,{"$f":"IF(AZ442=1,G442,0)","v":0},{"$f":"IF(AZ442=2,G442,0)","v":0},{"$f":"IF(AZ442=3,G442,0)","v":0},{"$f":"IF(AZ442=4,G442,0)","v":0},{"$f":"IF(AZ442=5,G442,0)","v":0},null,null,null,null,null,null,null,null,null,null,null,null,null,null,null,null,null,null,null,null,null,3,1]
[null,null,"Vodovod - Řad 1 PE D 110x10,0 mm:",null,0,null,null,null,null,null,null,null,"Vodovod - Řad 1 PE D 110x10,0 mm:"]
[null,null,"VP pro čp. 60 PE D 32x3,0 mm:",null,0,null,null,null,null,null,null,null,"VP pro čp. 60 PE D 32x3,0 mm:"]
[null,null,"Pro DAV D 110/32:1",null,1,null,null,null,null,null,null,null,"Pro DAV D 110/32:1"]
[76,"286134112.R","Trubka tlaková AQUALINE RC2 PE100 D32x3,0 mm PN16 návin","m",7.1050000000000004,null,{"$f":"E446*F446","v":0},2.7E-4,{"$f":"E446*H446","v":1.9183500000000001E-3},null,{"$f":"E446*J446","v":0},null,null,null,2,null,null,null,null,null,null,null,null,null,null,null,3,1,"286134112.R",null,null,null,null,null,null,null,null,null,null,null,null,null,null,null,null,null,null,null,null,null,null,1,{"$f":"IF(AZ446=1,G446,0)","v":0},{"$f":"IF(AZ446=2,G446,0)","v":0},{"$f":"IF(AZ446=3,G446,0)","v":0},{"$f":"IF(AZ446=4,G446,0)","v":0},{"$f":"IF(AZ446=5,G446,0)","v":0},null,null,null,null,null,null,null,null,null,null,null,null,null,null,null,null,null,null,null,null,null,3,1]
[null,null,"Vodovodní PE tlaková trubka AQUALINE RC2 dle normy EN 12 201-2",null,null,null,null,null,null,null,null,"Vodovodní PE tlaková trubka AQUALINE RC2 dle normy EN 12 201-2",null,null,3]
[null,null,"(doprava pitné a užitkové vody)",null,null,null,null,null,null,null,null,"(doprava pitné a užitkové vody)",null,null,3]
[null,null,"Dvouvrstvá - vnější vrstva PE 100RC modrá (10 % tloušťky)",null,null,null,null,null,null,null,null,"Dvouvrstvá - vnější vrstva PE 100RC modrá (10 % tloušťky)",null,null,3]
[null,null,"                       vnitřní vrstva PE 100RC černá (90 % tloušťky)",null,null,null,null,null,null,null,null,"                       vnitřní vrstva PE 100RC černá (90 % tloušťky)",null,null,3]
[null,null,"Lepší detekce poškození oproti typu RC1",null,null,null,null,null,null,null,null,"Lepší detekce poškození oproti typu RC1",null,null,3]
[null,null,"Vodovod - Řad 1 PE D 110x10,0 mm:",null,0,null,null,null,null,null,null,null,"Vodovod - Řad 1 PE D 110x10,0 mm:"]
[null,null,"VP pro čp. 60 PE D 32x3,0 mm:7,00*1,015",null,7.1050000000000004,null,null,null,null,null,null,null,"VP pro čp. 60 PE D 32x3,0 mm:7,00*1,015"]
[77,"286134217.R","Trubka tlaková AQUALINE RC2 PE100 110x10 mm PN16 tyče L=12 m","m",121.8,null,{"$f":"E454*F454","v":0},3.14E-3,{"$f":"E454*H454","v":0.38245200000000001},null,{"$f":"E454*J454","v":0},null,null,null,2,null,null,null,null,null,null,null,null,null,null,null,3,1,"286134217.R",null,null,null,null,null,null,null,null,null,null,null,null,null,null,null,null,null,null,null,null,null,null,1,{"$f":"IF(AZ454=1,G454,0)","v":0},{"$f":"IF(AZ454=2,G454,0)","v":0},{"$f":"IF(AZ454=3,G454,0)","v":0},{"$f":"IF(AZ454=4,G454,0)","v":0},{"$f":"IF(AZ454=5,G454,0)","v":0},null,null,null,null,null,null,null,null,null,null,null,null,null,null,null,null,null,null,null,null,null,3,1]
[null,null,"Vodovodní PE tlaková trubka AQUALINE RC2 dle normy EN 12 201-2",null,null,null,null,null,null,null,null,"Vodovodní PE tlaková trubka AQUALINE RC2 dle normy EN 12 201-2",null,null,3]
[null,null,"(doprava pitné a užitkové vody)",null,null,null,null,null,null,null,null,"(doprava pitné a užitkové vody)",null,null,3]
[null,null,"Dvouvrstvá - vnější vrstva PE 100RC modrá (10 % tloušťky)",null,null,null,null,null,null,null,null,"Dvouvrstvá - vnější vrstva PE 100RC modrá (10 % tloušťky)",null,null,3]
[null,null,"                       vnitřní vrstva PE 100RC černá (90 % tloušťky)",null,null,null,null,null,null,null,null,"                       vnitřní vrstva PE 100RC černá (90 % tloušťky)",null,null,3]
[null,null,"Lepší detekce poškození oproti typu RC1",null,null,null,null,null,null,null,null,"Lepší detekce poškození oproti typu RC1",null,null,3]
[null,null,"Vodovod - Řad 1 PE D 110x10,0 mm km 0,000.0 - 0,120.0:120,00*1,015",null,121.8,null,null,null,null,null,null,null,"Vodovod - Řad 1 PE D 110x10,0 mm km 0,000.0 - 0,120.0:120,00*1,015"]
[78,"28653075.05.R","MB Elektrospojka d 32 mm PE 100 SDR11","kus",1.0149999999999999,null,{"$f":"E461*F461","v":0},1.2999999999999999E-3,{"$f":"E461*H461","v":1.3194999999999997E-3},null,{"$f":"E461*J461","v":0},null,null,null,2,null,null,null,null,null,null,null,null,null,null,null,3,1,"28653075.05.R",null,null,null,null,null,null,null,null,null,null,null,null,null,null,null,null,null,null,null,null,null,null,1,{"$f":"IF(AZ461=1,G461,0)","v":0},{"$f":"IF(AZ461=2,G461,0)","v":0},{"$f":"IF(AZ461=3,G461,0)","v":0},{"$f":"IF(AZ461=4,G461,0)","v":0},{"$f":"IF(AZ461=5,G461,0)","v":0},null,null,null,null,null,null,null,null,null,null,null,null,null,null,null,null,null,null,null,null,null,3,1]
[null,null,"Vodovod - Řad 1 PE D 110x10,0 mm:",null,0,null,null,null,null,null,null,null,"Vodovod - Řad 1 PE D 110x10,0 mm:"]
[null,null,"VP pro čp. 60 PE D 32x3,0 mm:",null,0,null,null,null,null,null,null,null,"VP pro čp. 60 PE D 32x3,0 mm:"]
[null,null,"MB Elektrospojka D 32:1*1,015",null,1.0149999999999999,null,null,null,null,null,null,null,"MB Elektrospojka D 32:1*1,015"]
[79,"28653080.10.R","MB Elektrospojka d 90 mm PE 100 SDR11","kus",1.0149999999999999,null,{"$f":"E465*F465","v":0},1.2999999999999999E-3,{"$f":"E465*H465","v":1.3194999999999997E-3},null,{"$f":"E465*J465","v":0},null,null,null,2,null,null,null,null,null,null,null,null,null,null,null,3,1,"28653080.10.R",null,null,null,null,null,null,null,null,null,null,null,null,null,null,null,null,null,null,null,null,null,null,1,{"$f":"IF(AZ465=1,G465,0)","v":0},{"$f":"IF(AZ465=2,G465,0)","v":0},{"$f":"IF(AZ465=3,G465,0)","v":0},{"$f":"IF(AZ465=4,G465,0)","v":0},{"$f":"IF(AZ465=5,G465,0)","v":0},null,null,null,null,null,null,null,null,null,null,null,null,null,null,null,null,null,null,null,null,null,3,1]
[null,null,"Vodovod - Řad 1 PE D 110x10,0 mm:",null,0,null,null,null,null,null,null,null,"Vodovod - Řad 1 PE D 110x10,0 mm:"]
[null,null,"MB Elektrospojka D 90:1*1,015",null,1.0149999999999999,null,null,null,null,null,null,null,"MB Elektrospojka D 90:1*1,015"]
[80,"28653081.10.R","MB Elektrospojka d 110 mm PE 100 SDR11","kus",25.375,null,{"$f":"E468*F468","v":0},1.2999999999999999E-3,{"$f":"E468*H468","v":3.2987499999999996E-2},null,{"$f":"E468*J468","v":0},null,null,null,2,null,null,null,null,null,null,null,null,null,null,null,3,1,"28653081.10.R",null,null,null,null,null,null,null,null,null,null,null,null,null,null,null,null,null,null,null,null,null,null,1,{"$f":"IF(AZ468=1,G468,0)","v":0},{"$f":"IF(AZ468=2,G468,0)","v":0},{"$f":"IF(AZ468=3,G468,0)","v":0},{"$f":"IF(AZ468=4,G468,0)","v":0},{"$f":"IF(AZ468=5,G468,0)","v":0},null,null,null,null,null,null,null,null,null,null,null,null,null,null,null,null,null,null,null,null,null,3,1]
[null,null,"Vodovod - Řad 1 PE D 110x10,0 mm:",null,0,null,null,null,null,null,null,null,"Vodovod - Řad 1 PE D 110x10,0 mm:"]
[null,null,"MB Elektrospojka D 110:25*1,015",null,25.375,null,null,null,null,null,null,null,"MB Elektrospojka D 110:25*1,015"]
[81,"28653764.R","LN s prodlouženou přírubou D90/DN80 PE100 SDR11 PN16","kus",1.0149999999999999,null,{"$f":"E471*F471","v":0},3.5E-4,{"$f":"E471*H471","v":3.5524999999999999E-4},null,{"$f":"E471*J471","v":0},null,null,null,2,null,null,null,null,null,null,null,null,null,null,null,3,1,"28653764.R",null,null,null,null,null,null,null,null,null,null,null,null,null,null,null,null,null,null,null,null,null,null,1,{"$f":"IF(AZ471=1,G471,0)","v":0},{"$f":"IF(AZ471=2,G471,0)","v":0},{"$f":"IF(AZ471=3,G471,0)","v":0},{"$f":"IF(AZ471=4,G471,0)","v":0},{"$f":"IF(AZ471=5,G471,0)","v":0},null,null,null,null,null,null,null,null,null,null,null,null,null,null,null,null,null,null,null,null,null,3,1]
[null,null,"Vodovod - Řad 1 PE D 110x10,0 mm:",null,0,null,null,null,null,null,null,null,"Vodovod - Řad 1 PE D 110x10,0 mm:"]
[null,null,"LN + TP D90/DN80:1*1,015",null,1.0149999999999999,null,null,null,null,null,null,null,"LN + TP D90/DN80:1*1,015"]
[82,"28653765.R","LN s prodlouženou přírubou D110/DN100 PE100 SDR11 PN16","kus",5.0750000000000002,null,{"$f":"E474*F474","v":0},3.5E-4,{"$f":"E474*H474","v":1.7762500000000001E-3},null,{"$f":"E474*J474","v":0},null,null,null,2,null,null,null,null,null,null,null,null,null,null,null,3,1,"28653765.R",null,null,null,null,null,null,null,null,null,null,null,null,null,null,null,null,null,null,null,null,null,null,1,{"$f":"IF(AZ474=1,G474,0)","v":0},{"$f":"IF(AZ474=2,G474,0)","v":0},{"$f":"IF(AZ474=3,G474,0)","v":0},{"$f":"IF(AZ474=4,G474,0)","v":0},{"$f":"IF(AZ474=5,G474,0)","v":0},null,null,null,null,null,null,null,null,null,null,null,null,null,null,null,null,null,null,null,null,null,3,1]
[null,null,"Vodovod - Řad 1 PE D 110x10,0 mm:",null,0,null,null,null,null,null,null,null,"Vodovod - Řad 1 PE D 110x10,0 mm:"]
[null,null,"LN + TP D110/DN100:5*1,015",null,5.0750000000000002,null,null,null,null,null,null,null,"LN + TP D110/DN100:5*1,015"]
[83,"28654075.05.R","W45 Koleno 45° D 110","kus",4.0599999999999996,null,{"$f":"E477*F477","v":0},1.2999999999999999E-3,{"$f":"E477*H477","v":5.2779999999999988E-3},null,{"$f":"E477*J477","v":0},null,null,null,2,null,null,null,null,null,null,null,null,null,null,null,3,1,"28654075.05.R",null,null,null,null,null,null,null,null,null,null,null,null,null,null,null,null,null,null,null,null,null,null,1,{"$f":"IF(AZ477=1,G477,0)","v":0},{"$f":"IF(AZ477=2,G477,0)","v":0},{"$f":"IF(AZ477=3,G477,0)","v":0},{"$f":"IF(AZ477=4,G477,0)","v":0},{"$f":"IF(AZ477=5,G477,0)","v":0},null,null,null,null,null,null,null,null,null,null,null,null,null,null,null,null,null,null,null,null,null,3,1]
[null,null,"Vodovod - Řad 1 PE D 110x10,0 mm:",null,0,null,null,null,null,null,null,null,"Vodovod - Řad 1 PE D 110x10,0 mm:"]
[null,null,"W45 Koleno 45° D 110:4*1,015",null,4.0599999999999996,null,null,null,null,null,null,null,"W45 Koleno 45° D 110:4*1,015"]
[84,"28654076.05.R","W30 Koleno 30° D 110","kus",6.09,null,{"$f":"E480*F480","v":0},1.2999999999999999E-3,{"$f":"E480*H480","v":7.9169999999999987E-3},null,{"$f":"E480*J480","v":0},null,null,null,2,null,null,null,null,null,null,null,null,null,null,null,3,1,"28654076.05.R",null,null,null,null,null,null,null,null,null,null,null,null,null,null,null,null,null,null,null,null,null,null,1,{"$f":"IF(AZ480=1,G480,0)","v":0},{"$f":"IF(AZ480=2,G480,0)","v":0},{"$f":"IF(AZ480=3,G480,0)","v":0},{"$f":"IF(AZ480=4,G480,0)","v":0},{"$f":"IF(AZ480=5,G480,0)","v":0},null,null,null,null,null,null,null,null,null,null,null,null,null,null,null,null,null,null,null,null,null,3,1]
[null,null,"Vodovod - Řad 1 PE D 110x10,0 mm:",null,0,null,null,null,null,null,null,null,"Vodovod - Řad 1 PE D 110x10,0 mm:"]
[null,null,"W30 Koleno 30° D 110:6*1,015",null,6.09,null,null,null,null,null,null,null,"W30 Koleno 30° D 110:6*1,015"]
[85,"28654085.05.R","WS11 Koleno 11° D 110","kus",4.0599999999999996,null,{"$f":"E483*F483","v":0},1.2999999999999999E-3,{"$f":"E483*H483","v":5.2779999999999988E-3},null,{"$f":"E483*J483","v":0},null,null,null,2,null,null,null,null,null,null,null,null,null,null,null,3,1,"28654085.05.R",null,null,null,null,null,null,null,null,null,null,null,null,null,null,null,null,null,null,null,null,null,null,1,{"$f":"IF(AZ483=1,G483,0)","v":0},{"$f":"IF(AZ483=2,G483,0)","v":0},{"$f":"IF(AZ483=3,G483,0)","v":0},{"$f":"IF(AZ483=4,G483,0)","v":0},{"$f":"IF(AZ483=5,G483,0)","v":0},null,null,null,null,null,null,null,null,null,null,null,null,null,null,null,null,null,null,null,null,null,3,1]
[null,null,"Vodovod - Řad 1 PE D 110x10,0 mm:",null,0,null,null,null,null,null,null,null,"Vodovod - Řad 1 PE D 110x10,0 mm:"]
[null,null,"WS11 Koleno 11° D 110:4*1,015",null,4.0599999999999996,null,null,null,null,null,null,null,"WS11 Koleno 11° D 110:4*1,015"]
[86,"42200750.26.R","Třmen č. 0750 M95-104 dl. 200","kus",1,null,{"$f":"E486*F486","v":0},1.1299999999999999E-2,{"$f":"E486*H486","v":1.1299999999999999E-2},null,{"$f":"E486*J486","v":0},null,null,null,2,null,null,null,null,null,null,null,null,null,null,null,3,1,"42200750.26.R",null,null,null,null,null,null,null,null,null,null,null,null,null,null,null,null,null,null,null,null,null,null,1,{"$f":"IF(AZ486=1,G486,0)","v":0},{"$f":"IF(AZ486=2,G486,0)","v":0},{"$f":"IF(AZ486=3,G486,0)","v":0},{"$f":"IF(AZ486=4,G486,0)","v":0},{"$f":"IF(AZ486=5,G486,0)","v":0},null,null,null,null,null,null,null,null,null,null,null,null,null,null,null,null,null,null,null,null,null,3,1]
[null,null,"Vodovod - Řad 1 PE D 110x10,0 mm:",null,0,null,null,null,null,null,null,null,"Vodovod - Řad 1 PE D 110x10,0 mm:"]
[null,null,"Po odpojení VP pro čp. 60:",null,0,null,null,null,null,null,null,null,"Po odpojení VP pro čp. 60:"]
[null,null,"Třměn č. 0750 M95-104:1",null,1,null,null,null,null,null,null,null,"Třměn č. 0750 M95-104:1"]
[87,"42201650.R","Poklop uliční ventilový 1650  - voda","kus",1,null,{"$f":"E490*F490","v":0},1.1299999999999999E-2,{"$f":"E490*H490","v":1.1299999999999999E-2},null,{"$f":"E490*J490","v":0},null,null,null,2,null,null,null,null,null,null,null,null,null,null,null,3,1,"42201650.R",null,null,null,null,null,null,null,null,null,null,null,null,null,null,null,null,null,null,null,null,null,null,1,{"$f":"IF(AZ490=1,G490,0)","v":0},{"$f":"IF(AZ490=2,G490,0)","v":0},{"$f":"IF(AZ490=3,G490,0)","v":0},{"$f":"IF(AZ490=4,G490,0)","v":0},{"$f":"IF(AZ490=5,G490,0)","v":0},null,null,null,null,null,null,null,null,null,null,null,null,null,null,null,null,null,null,null,null,null,3,1]
[null,null,"Vodovod - Řad 1 PE D 110x10,0 mm:",null,0,null,null,null,null,null,null,null,"Vodovod - Řad 1 PE D 110x10,0 mm:"]
[null,null,"VP pro čp. 60 PE D 32x3,0 mm:",null,0,null,null,null,null,null,null,null,"VP pro čp. 60 PE D 32x3,0 mm:"]
[null,null,"Pro DAV D 110/32:1",null,1,null,null,null,null,null,null,null,"Pro DAV D 110/32:1"]
[88,"42201750.R","Poklop uliční šoupátkový 1750  - voda","kus",8,null,{"$f":"E494*F494","v":0},1.1299999999999999E-2,{"$f":"E494*H494","v":9.0399999999999994E-2},null,{"$f":"E494*J494","v":0},null,null,null,2,null,null,null,null,null,null,null,null,null,null,null,3,1,"42201750.R",null,null,null,null,null,null,null,null,null,null,null,null,null,null,null,null,null,null,null,null,null,null,1,{"$f":"IF(AZ494=1,G494,0)","v":0},{"$f":"IF(AZ494=2,G494,0)","v":0},{"$f":"IF(AZ494=3,G494,0)","v":0},{"$f":"IF(AZ494=4,G494,0)","v":0},{"$f":"IF(AZ494=5,G494,0)","v":0},null,null,null,null,null,null,null,null,null,null,null,null,null,null,null,null,null,null,null,null,null,3,1]
[null,null,"Vodovod - Řad 1 PE D 110x10,0 mm:",null,0,null,null,null,null,null,null,null,"Vodovod - Řad 1 PE D 110x10,0 mm:"]
[null,null,"Pro Šoupě DN50:1",null,1,null,null,null,null,null,null,null,"Pro Šoupě DN50:1"]
[null,null,"Pro Šoupě DN80:1",null,1,null,null,null,null,null,null,null,"Pro Šoupě DN80:1"]
[null,null,"Pro Šoupě DN100:6",null,6,null,null,null,null,null,null,null,"Pro Šoupě DN100:6"]
[89,"42201950.R","Poklop podz. hydrantů č.1950","kus",1,null,{"$f":"E499*F499","v":0},1.1299999999999999E-2,{"$f":"E499*H499","v":1.1299999999999999E-2},null,{"$f":"E499*J499","v":0},null,null,null,2,null,null,null,null,null,null,null,null,null,null,null,3,1,"42201950.R",null,null,null,null,null,null,null,null,null,null,null,null,null,null,null,null,null,null,null,null,null,null,1,{"$f":"IF(AZ499=1,G499,0)","v":0},{"$f":"IF(AZ499=2,G499,0)","v":0},{"$f":"IF(AZ499=3,G499,0)","v":0},{"$f":"IF(AZ499=4,G499,0)","v":0},{"$f":"IF(AZ499=5,G499,0)","v":0},null,null,null,null,null,null,null,null,null,null,null,null,null,null,null,null,null,null,null,null,null,3,1]
[null,null,"Vodovod - Řad 1 PE D 110x10,0 mm:",null,0,null,null,null,null,null,null,null,"Vodovod - Řad 1 PE D 110x10,0 mm:"]
[null,null,"Pro Hp DN80/1,5:1",null,1,null,null,null,null,null,null,null,"Pro Hp DN80/1,5:1"]
[90,"42203481.R","Podkladová deska č. 3481","kus",9,null,{"$f":"E502*F502","v":0},5.9999999999999995E-4,{"$f":"E502*H502","v":5.3999999999999994E-3},null,{"$f":"E502*J502","v":0},null,null,null,2,null,null,null,null,null,null,null,null,null,null,null,3,1,"42203481.R",null,null,null,null,null,null,null,null,null,null,null,null,null,null,null,null,null,null,null,null,null,null,1,{"$f":"IF(AZ502=1,G502,0)","v":0},{"$f":"IF(AZ502=2,G502,0)","v":0},{"$f":"IF(AZ502=3,G502,0)","v":0},{"$f":"IF(AZ502=4,G502,0)","v":0},{"$f":"IF(AZ502=5,G502,0)","v":0},null,null,null,null,null,null,null,null,null,null,null,null,null,null,null,null,null,null,null,null,null,3,1]
[null,null,null,null,null,null,null,null,null,null,null,null,null,null,3]
[null,null,"Vodovod - Řad 1 PE D 110x10,0 mm:",null,0,null,null,null,null,null,null,null,"Vodovod - Řad 1 PE D 110x10,0 mm:"]
[null,null,"Pro Šoupě DN50:1",null,1,null,null,null,null,null,null,null,"Pro Šoupě DN50:1"]
[null,null,"Pro Šoupě DN80:1",null,1,null,null,null,null,null,null,null,"Pro Šoupě DN80:1"]
[null,null,"Pro Šoupě DN100:6",null,6,null,null,null,null,null,null,null,"Pro Šoupě DN100:6"]
[null,null,"VP pro čp. 60 PE D 32x3,0 mm:",null,0,null,null,null,null,null,null,null,"VP pro čp. 60 PE D 32x3,0 mm:"]
[null,null,"Pro DAV D 110/32:1",null,1,null,null,null,null,null,null,null,"Pro DAV D 110/32:1"]
[91,"42203482.R","Podkladová deska č. 3482","kus",1,null,{"$f":"E510*F510","v":0},5.9999999999999995E-4,{"$f":"E510*H510","v":5.9999999999999995E-4},null,{"$f":"E510*J510","v":0},null,null,null,2,null,null,null,null,null,null,null,null,null,null,null,3,1,"42203482.R",null,null,null,null,null,null,null,null,null,null,null,null,null,null,null,null,null,null,null,null,null,null,1,{"$f":"IF(AZ510=1,G510,0)","v":0},{"$f":"IF(AZ510=2,G510,0)","v":0},{"$f":"IF(AZ510=3,G510,0)","v":0},{"$f":"IF(AZ510=4,G510,0)","v":0},{"$f":"IF(AZ510=5,G510,0)","v":0},null,null,null,null,null,null,null,null,null,null,null,null,null,null,null,null,null,null,null,null,null,3,1]
[null,null,null,null,null,null,null,null,null,null,null,null,null,null,3]
[null,null,"Vodovod - Řad 1 PE D 110x10,0 mm:",null,0,null,null,null,null,null,null,null,"Vodovod - Řad 1 PE D 110x10,0 mm:"]
[null,null,"Pro Hp DN80/1,5:1",null,1,null,null,null,null,null,null,null,"Pro Hp DN80/1,5:1"]
[92,"42209999.R","Drenážní obal","kus",1,null,{"$f":"E514*F514","v":0},4.7999999999999996E-3,{"$f":"E514*H514","v":4.7999999999999996E-3},null,{"$f":"E514*J514","v":0},null,null,null,2,null,null,null,null,null,null,null,null,null,null,null,3,1,"42209999.R",null,null,null,null,null,null,null,null,null,null,null,null,null,null,null,null,null,null,null,null,null,null,1,{"$f":"IF(AZ514=1,G514,0)","v":0},{"$f":"IF(AZ514=2,G514,0)","v":0},{"$f":"IF(AZ514=3,G514,0)","v":0},{"$f":"IF(AZ514=4,G514,0)","v":0},{"$f":"IF(AZ514=5,G514,0)","v":0},null,null,null,null,null,null,null,null,null,null,null,null,null,null,null,null,null,null,null,null,null,3,1]
[null,null,"Vodovod - Řad 1 PE D 110x10,0 mm:",null,0,null,null,null,null,null,null,null,"Vodovod - Řad 1 PE D 110x10,0 mm:"]
[null,null,"Pro Hp DN80/1,5:1",null,1,null,null,null,null,null,null,null,"Pro Hp DN80/1,5:1"]
[93,"42228300.R3","Šoupátko 4000E3 DN 50 přírubové, voda PN16 krátké L=150 mm","kus",1,null,{"$f":"E517*F517","v":0},1.0500000000000001E-2,{"$f":"E517*H517","v":1.0500000000000001E-2},null,{"$f":"E517*J517","v":0},null,null,null,2,null,null,null,null,null,null,null,null,null,null,null,3,1,"42228300.R3",null,null,null,null,null,null,null,null,null,null,null,null,null,null,null,null,null,null,null,null,null,null,1,{"$f":"IF(AZ517=1,G517,0)","v":0},{"$f":"IF(AZ517=2,G517,0)","v":0},{"$f":"IF(AZ517=3,G517,0)","v":0},{"$f":"IF(AZ517=4,G517,0)","v":0},{"$f":"IF(AZ517=5,G517,0)","v":0},null,null,null,null,null,null,null,null,null,null,null,null,null,null,null,null,null,null,null,null,null,3,1]
[null,null,"Šoupátko přírubové krkové - měkcetěsnící klínové šoupátko s hladkým a volným průtokovým kanálem",null,null,null,null,null,null,null,null,"Šoupátko přírubové krkové - měkcetěsnící klínové šoupátko s hladkým a volným průtokovým kanálem",null,null,3]
[null,null,"č. 4000E3 krátké L=150 mm",null,null,null,null,null,null,null,null,"č. 4000E3 krátké L=150 mm",null,null,3]
[null,null,"PN 16",null,null,null,null,null,null,null,null,"PN 16",null,null,3]
[null,null,"DN 50",null,null,null,null,null,null,null,null,"DN 50",null,null,3]
[null,null,"těleso a víko: tvárná litina GGG 400 - DIN 1693",null,null,null,null,null,null,null,null,"těleso a víko: tvárná litina GGG 400 - DIN 1693",null,null,3]
[null,null,"medium: pitná voda, neagresivní odpadní voda",null,null,null,null,null,null,null,null,"medium: pitná voda, neagresivní odpadní voda",null,null,3]
[null,null,"Vodovod - Řad 1 PE D 110x10,0 mm:",null,0,null,null,null,null,null,null,null,"Vodovod - Řad 1 PE D 110x10,0 mm:"]
[null,null,"Šoupě DN50:1",null,1,null,null,null,null,null,null,null,"Šoupě DN50:1"]
[94,"42228310.R3","Šoupátko 4000E3 DN 80 přírubové, voda PN16 krátké L=180 mm","kus",1,null,{"$f":"E526*F526","v":0},1.6500000000000001E-2,{"$f":"E526*H526","v":1.6500000000000001E-2},null,{"$f":"E526*J526","v":0},null,null,null,2,null,null,null,null,null,null,null,null,null,null,null,3,1,"42228310.R3",null,null,null,null,null,null,null,null,null,null,null,null,null,null,null,null,null,null,null,null,null,null,1,{"$f":"IF(AZ526=1,G526,0)","v":0},{"$f":"IF(AZ526=2,G526,0)","v":0},{"$f":"IF(AZ526=3,G526,0)","v":0},{"$f":"IF(AZ526=4,G526,0)","v":0},{"$f":"IF(AZ526=5,G526,0)","v":0},null,null,null,null,null,null,null,null,null,null,null,null,null,null,null,null,null,null,null,null,null,3,1]
[null,null,"Šoupátko přírubové krkové - měkcetěsnící klínové šoupátko s hladkým a volným průtokovým kanálem",null,null,null,null,null,null,null,null,"Šoupátko přírubové krkové - měkcetěsnící klínové šoupátko s hladkým a volným průtokovým kanálem",null,null,3]
[null,null,"č. 4000E3 krátké L=180 mm",null,null,null,null,null,null,null,null,"č. 4000E3 krátké L=180 mm",null,null,3]
[null,null,"PN 16",null,null,null,null,null,null,null,null,"PN 16",null,null,3]
[null,null,"DN 80",null,null,null,null,null,null,null,null,"DN 80",null,null,3]
[null,null,"těleso a víko: tvárná litina GGG 400 - DIN 1693",null,null,null,null,null,null,null,null,"těleso a víko: tvárná litina GGG 400 - DIN 1693",null,null,3]
[null,null,"medium: pitná voda, neagresivní odpadní voda",null,null,null,null,null,null,null,null,"medium: pitná voda, neagresivní odpadní voda",null,null,3]
[null,null,"Vodovod - Řad 1 PE D 110x10,0 mm:",null,0,null,null,null,null,null,null,null,"Vodovod - Řad 1 PE D 110x10,0 mm:"]
[null,null,"Šoupě DN80:1",null,1,null,null,null,null,null,null,null,"Šoupě DN80:1"]
[95,"42228312.R3","Šoupátko 4000E3 DN 100 přírubové, voda PN16 krátké L=190 mm","kus",6,null,{"$f":"E535*F535","v":0},2.4500000000000001E-2,{"$f":"E535*H535","v":0.14700000000000002},null,{"$f":"E535*J535","v":0},null,null,null,2,null,null,null,null,null,null,null,null,null,null,null,3,1,"42228312.R3",null,null,null,null,null,null,null,null,null,null,null,null,null,null,null,null,null,null,null,null,null,null,1,{"$f":"IF(AZ535=1,G535,0)","v":0},{"$f":"IF(AZ535=2,G535,0)","v":0},{"$f":"IF(AZ535=3,G535,0)","v":0},{"$f":"IF(AZ535=4,G535,0)","v":0},{"$f":"IF(AZ535=5,G535,0)","v":0},null,null,null,null,null,null,null,null,null,null,null,null,null,null,null,null,null,null,null,null,null,3,1]
[null,null,"Šoupátko přírubové krkové - měkcetěsnící klínové šoupátko s hladkým a volným průtokovým kanálem",null,null,null,null,null,null,null,null,"Šoupátko přírubové krkové - měkcetěsnící klínové šoupátko s hladkým a volným průtokovým kanálem",null,null,3]
[null,null,"č. 4000E3 krátké L=190 mm",null,null,null,null,null,null,null,null,"č. 4000E3 krátké L=190 mm",null,null,3]
[null,null,"PN 16",null,null,null,null,null,null,null,null,"PN 16",null,null,3]
[null,null,"DN 100",null,null,null,null,null,null,null,null,"DN 100",null,null,3]
[null,null,"těleso a víko: tvárná litina GGG 400 - DIN 1693",null,null,null,null,null,null,null,null,"těleso a víko: tvárná litina GGG 400 - DIN 1693",null,null,3]
[null,null,"medium: pitná voda, neagresivní odpadní voda",null,null,null,null,null,null,null,null,"medium: pitná voda, neagresivní odpadní voda",null,null,3]
[null,null,"Vodovod - Řad 1 PE D 110x10,0 mm:",null,0,null,null,null,null,null,null,null,"Vodovod - Řad 1 PE D 110x10,0 mm:"]
[null,null,"Šoupě DN100:6",null,6,null,null,null,null,null,null,null,"Šoupě DN100:6"]
[96,"422737412.R","Hydrant podzemní DUO K240, DN80/1,5 m","kus",1,null,{"$f":"E544*F544","v":0},3.95E-2,{"$f":"E544*H544","v":3.95E-2},null,{"$f":"E544*J544","v":0},null,null,null,2,null,null,null,null,null,null,null,null,null,null,null,3,1,"422737412.R",null,null,null,null,null,null,null,null,null,null,null,null,null,null,null,null,null,null,null,null,null,null,1,{"$f":"IF(AZ544=1,G544,0)","v":0},{"$f":"IF(AZ544=2,G544,0)","v":0},{"$f":"IF(AZ544=3,G544,0)","v":0},{"$f":"IF(AZ544=4,G544,0)","v":0},{"$f":"IF(AZ544=5,G544,0)","v":0},null,null,null,null,null,null,null,null,null,null,null,null,null,null,null,null,null,null,null,null,null,3,1]
[null,null,"Vodovod - Řad 1 PE D 110x10,0 mm:",null,0,null,null,null,null,null,null,null,"Vodovod - Řad 1 PE D 110x10,0 mm:"]
[null,null,"Hp DN80/1,5:1",null,1,null,null,null,null,null,null,null,"Hp DN80/1,5:1"]
[97,"42293250.R","Souprava zemní tel.9502E2/E3 DN50 -100, 1,3-1,8m","kus",8,null,{"$f":"E547*F547","v":0},7.3000000000000001E-3,{"$f":"E547*H547","v":5.8400000000000001E-2},null,{"$f":"E547*J547","v":0},null,null,null,2,null,null,null,null,null,null,null,null,null,null,null,3,1,"42293250.R",null,null,null,null,null,null,null,null,null,null,null,null,null,null,null,null,null,null,null,null,null,null,1,{"$f":"IF(AZ547=1,G547,0)","v":0},{"$f":"IF(AZ547=2,G547,0)","v":0},{"$f":"IF(AZ547=3,G547,0)","v":0},{"$f":"IF(AZ547=4,G547,0)","v":0},{"$f":"IF(AZ547=5,G547,0)","v":0},null,null,null,null,null,null,null,null,null,null,null,null,null,null,null,null,null,null,null,null,null,3,1]
[null,null,"Vodovod - Řad 1 PE D 110x10,0 mm:",null,0,null,null,null,null,null,null,null,"Vodovod - Řad 1 PE D 110x10,0 mm:"]
[null,null,"Pro Šoupě DN50:1",null,1,null,null,null,null,null,null,null,"Pro Šoupě DN50:1"]
[null,null,"Pro Šoupě DN80:1",null,1,null,null,null,null,null,null,null,"Pro Šoupě DN80:1"]
[null,null,"Pro Šoupě DN100:6",null,6,null,null,null,null,null,null,null,"Pro Šoupě DN100:6"]
[98,"422935303.R","Spojka Synoflex 7974, DN 80 (85-105), PN 16","kus",2,null,{"$f":"E552*F552","v":0},1.2500000000000001E-2,{"$f":"E552*H552","v":2.5000000000000001E-2},null,{"$f":"E552*J552","v":0},null,null,null,2,null,null,null,null,null,null,null,null,null,null,null,3,1,"422935303.R",null,null,null,null,null,null,null,null,null,null,null,null,null,null,null,null,null,null,null,null,null,null,1,{"$f":"IF(AZ552=1,G552,0)","v":0},{"$f":"IF(AZ552=2,G552,0)","v":0},{"$f":"IF(AZ552=3,G552,0)","v":0},{"$f":"IF(AZ552=4,G552,0)","v":0},{"$f":"IF(AZ552=5,G552,0)","v":0},null,null,null,null,null,null,null,null,null,null,null,null,null,null,null,null,null,null,null,null,null,3,1]
[null,null,"Spojka jištěná proti posunu ",null,null,null,null,null,null,null,null,"Spojka jištěná proti posunu ",null,null,3]
[null,null,"pro všechny standardní materiály potrubí s velkým rozsahem vnějších průměrů potrubí a úhlovým vychýlením.",null,null,null,null,null,null,null,null,"pro všechny standardní materiály potrubí s velkým rozsahem vnějších průměrů potrubí a úhlovým vychýlením.",null,null,3]
[null,null,"vhodné pro všechny druhy potrubí používané ve vodárenství",null,null,null,null,null,null,null,null,"vhodné pro všechny druhy potrubí používané ve vodárenství",null,null,3]
[null,null,"(litina, ocel, PE, PVC a AC)",null,null,null,null,null,null,null,null,"(litina, ocel, PE, PVC a AC)",null,null,3]
[null,null,"Konstrukční charakteristiky",null,null,null,null,null,null,null,null,"Konstrukční charakteristiky",null,null,3]
[null,null,"• multitoleranční spojky SYNOFLEX s jištěním proti posunu jsou",null,null,null,null,null,null,null,null,"• multitoleranční spojky SYNOFLEX s jištěním proti posunu jsou",null,null,3]
[null,null,"vhodné pro všechny druhy potrubí používané ve vodárenství",null,null,null,null,null,null,null,null,"vhodné pro všechny druhy potrubí používané ve vodárenství",null,null,3]
[null,null,"(litina, ocel, PE, PVC a AC)",null,null,null,null,null,null,null,null,"(litina, ocel, PE, PVC a AC)",null,null,3]
[null,null,"• dle EN 14525",null,null,null,null,null,null,null,null,"• dle EN 14525",null,null,3]
[null,null,"• flexibilní těsnění",null,null,null,null,null,null,null,null,"• flexibilní těsnění",null,null,3]
[null,null,"• flexibilní SYNOFLEX kroužek",null,null,null,null,null,null,null,null,"• flexibilní SYNOFLEX kroužek",null,null,3]
[null,null,"• jisticí prvky jsou pevně namontovány na každém segmentu",null,null,null,null,null,null,null,null,"• jisticí prvky jsou pevně namontovány na každém segmentu",null,null,3]
[null,null,"SYNOFLEX kroužku",null,null,null,null,null,null,null,null,"SYNOFLEX kroužku",null,null,3]
[null,null,"• šrouby lze montovat i otočené o 180°",null,null,null,null,null,null,null,null,"• šrouby lze montovat i otočené o 180°",null,null,3]
[null,null,"• zajištění hlav šroubů proti pootočení",null,null,null,null,null,null,null,null,"• zajištění hlav šroubů proti pootočení",null,null,3]
[null,null,"• úhlové vychýlení max. 8°(+/- 4° na každé hrdlo)",null,null,null,null,null,null,null,null,"• úhlové vychýlení max. 8°(+/- 4° na každé hrdlo)",null,null,3]
[null,null,"• pro jištění tahových sil na PE (PE ? SDR 17) potrubí je",null,null,null,null,null,null,null,null,"• pro jištění tahových sil na PE (PE ? SDR 17) potrubí je",null,null,3]
[null,null,"doporučená instalace rozpěrných pouzder č. 6035",null,null,null,null,null,null,null,null,"doporučená instalace rozpěrných pouzder č. 6035",null,null,3]
[null,null,"Vodovod - Řad 1 PE D 110x10,0 mm:",null,0,null,null,null,null,null,null,null,"Vodovod - Řad 1 PE D 110x10,0 mm:"]
[null,null,"Propojení Řadu TLT DN80 po odstranění AŠ:",null,0,null,null,null,null,null,null,null,"Propojení Řadu TLT DN80 po odstranění AŠ:"]
[null,null,"Synoflex spojka DN80 (85-105):2",null,2,null,null,null,null,null,null,null,"Synoflex spojka DN80 (85-105):2"]
[99,"422935321.R","Spojka Synoflex s přírubou 7994, DN 80 ,PN 16","kus",3,null,{"$f":"E574*F574","v":0},7.1000000000000004E-3,{"$f":"E574*H574","v":2.1299999999999999E-2},null,{"$f":"E574*J574","v":0},null,null,null,2,null,null,null,null,null,null,null,null,null,null,null,3,1,"422935321.R",null,null,null,null,null,null,null,null,null,null,null,null,null,null,null,null,null,null,null,null,null,null,1,{"$f":"IF(AZ574=1,G574,0)","v":0},{"$f":"IF(AZ574=2,G574,0)","v":0},{"$f":"IF(AZ574=3,G574,0)","v":0},{"$f":"IF(AZ574=4,G574,0)","v":0},{"$f":"IF(AZ574=5,G574,0)","v":0},null,null,null,null,null,null,null,null,null,null,null,null,null,null,null,null,null,null,null,null,null,3,1]
[null,null,"Spojka s přírubou jištěná proti posunu pro všechny standardní materiály potrubí s velkým rozsahem vnějších průměrů potrubí a úhlovým vychýlením",null,null,null,null,null,null,null,null,"Spojka s přírubou jištěná proti posunu pro všechny standardní materiály potrubí s velkým rozsahem vnějších průměrů potrubí a úhlovým vychýlením",null,null,3]
[null,null,"PROVEDENÍ: hrdlo - příruba",null,null,null,null,null,null,null,null,"PROVEDENÍ: hrdlo - příruba",null,null,3]
[null,null,"dle EN 14 525",null,null,null,null,null,null,null,null,"dle EN 14 525",null,null,3]
[null,null,"příruba a opěrný kroužek: dle EN 1092-2 PN10 (případně PN16)",null,null,null,null,null,null,null,null,"příruba a opěrný kroužek: dle EN 1092-2 PN10 (případně PN16)",null,null,3]
[null,null,"tělo a přítlačný kroužek: z tvárné litny EN-GJS-400 s povrchovou úpravou vířivým slinováním",null,null,null,null,null,null,null,null,"tělo a přítlačný kroužek: z tvárné litny EN-GJS-400 s povrchovou úpravou vířivým slinováním",null,null,3]
[null,null,"flexibilní těsnění: z elastomeru dle EN 681-1 (vhodné pro pitnou vodu)",null,null,null,null,null,null,null,null,"flexibilní těsnění: z elastomeru dle EN 681-1 (vhodné pro pitnou vodu)",null,null,3]
[null,null,"flexibilní Synoflex kroužek: z POM sestaven z jednotlivých segmentů",null,null,null,null,null,null,null,null,"flexibilní Synoflex kroužek: z POM sestaven z jednotlivých segmentů",null,null,3]
[null,null,"jistící prvky: z nekorodující oceli na každém segmentu kroužku",null,null,null,null,null,null,null,null,"jistící prvky: z nekorodující oceli na každém segmentu kroužku",null,null,3]
[null,null,"šrouby a matice: z nerezové oceli s povrchovou úpravou proti zadírání",null,null,null,null,null,null,null,null,"šrouby a matice: z nerezové oceli s povrchovou úpravou proti zadírání",null,null,3]
[null,null,"podložky: z nerezové oceli s ochrannou krytkou z elastomeru",null,null,null,null,null,null,null,null,"podložky: z nerezové oceli s ochrannou krytkou z elastomeru",null,null,3]
[null,null,"šrbouby: lze použít i otočené o 180°",null,null,null,null,null,null,null,null,"šrbouby: lze použít i otočené o 180°",null,null,3]
[null,null,"distanční objímky: z plastu",null,null,null,null,null,null,null,null,"distanční objímky: z plastu",null,null,3]
[null,null,"úhlové vychýlení (ČSN EN 14 525)",null,null,null,null,null,null,null,null,"úhlové vychýlení (ČSN EN 14 525)",null,null,3]
[null,null,"pro jištění tahových sil na PE potrubí doporučujeme instalaci rozpěrných pouzder (č. 6035, 6036)",null,null,null,null,null,null,null,null,"pro jištění tahových sil na PE potrubí doporučujeme instalaci rozpěrných pouzder (č. 6035, 6036)",null,null,3]
[null,null,"Vodovod - Řad 1 PE D 110x10,0 mm:",null,0,null,null,null,null,null,null,null,"Vodovod - Řad 1 PE D 110x10,0 mm:"]
[null,null,"Synoflex s přírubou DN80 (85-105):3",null,3,null,null,null,null,null,null,null,"Synoflex s přírubou DN80 (85-105):3"]
[100,"55251100.R","Trouba vod.lit.tlak. DN 80 mm  spoj TYTON","m",3.03,null,{"$f":"E591*F591","v":0},1.4500000000000001E-2,{"$f":"E591*H591","v":4.3935000000000002E-2},null,{"$f":"E591*J591","v":0},null,null,null,2,null,null,null,null,null,null,null,null,null,null,null,3,1,"55251100.R",null,null,null,null,null,null,null,null,null,null,null,null,null,null,null,null,null,null,null,null,null,null,1,{"$f":"IF(AZ591=1,G591,0)","v":0},{"$f":"IF(AZ591=2,G591,0)","v":0},{"$f":"IF(AZ591=3,G591,0)","v":0},{"$f":"IF(AZ591=4,G591,0)","v":0},{"$f":"IF(AZ591=5,G591,0)","v":0},null,null,null,null,null,null,null,null,null,null,null,null,null,null,null,null,null,null,null,null,null,3,1]
[null,null,"Vodovod - Řad 1 PE D 110x10,0 mm:",null,0,null,null,null,null,null,null,null,"Vodovod - Řad 1 PE D 110x10,0 mm:"]
[null,null,"Propojení Řadu TLT DN80 po odstranění AŠ:3,00*1,01",null,3.03,null,null,null,null,null,null,null,"Propojení Řadu TLT DN80 po odstranění AŠ:3,00*1,01"]
[101,"55259815.R","Přechod přír. FFR DN 100/ 80","kus",4,null,{"$f":"E594*F594","v":0},9.7999999999999997E-3,{"$f":"E594*H594","v":3.9199999999999999E-2},null,{"$f":"E594*J594","v":0},null,null,null,2,null,null,null,null,null,null,null,null,null,null,null,3,1,"55259815.R",null,null,null,null,null,null,null,null,null,null,null,null,null,null,null,null,null,null,null,null,null,null,1,{"$f":"IF(AZ594=1,G594,0)","v":0},{"$f":"IF(AZ594=2,G594,0)","v":0},{"$f":"IF(AZ594=3,G594,0)","v":0},{"$f":"IF(AZ594=4,G594,0)","v":0},{"$f":"IF(AZ594=5,G594,0)","v":0},null,null,null,null,null,null,null,null,null,null,null,null,null,null,null,null,null,null,null,null,null,3,1]
[null,null,"Vodovod - Řad 1 PE D 110x10,0 mm:",null,0,null,null,null,null,null,null,null,"Vodovod - Řad 1 PE D 110x10,0 mm:"]
[null,null,"FFR DN100/80:4",null,4,null,null,null,null,null,null,null,"FFR DN100/80:4"]
[102,"552599941.R","Tvarovka přír. s přír. odb. T DN 100/50","kus",1,null,{"$f":"E597*F597","v":0},1.6500000000000001E-2,{"$f":"E597*H597","v":1.6500000000000001E-2},null,{"$f":"E597*J597","v":0},null,null,null,2,null,null,null,null,null,null,null,null,null,null,null,3,1,"552599941.R",null,null,null,null,null,null,null,null,null,null,null,null,null,null,null,null,null,null,null,null,null,null,1,{"$f":"IF(AZ597=1,G597,0)","v":0},{"$f":"IF(AZ597=2,G597,0)","v":0},{"$f":"IF(AZ597=3,G597,0)","v":0},{"$f":"IF(AZ597=4,G597,0)","v":0},{"$f":"IF(AZ597=5,G597,0)","v":0},null,null,null,null,null,null,null,null,null,null,null,null,null,null,null,null,null,null,null,null,null,3,1]
[null,null,"Vodovod - Řad 1 PE D 110x10,0 mm:",null,0,null,null,null,null,null,null,null,"Vodovod - Řad 1 PE D 110x10,0 mm:"]
[null,null,"T DN100/50:1",null,1,null,null,null,null,null,null,null,"T DN100/50:1"]
[103,"552599943.R","Tvarovka přír. s přír. odb. T DN 100/80","kus",1,null,{"$f":"E600*F600","v":0},1.78E-2,{"$f":"E600*H600","v":1.78E-2},null,{"$f":"E600*J600","v":0},null,null,null,2,null,null,null,null,null,null,null,null,null,null,null,3,1,"552599943.R",null,null,null,null,null,null,null,null,null,null,null,null,null,null,null,null,null,null,null,null,null,null,1,{"$f":"IF(AZ600=1,G600,0)","v":0},{"$f":"IF(AZ600=2,G600,0)","v":0},{"$f":"IF(AZ600=3,G600,0)","v":0},{"$f":"IF(AZ600=4,G600,0)","v":0},{"$f":"IF(AZ600=5,G600,0)","v":0},null,null,null,null,null,null,null,null,null,null,null,null,null,null,null,null,null,null,null,null,null,3,1]
[null,null,"Vodovod - Řad 1 PE D 110x10,0 mm:",null,0,null,null,null,null,null,null,null,"Vodovod - Řad 1 PE D 110x10,0 mm:"]
[null,null,"T DN100/80:1",null,1,null,null,null,null,null,null,null,"T DN100/80:1"]
[104,"55260003.A.R","Kříž přírubový TT DN 100/100 EWS","kus",1,null,{"$f":"E603*F603","v":0},2.64E-2,{"$f":"E603*H603","v":2.64E-2},null,{"$f":"E603*J603","v":0},null,null,null,2,null,null,null,null,null,null,null,null,null,null,null,3,1,"55260003.A.R",null,null,null,null,null,null,null,null,null,null,null,null,null,null,null,null,null,null,null,null,null,null,1,{"$f":"IF(AZ603=1,G603,0)","v":0},{"$f":"IF(AZ603=2,G603,0)","v":0},{"$f":"IF(AZ603=3,G603,0)","v":0},{"$f":"IF(AZ603=4,G603,0)","v":0},{"$f":"IF(AZ603=5,G603,0)","v":0},null,null,null,null,null,null,null,null,null,null,null,null,null,null,null,null,null,null,null,null,null,3,1]
[null,null,"Vodovod - Řad 1 PE D 110x10,0 mm:",null,0,null,null,null,null,null,null,null,"Vodovod - Řad 1 PE D 110x10,0 mm:"]
[null,null,"TT DN100/100:1",null,1,null,null,null,null,null,null,null,"TT DN100/100:1"]
[105,"55260045.R","Příruba zaslepovací XG DN 50 závit 1 1/2\"","kus",1,null,{"$f":"E606*F606","v":0},2.3999999999999998E-3,{"$f":"E606*H606","v":2.3999999999999998E-3},null,{"$f":"E606*J606","v":0},null,null,null,2,null,null,null,null,null,null,null,null,null,null,null,3,1,"55260045.R",null,null,null,null,null,null,null,null,null,null,null,null,null,null,null,null,null,null,null,null,null,null,1,{"$f":"IF(AZ606=1,G606,0)","v":0},{"$f":"IF(AZ606=2,G606,0)","v":0},{"$f":"IF(AZ606=3,G606,0)","v":0},{"$f":"IF(AZ606=4,G606,0)","v":0},{"$f":"IF(AZ606=5,G606,0)","v":0},null,null,null,null,null,null,null,null,null,null,null,null,null,null,null,null,null,null,null,null,null,3,1]
[null,null,"Vodovod - Řad 1 PE D 110x10,0 mm:",null,0,null,null,null,null,null,null,null,"Vodovod - Řad 1 PE D 110x10,0 mm:"]
[null,null,"XG DN50/1 1/2\":1",null,1,null,null,null,null,null,null,null,"XG DN50/1 1/2\":1"]
[106,"5526009705.R","Koleno prodloužené přír.s patkou PPL DN 80","kus",1,null,{"$f":"E609*F609","v":0},1.2200000000000001E-2,{"$f":"E609*H609","v":1.2200000000000001E-2},null,{"$f":"E609*J609","v":0},null,null,null,2,null,null,null,null,null,null,null,null,null,null,null,3,1,"5526009705.R",null,null,null,null,null,null,null,null,null,null,null,null,null,null,null,null,null,null,null,null,null,null,1,{"$f":"IF(AZ609=1,G609,0)","v":0},{"$f":"IF(AZ609=2,G609,0)","v":0},{"$f":"IF(AZ609=3,G609,0)","v":0},{"$f":"IF(AZ609=4,G609,0)","v":0},{"$f":"IF(AZ609=5,G609,0)","v":0},null,null,null,null,null,null,null,null,null,null,null,null,null,null,null,null,null,null,null,null,null,3,1]
[null,null,"Vodovod - Řad 1 PE D 110x10,0 mm:",null,0,null,null,null,null,null,null,null,"Vodovod - Řad 1 PE D 110x10,0 mm:"]
[null,null,"PPL DN80:1",null,1,null,null,null,null,null,null,null,"PPL DN80:1"]
[null,"Celkem za","8 Trubní vedení",null,null,null,{"$f":"SUM(G277:G611)","v":0},null,{"$f":"SUM(I277:I611)","v":2.3359263499999994},null,{"$f":"SUM(K277:K611)","v":0},null,null,null,4,null,null,null,null,null,null,null,null,null,null,null,null,null,null,null,null,null,null,null,null,null,null,null,null,null,null,null,null,null,null,null,null,null,null,null,null,null,{"$f":"SUM(BA277:BA611)","v":0},{"$f":"SUM(BB277:BB611)","v":0},{"$f":"SUM(BC277:BC611)","v":0},{"$f":"SUM(BD277:BD611)","v":0},{"$f":"SUM(BE277:BE611)","v":0}]
["Díl:","99","Staveništní přesun hmot",null,null,null,null,null,null,null,null,null,null,null,1]
[107,"998276101R00","Přesun hmot, trubní vedení plastová, otevř. výkop ","t",208.30857230000001,null,{"$f":"E614*F614","v":0},0,{"$f":"E614*H614","v":0},null,{"$f":"E614*J614","v":0},null,null,null,2,null,null,null,null,null,null,null,null,null,null,null,7,1,2,null,null,null,null,null,null,null,null,null,null,null,null,null,null,null,null,null,null,null,null,null,null,1,{"$f":"IF(AZ614=1,G614,0)","v":0},{"$f":"IF(AZ614=2,G614,0)","v":0},{"$f":"IF(AZ614=3,G614,0)","v":0},{"$f":"IF(AZ614=4,G614,0)","v":0},{"$f":"IF(AZ614=5,G614,0)","v":0},null,null,null,null,null,null,null,null,null,null,null,null,null,null,null,null,null,null,null,null,null,7,1]
[null,"Celkem za","99 Staveništní přesun hmot",null,null,null,{"$f":"SUM(G613:G614)","v":0},null,{"$f":"SUM(I613:I614)","v":0},null,{"$f":"SUM(K613:K614)","v":0},null,null,null,4,null,null,null,null,null,null,null,null,null,null,null,null,null,null,null,null,null,null,null,null,null,null,null,null,null,null,null,null,null,null,null,null,null,null,null,null,null,{"$f":"SUM(BA613:BA614)","v":0},{"$f":"SUM(BB613:BB614)","v":0},{"$f":"SUM(BC613:BC614)","v":0},{"$f":"SUM(BD613:BD614)","v":0},{"$f":"SUM(BE613:BE614)","v":0}]

{"sheet":"OaVNS","index":16,"n_rows":30,"n_cols":67,"rows_kept":30,"cut":false,"hidden":false,"merged":[[0,0,0,6],[2,0,2,1],[3,0,3,1],[3,4,3,6],[6,2,6,6]]}
["Položkový rozpočet "]
[]
["Stavba :",null,"3392 Chuchelna – optimalizace vodovodní soustavyS",null,"Rozpočet:","OaVNS"]
["Objekt :",null,"300 Rekonstrukce vodovodu"]
[]
["P.č.","Číslo položky","Název položky","MJ","množství","cena / MJ","celkem (Kč)","Jednotková hmotnost","Celková hmotnost","Jednotková dem.hmot.","Celková dem.hmot."]
["Díl:","950","Ostatní náklady stavby"]
[1,"950 99-0001.ONS","Zajištění prostoru a vybudování zařízení staveniště včetně potřebných staveništních komunikací","soubor",1,null,{"$f":"SUM(E8*F8)","v":0},8.6899999999999998E-3,{"$f":"E8*H8","v":8.6899999999999998E-3},0,{"$f":"E8*J8","v":0},null,null,null,null,null,null,null,null,null,null,null,null,null,null,null,null,null,null,null,null,null,null,null,null,null,null,null,null,null,null,null,null,null,null,null,null,null,null,null,null,null,null,null,null,null,null,null,null,null,null,null,null,null,null,1,1]
[2,"950 99-0003.ONS","Zajištění bezpečnosti při provádění stavby ve smyslu bezpečnosti práce i ochrany životního prostředí a zeleně","soubor",1,null,{"$f":"SUM(E9*F9)","v":0}]
[3,"950 99-0005.ONS","Vytýčení stavby a hranic pozemků při provádění stavby ","soubor",1,null,0]
[4,"950 99-0006.ONS","Zajištění včasného oznámení o zahájení prací majitelům pozemků a správců sítí dotčených stavbou","soubor",1,null,0]
[5,"950 99-0007.ONS","Spolupráce s vlastníky pozemků při případném uvolnění pozemků pro stavbu (např. skládky osobního materiálu vlastníků)","soubor",1,null,0,2.478E-2,{"$f":"E12*H12","v":2.478E-2},0,{"$f":"E12*J12","v":0},null,null,null,null,null,null,null,null,null,null,null,null,null,null,null,null,null,null,null,null,null,null,null,null,null,null,null,null,null,null,null,null,null,null,null,null,null,null,null,null,null,null,null,null,null,null,null,null,null,null,null,null,null,null,1,1]
[6,"950 99-0008.ONS","Zajištění vytýčení podzemních zařízení, a v případě jejich křížení či souběhu v otevřeném výkopu, jejich písemné předání zpět jejich správcům před zásypem","soubor",1,null,0]
[7,"950 99-0009.ONS","Vypracování a projednání návrhu dočasných dopravních opatření (případně i po etapách dle zvoleného postupu prací zhotovitelem)","soubor",1,null,0]
[8,"950 99-0010.ONS","Zajištění povolení zvláštního užívání komunikací v souladu s postupem výstavby,včetně správních poplatků a povolení k užívání dalších, stavbou dotčených pozemků   (skládky materiálu, mezideponie atd.)","soubor",1,null,0]
[9,"950 99-0011.ONS","Zřízení, údržba a likvidace dopravního opatření po dobu realizace stavby (případně i po etapách dle zvoleného postupu prací zhotovitelem)","soubor",1,null,0,0,{"$f":"E16*H16","v":0},0,{"$f":"E16*J16","v":0},null,null,null,null,null,null,null,null,null,null,null,null,null,null,null,null,null,null,null,null,null,null,null,null,null,null,null,null,null,null,null,null,null,null,null,null,null,null,null,null,null,null,null,null,null,null,null,null,null,null,null,null,null,null,1,1]
[10,"950 99-0013.ONS","Zajištění činnosti odpovědného geodeta zhotovitele","soubor",1,null,0]
[11,"950 99-0014.ONS","Zajištění činnosti odpovědného geologa zhotovitele","soubor",1,null,0]
[12,"950 99-0015.ONS","Zajištění čistoty na staveništi a v jeho okolí, zajištění každodenního čištění komunikací dotčených provozem zhotovitele","soubor",1,null,0]
[13,"950 99-0016.ONS","Fotodokumentace průběhu díla; zhotovitel zajistí a předá objednateli průběžnou fotodokumentaci realizace díla. Fotodokumentace bude dokladovat průběh díla a bude zejména dokumentovat části stavby a konstrukce před jejich zakrytím","soubor",1,null,0]
[14,"950 99-0017.ONS","Péče o nepředané objekty nebo jejich části a konstrukce stavby, jejich ošetřování a nutný rozsah pojištění","soubor",1,null,0,0,{"$f":"E21*H21","v":0},0,{"$f":"E21*J21","v":0},null,null,null,null,null,null,null,null,null,null,null,null,null,null,null,null,null,null,null,null,null,null,null,null,null,null,null,null,null,null,null,null,null,null,null,null,null,null,null,null,null,null,null,null,null,null,null,null,null,null,null,null,null,null,1,1]
[15,"950 99-0018.ONS","Zkoušky hutnění komunikací a rýh dle ČSN a EN","soubor",1,null,0]
[16,"950 99-0021.ONS","Inženýrská a kompletační činnost zhotovitele ","soubor",1,null,0]
[17,"950 99-0022.ONS","Zhotovení dokumentace skutečného provedení díla ","soubor",1,null,0]
[18,"950 99-0023.ONS","Geodetické zaměření stavby","soubor",1,null,0]
[19,"950 99-0024.ONS","Pasportizace objektů a komunikací před zahájením stavby včetně předání fotokokumentace investorovi stavby v digitální a tištěné podobě.","soubor",1,null,0]
[20,"950 99-0025.ONS","Provizorní zásobování vodou (cisterny)","soubor",1,null,0]
[20,"950 99-0027.ONS","Ostatní činnosti nutné ke zdárnému provedení díla, které jsou vymezeny zejména v technické specifikaci stavby","soubor",1,null,0]
[]
[null,"ONS Celkem",null,null,null,null,{"$f":"SUM(G8:G28)","v":0}]